Department family,Entity,Date,Expense type,Expense area,Supplier,Transaction number, Amount ,
Home Office,Home Office  ,07/09/2012,Grants,SIIG - Safeguarding Immigration & International Group,INDEPENDENT SAFEGUARDING AUTHORITY (G),3000045326," 960,162.00 ",
Home Office,Home Office  ,04/09/2012,"IT, TelecommsManaged Service.Support (General)",SIIG - Safeguarding Immigration & International Group,LOGICA UK LTD,1001303252," 50,871.60 ",
Home Office,Home Office  ,28/09/2012,Public Administration Services.ContOut RC Services-Other,OSCT - Office of Security and Counter-Terrorism,BURNBANK SYSTEMS LTD,1001313954," 31,939.01 ",
Home Office,Home Office  ,28/09/2012,Public Administration Services.ContOut RC Services-Other,OSCT - Office of Security and Counter-Terrorism,BURNBANK SYSTEMS LTD,1001313954," 14,532.24 ",
Home Office,Home Office  ,07/09/2012,"Clothes, shoes & Personal Care.Clothing ",OSCT - Office of Security and Counter-Terrorism,CFOA NATIONAL RESILIENCE LTD,1001305220," 106,573.92 ",
Home Office,Home Office  ,06/09/2012,Laboratory & Scientific Equip.Scientific Equip Running Costs,OSCT - Office of Security and Counter-Terrorism,CT CENTRE (MOD) T/A DSTL,1001304811," 137,540.33 ",
Home Office,Home Office  ,27/09/2012,HOPG Estates Accom Rent,OSCT - Office of Security and Counter-Terrorism,"DEPARTMENT FOR BUSINESS, INNOVATION & SKILLS",3000045415," 153,285.74 ",
Home Office,Home Office  ,27/09/2012,HOPG Estates Accom Rent,OSCT - Office of Security and Counter-Terrorism,"DEPARTMENT FOR BUSINESS, INNOVATION & SKILLS",3000045415," 102,190.49 ",
Home Office,Home Office  ,26/09/2012,Grants,OSCT - Office of Security and Counter-Terrorism,DORSET POLICE AUTHORITY 1 (G),1001313172," 299,356.00 ",
Home Office,Home Office  ,26/09/2012,Grants,OSCT - Office of Security and Counter-Terrorism,DORSET POLICE AUTHORITY 1 (G),1001313172," 124,860.00 ",
Home Office,Home Office  ,26/09/2012,Grants,OSCT - Office of Security and Counter-Terrorism,DORSET POLICE AUTHORITY 1 (G),1001313172," 293,276.00 ",
Home Office,Home Office  ,26/09/2012,Grants,OSCT - Office of Security and Counter-Terrorism,DORSET POLICE AUTHORITY 1 (G),1001313172," 79,451.00 ",
Home Office,Home Office  ,26/09/2012,Grants,OSCT - Office of Security and Counter-Terrorism,DORSET POLICE AUTHORITY 1 (G),1001313172," 242,839.00 ",
Home Office,Home Office  ,26/09/2012,Grants,OSCT - Office of Security and Counter-Terrorism,DORSET POLICE AUTHORITY 1 (G),1001313172," 1,035,419.00 ",
Home Office,Home Office  ,26/09/2012,Grants,OSCT - Office of Security and Counter-Terrorism,DORSET POLICE AUTHORITY 1 (G),1001313172," 2,199,659.00 ",
Home Office,Home Office  ,26/09/2012,Grants,OSCT - Office of Security and Counter-Terrorism,DORSET POLICE AUTHORITY 1 (G),1001313172," 99,947.00 ",
Home Office,Home Office  ,26/09/2012,Grants,OSCT - Office of Security and Counter-Terrorism,DORSET POLICE AUTHORITY 1 (G),1001313172," 37,508.00 ",
Home Office,Home Office  ,17/09/2012,Agency Staff,OSCT - Office of Security and Counter-Terrorism,FOREIGN AND COMMONWEALTH OFFICE,3000045363," 6,050.00 ",
Home Office,Home Office  ,17/09/2012,Legal Advice,OSCT - Office of Security and Counter-Terrorism,FOREIGN AND COMMONWEALTH OFFICE,3000045363," 9,910.00 ",
Home Office,Home Office  ,17/09/2012,Consultancy Advice,OSCT - Office of Security and Counter-Terrorism,FOREIGN AND COMMONWEALTH OFFICE,3000045363," 5,500.00 ",
Home Office,Home Office  ,17/09/2012,Legal Fees  ,OSCT - Office of Security and Counter-Terrorism,FOREIGN AND COMMONWEALTH OFFICE,3000045363," 6,875.00 ",
Home Office,Home Office  ,18/09/2012,"IT, TelecommsManaged Service.Support (General)",OSCT - Office of Security and Counter-Terrorism,HEWLETT PACKARD,1001309179," 110,855.44 ",
Home Office,Home Office  ,25/09/2012,IT/IS ,OSCT - Office of Security and Counter-Terrorism,KPMG LLP,1001312225," 64,365.60 ",
Home Office,Home Office  ,25/09/2012,IT/IS ,OSCT - Office of Security and Counter-Terrorism,KPMG LLP,1001312225," 23,847.60 ",
Home Office,Home Office  ,25/09/2012,IT/IS ,OSCT - Office of Security and Counter-Terrorism,KPMG LLP,1001312225," 25,113.60 ",
Home Office,Home Office  ,06/09/2012,Education & Training Services.Training & Development,OSCT - Office of Security and Counter-Terrorism,LONDON FIRE & EPA,1001304852," 36,000.00 ",
Home Office,Home Office  ,26/09/2012,Grants,OSCT - Office of Security and Counter-Terrorism,MAYORS OFFICE FOR POLICING AND CRIME (G),1001313208," 724,525.00 ",
Home Office,Home Office  ,26/09/2012,Grants,OSCT - Office of Security and Counter-Terrorism,MAYORS OFFICE FOR POLICING AND CRIME (G),1001313208," 209,928.00 ",
Home Office,Home Office  ,26/09/2012,Grants,OSCT - Office of Security and Counter-Terrorism,MAYORS OFFICE FOR POLICING AND CRIME (G),1001313208," 370,819.00 ",
Home Office,Home Office  ,26/09/2012,Grants,OSCT - Office of Security and Counter-Terrorism,MAYORS OFFICE FOR POLICING AND CRIME (G),1001313208," 11,626,020.00 ",
Home Office,Home Office  ,26/09/2012,Grants,OSCT - Office of Security and Counter-Terrorism,MAYORS OFFICE FOR POLICING AND CRIME (G),1001313208," 3,654,072.00 ",
Home Office,Home Office  ,26/09/2012,Grants,OSCT - Office of Security and Counter-Terrorism,MAYORS OFFICE FOR POLICING AND CRIME (G),1001313208," 1,649,224.00 ",
Home Office,Home Office  ,26/09/2012,Grants,OSCT - Office of Security and Counter-Terrorism,MAYORS OFFICE FOR POLICING AND CRIME (G),1001313208," 191,568.00 ",
Home Office,Home Office  ,26/09/2012,Grants,OSCT - Office of Security and Counter-Terrorism,MAYORS OFFICE FOR POLICING AND CRIME (G),1001313208," 10,337,735.00 ",
Home Office,Home Office  ,26/09/2012,Grants,OSCT - Office of Security and Counter-Terrorism,MAYORS OFFICE FOR POLICING AND CRIME (G),1001313208," 55,064.00 ",
Home Office,Home Office  ,26/09/2012,Grants,OSCT - Office of Security and Counter-Terrorism,MAYORS OFFICE FOR POLICING AND CRIME (G),1001313208," 39,231.00 ",
Home Office,Home Office  ,26/09/2012,Grants,OSCT - Office of Security and Counter-Terrorism,MAYORS OFFICE FOR POLICING AND CRIME (G),1001313208," 522,390.00 ",
Home Office,Home Office  ,26/09/2012,Grants,OSCT - Office of Security and Counter-Terrorism,MAYORS OFFICE FOR POLICING AND CRIME (G),1001313208," 1,909,885.00 ",
Home Office,Home Office  ,26/09/2012,Grants,OSCT - Office of Security and Counter-Terrorism,MAYORS OFFICE FOR POLICING AND CRIME (G),1001313208," 113,491.00 ",
Home Office,Home Office  ,26/09/2012,Grants,OSCT - Office of Security and Counter-Terrorism,MAYORS OFFICE FOR POLICING AND CRIME (G),1001313208," 651,065.00 ",
Home Office,Home Office  ,26/09/2012,Grants,OSCT - Office of Security and Counter-Terrorism,MAYORS OFFICE FOR POLICING AND CRIME (G),1001313208," 802,792.00 ",
Home Office,Home Office  ,26/09/2012,Grants,OSCT - Office of Security and Counter-Terrorism,MAYORS OFFICE FOR POLICING AND CRIME (G),1001313208," 25,702.00 ",
Home Office,Home Office  ,26/09/2012,Grants,OSCT - Office of Security and Counter-Terrorism,MAYORS OFFICE FOR POLICING AND CRIME (G),1001313208," 45,316.00 ",
Home Office,Home Office  ,26/09/2012,Grants,OSCT - Office of Security and Counter-Terrorism,MAYORS OFFICE FOR POLICING AND CRIME (G),1001313208," 947,238.00 ",
Home Office,Home Office  ,26/09/2012,Grants,OSCT - Office of Security and Counter-Terrorism,MAYORS OFFICE FOR POLICING AND CRIME (G),1001313208," 462,321.00 ",
Home Office,Home Office  ,26/09/2012,Grants,OSCT - Office of Security and Counter-Terrorism,MAYORS OFFICE FOR POLICING AND CRIME (G),1001313208," 1,016,784.00 ",
Home Office,Home Office  ,26/09/2012,Grants,OSCT - Office of Security and Counter-Terrorism,MAYORS OFFICE FOR POLICING AND CRIME (G),1001313208," 218,036.00 ",
Home Office,Home Office  ,26/09/2012,Grants,OSCT - Office of Security and Counter-Terrorism,MAYORS OFFICE FOR POLICING AND CRIME (G),1001313208," 15,887,679.00 ",
Home Office,Home Office  ,26/09/2012,Grants,OSCT - Office of Security and Counter-Terrorism,MAYORS OFFICE FOR POLICING AND CRIME (G),1001313208," 943,910.00 ",
Home Office,Home Office  ,26/09/2012,Grants,OSCT - Office of Security and Counter-Terrorism,MAYORS OFFICE FOR POLICING AND CRIME (G),1001313208," 364,982.00 ",
Home Office,Home Office  ,26/09/2012,Grants,OSCT - Office of Security and Counter-Terrorism,MAYORS OFFICE FOR POLICING AND CRIME (G),1001313208," 57,394.00 ",
Home Office,Home Office  ,21/09/2012,Professional & Admin Services.Seconded in Staff costs,OSCT - Office of Security and Counter-Terrorism,MAYORS OFFICE FOR POLICING AND CRIME (MOPC),1001311062," 6,438.65 ",
Home Office,Home Office  ,21/09/2012,Professional & Admin Services.Seconded in Staff costs,OSCT - Office of Security and Counter-Terrorism,MAYORS OFFICE FOR POLICING AND CRIME (MOPC),1001311062," 10,025.66 ",
Home Office,Home Office  ,21/09/2012,Professional & Admin Services.Seconded in Staff costs,OSCT - Office of Security and Counter-Terrorism,MAYORS OFFICE FOR POLICING AND CRIME (MOPC),1001311062," 6,953.90 ",
Home Office,Home Office  ,21/09/2012,Professional & Admin Services.Seconded in Staff costs,OSCT - Office of Security and Counter-Terrorism,MAYORS OFFICE FOR POLICING AND CRIME (MOPC),1001311062," 5,548.94 ",
Home Office,Home Office  ,21/09/2012,Professional & Admin Services.Seconded in Staff costs,OSCT - Office of Security and Counter-Terrorism,MAYORS OFFICE FOR POLICING AND CRIME (MOPC),1001311062," 5,253.30 ",
Home Office,Home Office  ,21/09/2012,Professional & Admin Services.Seconded in Staff costs,OSCT - Office of Security and Counter-Terrorism,MAYORS OFFICE FOR POLICING AND CRIME (MOPC),1001311062," 5,092.63 ",
Home Office,Home Office  ,21/09/2012,Professional & Admin Services.Seconded in Staff costs,OSCT - Office of Security and Counter-Terrorism,MAYORS OFFICE FOR POLICING AND CRIME (MOPC),1001311062," 8,630.46 ",
Home Office,Home Office  ,21/09/2012,Professional & Admin Services.Seconded in Staff costs,OSCT - Office of Security and Counter-Terrorism,MAYORS OFFICE FOR POLICING AND CRIME (MOPC),1001311062," 9,562.16 ",
Home Office,Home Office  ,21/09/2012,Professional & Admin Services.Seconded in Staff costs,OSCT - Office of Security and Counter-Terrorism,MAYORS OFFICE FOR POLICING AND CRIME (MOPC),1001311062," 4,259.83 ",
Home Office,Home Office  ,21/09/2012,Professional & Admin Services.Seconded in Staff costs,OSCT - Office of Security and Counter-Terrorism,MAYORS OFFICE FOR POLICING AND CRIME (MOPC),1001311062," 6,501.36 ",
Home Office,Home Office  ,21/09/2012,Professional & Admin Services.Seconded in Staff costs,OSCT - Office of Security and Counter-Terrorism,MAYORS OFFICE FOR POLICING AND CRIME (MOPC),1001311062," 8,744.95 ",
Home Office,Home Office  ,21/09/2012,Professional & Admin Services.Seconded in Staff costs,OSCT - Office of Security and Counter-Terrorism,MAYORS OFFICE FOR POLICING AND CRIME (MOPC),1001311062," 6,648.94 ",
Home Office,Home Office  ,06/09/2012,Professional & Admin Services.Seconded in Staff costs,OSCT - Office of Security and Counter-Terrorism,NAO - NATIONAL AUDIT OFFICE,3000045318," 3,590.75 ",
Home Office,Home Office  ,06/09/2012,Professional & Admin Services.Seconded in Staff costs,OSCT - Office of Security and Counter-Terrorism,NAO - NATIONAL AUDIT OFFICE,3000045318," 9,382.50 ",
Home Office,Home Office  ,11/09/2012,"Science, Technical & Research.IT Running costs",OSCT - Office of Security and Counter-Terrorism,REPKNIGHT LTD,1001306329," 63,595.20 ",
Home Office,Home Office  ,26/09/2012,Grants,OSCT - Office of Security and Counter-Terrorism,SECURITY SERVICES GROUP (G),1001313230," 235,200.00 ",
Home Office,Home Office  ,26/09/2012,Grants,OSCT - Office of Security and Counter-Terrorism,SECURITY SERVICES GROUP (G),1001313230," 1,436,685.16 ",
Home Office,Home Office  ,12/09/2012,Grants,CPG - Crime & Policing Group,INDEPENDENT POLICE COMPLAINTS COMISSION (G),4000004156," 3,000,000.00 ",
Home Office,Home Office  ,26/09/2012,Grants,CPG - Crime & Policing Group,INDEPENDENT POLICE COMPLAINTS COMISSION (G),1001313190," 2,000,000.00 ",
Home Office,Home Office  ,13/09/2012,Grants,CPG - Crime & Policing Group,WEST YORKSHIRE POLICE (G),1001307828," 476,032.08 ",
Home Office,Home Office  ,28/09/2012,Delivery of IT IS Programmes,CPG - Crime & Policing Group,KPMG LLP,1001314001," 168,285.60 ",
Home Office,Home Office  ,05/09/2012,Grants,CPG - Crime & Policing Group,COMMUNITIES & LOCAL GOVERNMENT (G),3000045308," 2,395,940.00 ",
Home Office,Home Office  ,24/09/2012,Grants,CPG - Crime & Policing Group,AVON & SOMERSET POLICE AUTHORITY 1 (G),1001311618," 1,828,180.00 ",
Home Office,Home Office  ,24/09/2012,Grants,CPG - Crime & Policing Group,BEDFORDSHIRE POLICE AUTHORITY 1 (G),1001311619," 686,735.00 ",
Home Office,Home Office  ,24/09/2012,Grants,CPG - Crime & Policing Group,CAMBRIDGESHIRE POLICE AUTHORITY 1 (G),1001311621," 908,608.00 ",
Home Office,Home Office  ,24/09/2012,Grants,CPG - Crime & Policing Group,CHAMBERLAIN OF LONDON (G),1001311622," 315,312.00 ",
Home Office,Home Office  ,24/09/2012,Grants,CPG - Crime & Policing Group,CHESHIRE POLICE AUTHORITY 2 (G),1001311623," 1,205,028.00 ",
Home Office,Home Office  ,24/09/2012,Grants,CPG - Crime & Policing Group,CLEVELAND POLICE AUTHORITY 1 (G),1001311624," 736,959.00 ",
Home Office,Home Office  ,24/09/2012,Grants,CPG - Crime & Policing Group,CUMBRIA POLICE AUTHORITY 1 (G),1001311625," 583,758.00 ",
Home Office,Home Office  ,27/09/2012,Grants,CPG - Crime & Policing Group,DEPARTMENT FOR CULTURE MEDIA AND SPORT (G),3000045416," 90,916.94 ",
Home Office,Home Office  ,24/09/2012,Grants,CPG - Crime & Policing Group,DERBYSHIRE POLICE AUTHORITY 1 (G),1001311626," 914,618.00 ",
Home Office,Home Office  ,24/09/2012,Grants,CPG - Crime & Policing Group,DEVON & CORNWALL POLICE AUTHORITY 1 (G),1001311627," 1,871,304.00 ",
Home Office,Home Office  ,24/09/2012,Grants,CPG - Crime & Policing Group,DORSET POLICE AUTHORITY 1 (G),1001311628," 811,421.00 ",
Home Office,Home Office  ,24/09/2012,Grants,CPG - Crime & Policing Group,DURHAM POLICE AUTHORITY 1 (G),1001311629," 829,045.00 ",
Home Office,Home Office  ,24/09/2012,Grants,CPG - Crime & Policing Group,DYFED POWYS POLICE AUTHORITY 1 (G),1001311630," 409,164.00 ",
Home Office,Home Office  ,24/09/2012,Grants,CPG - Crime & Policing Group,ESSEX POLICE AUTHORITY (G),1001311632," 1,792,839.00 ",
Home Office,Home Office  ,24/09/2012,Grants,CPG - Crime & Policing Group,GLOUCESTERSHIRE POLICE AUTHORITY (G),1001311633," 743,905.00 ",
Home Office,Home Office  ,24/09/2012,Grants,CPG - Crime & Policing Group,GREATER LONDON AUTHORITY (G),1001311634," 25,317,472.00 ",
Home Office,Home Office  ,24/09/2012,Grants,CPG - Crime & Policing Group,GREATER MANCHESTER POLICE AUTHORITY (G),1001311635," 4,323,511.00 ",
Home Office,Home Office  ,24/09/2012,Grants,CPG - Crime & Policing Group,GWENT POLICE AUTHORITY 1 (G),1001311636," 736,317.00 ",
Home Office,Home Office  ,24/09/2012,Grants,CPG - Crime & Policing Group,HAMPSHIRE POLICE AUTHORITY 1 (G),1001311638," 1,891,116.00 ",
Home Office,Home Office  ,24/09/2012,Grants,CPG - Crime & Policing Group,HERTFORDSHIRE POLICE AUTHORITY 1 (G),1001311639," 1,325,813.00 ",
Home Office,Home Office  ,24/09/2012,Grants,CPG - Crime & Policing Group,HUMBERSIDE POLICE AUTHORITY 1 (G),1001311640," 1,183,297.00 ",
Home Office,Home Office  ,24/09/2012,Grants,CPG - Crime & Policing Group,KENT POLICE AUTHORITY 1 (G),1001311641," 2,001,363.00 ",
Home Office,Home Office  ,24/09/2012,Grants,CPG - Crime & Policing Group,LANCASHIRE POLICE AUTHORITY 1 (G),1001311642," 2,040,785.00 ",
Home Office,Home Office  ,24/09/2012,Grants,CPG - Crime & Policing Group,LEICESTERSHIRE POLICE AUTHORITY (G),1001311643," 1,173,747.00 ",
Home Office,Home Office  ,24/09/2012,Grants,CPG - Crime & Policing Group,LINCOLNSHIRE POLICE AUTHORITY 1 (G),1001311644," 712,651.00 ",
Home Office,Home Office  ,24/09/2012,Grants,CPG - Crime & Policing Group,MERSEYSIDE POLICE AUTHORITY 1 (G),1001311645," 2,456,417.00 ",
Home Office,Home Office  ,24/09/2012,Grants,CPG - Crime & Policing Group,NEW WEST MERCIA POLICE AUTHORITY (G),1001311646," 1,331,104.00 ",
Home Office,Home Office  ,24/09/2012,Grants,CPG - Crime & Policing Group,NORFOLK POLICE AUTHORITY 1 (G),1001311647," 983,273.00 ",
Home Office,Home Office  ,24/09/2012,Grants,CPG - Crime & Policing Group,NORTH WALES POLICE AUTHORITY (G),1001311648," 829,544.00 ",
Home Office,Home Office  ,24/09/2012,Grants,CPG - Crime & Policing Group,NORTH YORKSHIRE POLICE AUTHORITY (G),1001311649," 850,395.00 ",
Home Office,Home Office  ,24/09/2012,Grants,CPG - Crime & Policing Group,NORTHAMPTONSHIRE POLICE 1 (G),1001311650," 757,935.00 ",
Home Office,Home Office  ,24/09/2012,Grants,CPG - Crime & Policing Group,NORTHUMBRIA POLICE (G),1001311651," 2,230,872.00 ",
Home Office,Home Office  ,24/09/2012,Grants,CPG - Crime & Policing Group,NOTTINGHAMSHIRE POLICE AUTHORITY 2 (G),1001311652," 1,363,730.00 ",
Home Office,Home Office  ,24/09/2012,Grants,CPG - Crime & Policing Group,SOUTH WALES POLICE AUTHORITY 1 (G),1001311653," 1,672,258.00 ",
Home Office,Home Office  ,24/09/2012,Grants,CPG - Crime & Policing Group,SOUTH YORKSHIRE POLICE AUTHORITY 1 (G),1001311654," 1,639,838.00 ",
Home Office,Home Office  ,24/09/2012,Grants,CPG - Crime & Policing Group,STAFFORDSHIRE POLICE AUTHORITY (G),1001311655," 1,112,875.00 ",
Home Office,Home Office  ,24/09/2012,Grants,CPG - Crime & Policing Group,SUFFOLK POLICE AUTHORITY (G),1001311656," 763,464.00 ",
Home Office,Home Office  ,24/09/2012,Grants,CPG - Crime & Policing Group,SURREY POLICE AUTHORITY 1 (G),1001311657," 1,104,834.00 ",
Home Office,Home Office  ,24/09/2012,Grants,CPG - Crime & Policing Group,SUSSEX POLICE AUTHORITY 1 (G),1001311658," 1,797,197.00 ",
Home Office,Home Office  ,24/09/2012,Grants,CPG - Crime & Policing Group,THAMES VALLEY POLICE (G),1001311659," 2,281,073.00 ",
Home Office,Home Office  ,24/09/2012,Grants,CPG - Crime & Policing Group,WARWICKSHIRE POLICE AUTHORITY 1 (G),1001311660," 689,022.00 ",
Home Office,Home Office  ,24/09/2012,Grants,CPG - Crime & Policing Group,WEST MIDLANDS POLICE AUTHORITY 1 (G),1001311661," 3,976,076.00 ",
Home Office,Home Office  ,24/09/2012,Grants,CPG - Crime & Policing Group,WEST YORKSHIRE POLICE (G),1001311662," 3,564,032.00 ",
Home Office,Home Office  ,24/09/2012,Grants,CPG - Crime & Policing Group,WILTSHIRE CONSTABULARY (G),1001311663," 701,153.00 ",
Home Office,Home Office  ,03/09/2012,Grants,CPG - Crime & Policing Group,AVON & SOMERSET POLICE AUTHORITY 1 (G),1001303120," 9,390,897.08 ",
Home Office,Home Office  ,03/09/2012,Grants,CPG - Crime & Policing Group,BEDFORDSHIRE POLICE AUTHORITY 1 (G),1001303121," 3,403,012.42 ",
Home Office,Home Office  ,03/09/2012,Grants,CPG - Crime & Policing Group,CAMBRIDGESHIRE POLICE AUTHORITY 1 (G),1001303122," 4,168,368.08 ",
Home Office,Home Office  ,03/09/2012,Grants,CPG - Crime & Policing Group,CHAMBERLAIN OF LONDON (G),1001303123," 2,517,302.83 ",
Home Office,Home Office  ,03/09/2012,Grants,CPG - Crime & Policing Group,CHESHIRE POLICE AUTHORITY 2 (G),1001303124," 5,357,603.33 ",
Home Office,Home Office  ,03/09/2012,Grants,CPG - Crime & Policing Group,CLEVELAND POLICE AUTHORITY 1 (G),1001303125," 3,955,851.17 ",
Home Office,Home Office  ,12/09/2012,Grants,CPG - Crime & Policing Group,COMMUNITIES & LOCAL GOVERNMENT (G),3000045345," 13,410,488.00 ",
Home Office,Home Office  ,03/09/2012,Grants,CPG - Crime & Policing Group,CUMBRIA POLICE AUTHORITY 1 (G),1001303126," 2,545,396.75 ",
Home Office,Home Office  ,03/09/2012,Grants,CPG - Crime & Policing Group,DERBYSHIRE POLICE AUTHORITY 1 (G),1001303127," 5,419,919.50 ",
Home Office,Home Office  ,03/09/2012,Grants,CPG - Crime & Policing Group,DEVON & CORNWALL POLICE AUTHORITY 1 (G),1001303128," 9,204,510.75 ",
Home Office,Home Office  ,03/09/2012,Grants,CPG - Crime & Policing Group,DORSET POLICE AUTHORITY 1 (G),1001303130," 3,534,020.25 ",
Home Office,Home Office  ,03/09/2012,Grants,CPG - Crime & Policing Group,DURHAM POLICE AUTHORITY 1 (G),1001303131," 3,688,842.00 ",
Home Office,Home Office  ,03/09/2012,Grants,CPG - Crime & Policing Group,DYFED POWYS POLICE AUTHORITY 1 (G),1001303132," 2,673,285.80 ",
Home Office,Home Office  ,03/09/2012,Grants,CPG - Crime & Policing Group,DYFED POWYS POLICE AUTHORITY 1 (G),1001303132," 525,759.66 ",
Home Office,Home Office  ,03/09/2012,Grants,CPG - Crime & Policing Group,ESSEX POLICE AUTHORITY (G),1001303134," 9,127,825.75 ",
Home Office,Home Office  ,03/09/2012,Grants,CPG - Crime & Policing Group,GLOUCESTERSHIRE POLICE AUTHORITY (G),1001303135," 3,017,868.42 ",
Home Office,Home Office  ,03/09/2012,Grants,CPG - Crime & Policing Group,GREATER LONDON AUTHORITY (G),1001303136," 87,634,000.75 ",
Home Office,Home Office  ,03/09/2012,Grants,CPG - Crime & Policing Group,GREATER MANCHESTER POLICE AUTHORITY (G),1001303137," 19,186,257.83 ",
Home Office,Home Office  ,03/09/2012,Grants,CPG - Crime & Policing Group,GWENT POLICE AUTHORITY 1 (G),1001303138," 3,723,023.08 ",
Home Office,Home Office  ,03/09/2012,Grants,CPG - Crime & Policing Group,HAMPSHIRE POLICE AUTHORITY 1 (G),1001303139," 10,678,106.42 ",
Home Office,Home Office  ,03/09/2012,Grants,CPG - Crime & Policing Group,HERTFORDSHIRE POLICE AUTHORITY 1 (G),1001303141," 6,154,472.58 ",
Home Office,Home Office  ,03/09/2012,Grants,CPG - Crime & Policing Group,HUMBERSIDE POLICE AUTHORITY 1 (G),1001303142," 5,788,273.42 ",
Home Office,Home Office  ,03/09/2012,Grants,CPG - Crime & Policing Group,KENT POLICE AUTHORITY 1 (G),1001303143," 9,124,475.25 ",
Home Office,Home Office  ,03/09/2012,Grants,CPG - Crime & Policing Group,LANCASHIRE POLICE AUTHORITY 1 (G),1001303144," 8,806,760.42 ",
Home Office,Home Office  ,03/09/2012,Grants,CPG - Crime & Policing Group,LEICESTERSHIRE POLICE AUTHORITY (G),1001303145," 5,609,790.33 ",
Home Office,Home Office  ,03/09/2012,Grants,CPG - Crime & Policing Group,LINCOLNSHIRE POLICE AUTHORITY 1 (G),1001303146," 3,318,234.00 ",
Home Office,Home Office  ,19/09/2012,Grants,CPG - Crime & Policing Group,MAYORS OFFICE FOR POLICING AND CRIME (G),1001309925," 22,500,000.00 ",
Home Office,Home Office  ,26/09/2012,Grants,CPG - Crime & Policing Group,MAYORS OFFICE FOR POLICING AND CRIME (G),1001313208," 4,390,000.00 ",
Home Office,Home Office  ,03/09/2012,Grants,CPG - Crime & Policing Group,MERSEYSIDE POLICE AUTHORITY 1 (G),1001303147," 10,581,245.00 ",
Home Office,Home Office  ,24/09/2012,Grants,CPG - Crime & Policing Group,MERSEYSIDE POLICE AUTHORITY 1 (G),1001311645," 31,148.18 ",
Home Office,Home Office  ,03/09/2012,Grants,CPG - Crime & Policing Group,NEW WEST MERCIA POLICE AUTHORITY (G),1001303148," 5,716,345.42 ",
Home Office,Home Office  ,03/09/2012,Grants,CPG - Crime & Policing Group,NORFOLK POLICE AUTHORITY 1 (G),1001303149," 4,473,503.00 ",
Home Office,Home Office  ,03/09/2012,Grants,CPG - Crime & Policing Group,NORTH WALES POLICE AUTHORITY (G),1001303150," 3,852,897.50 ",
Home Office,Home Office  ,03/09/2012,Grants,CPG - Crime & Policing Group,NORTH WALES POLICE AUTHORITY (G),1001303150," 540,961.75 ",
Home Office,Home Office  ,03/09/2012,Grants,CPG - Crime & Policing Group,NORTH YORKSHIRE POLICE AUTHORITY (G),1001303152," 3,655,512.33 ",
Home Office,Home Office  ,03/09/2012,Grants,CPG - Crime & Policing Group,NORTHAMPTONSHIRE POLICE 1 (G),1001303153," 3,769,495.83 ",
Home Office,Home Office  ,03/09/2012,Grants,CPG - Crime & Policing Group,NORTHUMBRIA POLICE (G),1001303154," 9,582,660.83 ",
Home Office,Home Office  ,03/09/2012,Grants,CPG - Crime & Policing Group,NOTTINGHAMSHIRE POLICE AUTHORITY 2 (G),1001303155," 6,723,839.92 ",
Home Office,Home Office  ,03/09/2012,Grants,CPG - Crime & Policing Group,SOUTH WALES POLICE AUTHORITY 1 (G),1001303156," 7,724,168.17 ",
Home Office,Home Office  ,03/09/2012,Grants,CPG - Crime & Policing Group,SOUTH YORKSHIRE POLICE AUTHORITY 1 (G),1001303157," 8,562,347.67 ",
Home Office,Home Office  ,03/09/2012,Grants,CPG - Crime & Policing Group,STAFFORDSHIRE POLICE AUTHORITY (G),1001303158," 5,718,595.25 ",
Home Office,Home Office  ,03/09/2012,Grants,CPG - Crime & Policing Group,SUFFOLK POLICE AUTHORITY (G),1001303159," 3,563,378.33 ",
Home Office,Home Office  ,03/09/2012,Grants,CPG - Crime & Policing Group,SURREY POLICE AUTHORITY 1 (G),1001303160," 5,418,540.92 ",
Home Office,Home Office  ,03/09/2012,Grants,CPG - Crime & Policing Group,SUSSEX POLICE AUTHORITY 1 (G),1001303162," 8,427,919.75 ",
Home Office,Home Office  ,03/09/2012,Grants,CPG - Crime & Policing Group,THAMES VALLEY POLICE (G),1001303163," 12,248,368.58 ",
Home Office,Home Office  ,03/09/2012,Grants,CPG - Crime & Policing Group,WARWICKSHIRE POLICE AUTHORITY 1 (G),1001303164," 2,723,170.08 ",
Home Office,Home Office  ,03/09/2012,Grants,CPG - Crime & Policing Group,WEST MIDLANDS POLICE AUTHORITY 1 (G),1001303165," 21,074,627.00 ",
Home Office,Home Office  ,03/09/2012,Grants,CPG - Crime & Policing Group,WEST YORKSHIRE POLICE (G),1001303166," 14,942,934.17 ",
Home Office,Home Office  ,03/09/2012,Grants,CPG - Crime & Policing Group,WILTSHIRE CONSTABULARY (G),1001303167," 3,223,269.50 ",
Home Office,Home Office  ,11/09/2012,Grants,CPG - Crime & Policing Group,AVA PROJECT (THE) (G),1001306760," 29,850.00 ",
Home Office,Home Office  ,11/09/2012,Grants,CPG - Crime & Policing Group,AVA PROJECT (THE) (G),1001306760," 50,000.00 ",
Home Office,Home Office  ,12/09/2012,Grants,CPG - Crime & Policing Group,BIRMINGHAM AND SOLIHULL WOMEN'S AID (G),1001307281," 60,000.00 ",
Home Office,Home Office  ,28/09/2012,Grants,CPG - Crime & Policing Group,CROYDON COUNCIL (G),1001314402," 172,227.00 ",
Home Office,Home Office  ,28/09/2012,Grants,CPG - Crime & Policing Group,KNOWSLEY MBC (G),1001314403," 67,500.00 ",
Home Office,Home Office  ,06/09/2012,Grants,CPG - Crime & Policing Group,LANCASHIRE COUNTY COUNCIL 1 (G),1001304905," 40,000.00 ",
Home Office,Home Office  ,05/09/2012,Grants,CPG - Crime & Policing Group,LIVERPOOL CITY COUNCIL 1 (G),1001304729," 221,750.00 ",
Home Office,Home Office  ,28/09/2012,Grants,CPG - Crime & Policing Group,LONDON BORO OF TOWER HAMLETS 1 (G),1001314404," 129,349.00 ",
Home Office,Home Office  ,05/09/2012,Grants,CPG - Crime & Policing Group,LONDON BOROUGH OF HARINGEY 1 (G),1001304731," 44,137.46 ",
Home Office,Home Office  ,05/09/2012,Grants,CPG - Crime & Policing Group,LONDON BOROUGH OF LEWISHAM 1 (G),1001304732," 124,264.50 ",
Home Office,Home Office  ,28/09/2012,Grants,CPG - Crime & Policing Group,LONDON BOROUGH OF SOUTHWARK 1 (G),1001314405," 137,868.00 ",
Home Office,Home Office  ,05/09/2012,Grants,CPG - Crime & Policing Group,THE SURVIVORS TRUST (G),1001304733," 37,500.00 ",
Home Office,Home Office  ,05/09/2012,Grants,CPG - Crime & Policing Group,WOLVERHAMPTON CITY COUNCIL 1 (G),1001304735," 120,078.00 ",
Home Office,Home Office  ,05/09/2012,Grants,CPG - Crime & Policing Group,WOMENS AID (G),1001304736," 62,500.00 ",
Home Office,Home Office  ,17/09/2012,Grants,CPG - Crime & Policing Group,HERTFORDSHIRE POLICE AUTHORITY 1 (G),1001309050," 152,079.00 ",
Home Office,Home Office  ,17/09/2012,Grants,CPG - Crime & Policing Group,WEST YORKSHIRE POLICE (G),1001309053," 259,000.00 ",
Home Office,Home Office  ,28/09/2012,Grants,CPG - Crime & Policing Group,BEDFORDSHIRE POLICE AUTHORITY 1 (G),1001314401," 70,800.50 ",
Home Office,Home Office  ,10/09/2012,Financial Services Outsourcing.Grant Administration Services,CPG - Crime & Policing Group,CATCH22,1001305659," 42,055.79 ",
Home Office,Home Office  ,07/09/2012,"Science, Technical & Research.Testing",CPG - Crime & Policing Group,CONCATENO UK LTD,1001305225," 45,872.64 ",
Home Office,Home Office  ,17/09/2012,Grants,CPG - Crime & Policing Group,MAYORS OFFICE FOR POLICING AND CRIME (G),1001309051," 550,000.00 ",
Home Office,Home Office  ,04/09/2012,"IT, Broadcasting & Telecomms",CPG - Crime & Policing Group,NPIA (National Policing Improvement Agency),1001303271," 354,712.20 ",
Home Office,Home Office  ,10/09/2012,Grants,CPG - Crime & Policing Group,ACPO (G),1001306178," 96,053.77 ",
Home Office,Home Office  ,19/09/2012,"Building, Construction Services",CPG - Crime & Policing Group,"KELLOGG, BROWN AND ROOT LTD",1001309861," 39,560.87 ",
Home Office,Home Office  ,27/09/2012,Professional & Admin Services.Residential Rental,CPG - Crime & Policing Group,WORKSPACE MANAGEMENT LTD,1001313466," 36,896.06 ",
Home Office,Home Office  ,24/09/2012,Grants,CPG - Crime & Policing Group,SOUTH YORKSHIRE POLICE (G),1001311589," 63,518.13 ",
Home Office,Home Office  ,04/09/2012,"IT, TelecommsHardware Server.Support and Maintenance",CPG - Crime & Policing Group,STERIA UK,1001303294," 10,078.08 ",
Home Office,Home Office  ,04/09/2012,"IT, TelecommsHardware Server.Support and Maintenance",CPG - Crime & Policing Group,STERIA UK,1001303294," 15,211.44 ",
Home Office,Home Office  ,04/09/2012,"IT, TelecommsHardware Server.Support and Maintenance",CPG - Crime & Policing Group,STERIA UK,1001303294," 64,022.40 ",
Home Office,Home Office  ,04/09/2012,"IT, TelecommsHardware Server.Support and Maintenance",CPG - Crime & Policing Group,STERIA UK,1001303294," 19,802.42 ",
Home Office,Home Office  ,04/09/2012,"IT, TelecommsHardware Server.Support and Maintenance",CPG - Crime & Policing Group,STERIA UK,1001303294," 29,888.94 ",
Home Office,Home Office  ,24/09/2012,"IT, TelecommsHardware Server.Support and Maintenance",CPG - Crime & Policing Group,STERIA UK,1001311597," 28,477.69 ",
Home Office,Home Office  ,28/09/2012,"IT, TelecommsHardware Desktop.Support and Maintenance",CPG - Crime & Policing Group,WORDWAVE INTERNATIONAL LTD,1001314084," 36,224.03 ",
Home Office,Home Office  ,28/09/2012,"IT, TelecommsHardware Desktop.Support and Maintenance",CPG - Crime & Policing Group,WORDWAVE INTERNATIONAL LTD,1001314084," 55,631.00 ",
Home Office,Home Office  ,03/09/2012,Grants,CPG - Crime & Policing Group,AVON & SOMERSET POLICE AUTHORITY 1 (G),1001303120," 136,594.00 ",
Home Office,Home Office  ,03/09/2012,Grants,CPG - Crime & Policing Group,MERSEYSIDE POLICE AUTHORITY 1 (G),1001303147," 236,155.00 ",
Home Office,Home Office  ,03/09/2012,Grants,CPG - Crime & Policing Group,SOUTH WALES POLICE AUTHORITY 1 (G),1001303156," 158,625.00 ",
Home Office,Home Office  ,03/09/2012,Grants,CPG - Crime & Policing Group,SUSSEX POLICE AUTHORITY 1 (G),1001303162," 298,775.00 ",
Home Office,Home Office  ,05/09/2012,Delivery or Implementation of Consultancy programmes/projects,CPG - Crime & Policing Group,ERNST AND YOUNG LLP,1001304324," 46,426.80 ",
Home Office,Home Office  ,05/09/2012,Delivery or Implementation of Consultancy programmes/projects,CPG - Crime & Policing Group,ERNST AND YOUNG LLP,1001304324," 38,535.60 ",
Home Office,Home Office  ,05/09/2012,Delivery of Strategy and Change  Programmes,CPG - Crime & Policing Group,ERNST AND YOUNG LLP,1001304324," 33,844.80 ",
Home Office,Home Office  ,13/09/2012,Delivery of Strategy and Change  Programmes,CPG - Crime & Policing Group,ERNST AND YOUNG LLP,1001307500," 20,938.80 ",
Home Office,Home Office  ,17/09/2012,Delivery of IT IS Programmes,CPG - Crime & Policing Group,ERNST AND YOUNG LLP,1001308592," 71,276.40 ",
Home Office,Home Office  ,07/09/2012,"Professional & Admin Services.Patent, Copyright Law",CPG - Crime & Policing Group,GOVERNMENT ACTUARY'S DEPARTMENT,3000045323," 49,280.40 ",
Home Office,Home Office  ,21/09/2012,"Professional & Admin Services.Patent, Copyright Law",CPG - Crime & Policing Group,GOVERNMENT ACTUARY'S DEPARTMENT,3000045388," 40,187.63 ",
Home Office,Home Office  ,17/09/2012,Grants,CPG - Crime & Policing Group,HERTFORDSHIRE POLICE AUTHORITY 1 (G),1001309050," 83,000.00 ",
Home Office,Home Office  ,17/09/2012,Grants,CPG - Crime & Policing Group,MAYORS OFFICE FOR POLICING AND CRIME (G),1001309051," 81,296.91 ",
Home Office,Home Office  ,26/09/2012,Grants,CPG - Crime & Policing Group,AVON & SOMERSET CONSTABULARY (G),1001313148," 161,985.95 ",
Home Office,Home Office  ,26/09/2012,Grants,CPG - Crime & Policing Group,AVON & SOMERSET CONSTABULARY (G),1001313148," 219,363.00 ",
Home Office,Home Office  ,26/09/2012,Grants,CPG - Crime & Policing Group,BEDFORDSHIRE POLICE AUTHORITY 1 (G),1001313149," 157,967.10 ",
Home Office,Home Office  ,26/09/2012,Grants,CPG - Crime & Policing Group,BRENT AND HARROW TRADING STANDARDS SERVICE (G),1001313151," 59,046.97 ",
Home Office,Home Office  ,26/09/2012,Grants,CPG - Crime & Policing Group,BRITISH TRANSPORT POLICE AUTHORITY (G),1001313154," 67,444.21 ",
Home Office,Home Office  ,26/09/2012,Grants,CPG - Crime & Policing Group,CAMBRIDGESHIRE POLICE AUTHORITY 1 (G),1001313156," 92,292.13 ",
Home Office,Home Office  ,26/09/2012,Grants,CPG - Crime & Policing Group,CARDIFF COUNTY COUNCIL 1 (G),1001313157," 29,739.76 ",
Home Office,Home Office  ,26/09/2012,Grants,CPG - Crime & Policing Group,CENTRAL BEDFORDSHIRE COUNCIL (G),1001313158," 43,586.58 ",
Home Office,Home Office  ,26/09/2012,Grants,CPG - Crime & Policing Group,CHESHIRE POLICE AUTHORITY 2 (G),1001313160," 47,775.81 ",
Home Office,Home Office  ,26/09/2012,Grants,CPG - Crime & Policing Group,CLEVELAND POLICE AUTHORITY 1 (G),1001313165," 35,177.61 ",
Home Office,Home Office  ,26/09/2012,Grants,CPG - Crime & Policing Group,CROWN PROSECUTION SERVICE (G),3000045402," 4,166,712.89 ",
Home Office,Home Office  ,26/09/2012,Grants,CPG - Crime & Policing Group,CROWN PROSECUTION SERVICE (G),3000045402," 175,000.00 ",
Home Office,Home Office  ,26/09/2012,Grants,CPG - Crime & Policing Group,DEPARTMENT OF WORK & PENSIONS (G),3000045404," 386,441.49 ",
Home Office,Home Office  ,26/09/2012,Grants,CPG - Crime & Policing Group,DERBYSHIRE POLICE AUTHORITY 1 (G),1001313170," 43,317.25 ",
Home Office,Home Office  ,26/09/2012,Grants,CPG - Crime & Policing Group,DERBYSHIRE POLICE AUTHORITY 1 (G),1001313170," 62,455.00 ",
Home Office,Home Office  ,26/09/2012,Grants,CPG - Crime & Policing Group,DEVON & CORNWALL CONSTABULARY 4 (G),1001313171," 89,587.38 ",
Home Office,Home Office  ,26/09/2012,Grants,CPG - Crime & Policing Group,DORSET POLICE AUTHORITY 1 (G),1001313172," 34,855.75 ",
Home Office,Home Office  ,26/09/2012,Grants,CPG - Crime & Policing Group,ENVIRONMENT AGENCY (G),1001313176," 52,884.71 ",
Home Office,Home Office  ,26/09/2012,Grants,CPG - Crime & Policing Group,ESSEX POLICE AUTHORITY (G),1001313177," 166,029.34 ",
Home Office,Home Office  ,26/09/2012,Grants,CPG - Crime & Policing Group,FINANCIAL SERVICES AUTHORITY (G),1001313178," 216,481.20 ",
Home Office,Home Office  ,26/09/2012,Grants,CPG - Crime & Policing Group,GREATER MANCHESTER POLICE AUTHORITY (G),1001313181," 519,170.63 ",
Home Office,Home Office  ,26/09/2012,Grants,CPG - Crime & Policing Group,HAMPSHIRE POLICE AUTHORITY 1 (G),1001313184," 98,165.91 ",
Home Office,Home Office  ,26/09/2012,Grants,CPG - Crime & Policing Group,HERTFORDSHIRE POLICE AUTHORITY 1 (G),1001313187," 117,115.93 ",
Home Office,Home Office  ,26/09/2012,Grants,CPG - Crime & Policing Group,HM REVENUE & CUSTOMS (G),3000045406," 1,190,761.49 ",
Home Office,Home Office  ,26/09/2012,Grants,CPG - Crime & Policing Group,HM REVENUE & CUSTOMS (G),3000045406," 99,000.00 ",
Home Office,Home Office  ,26/09/2012,Grants,CPG - Crime & Policing Group,HUMBERSIDE POLICE AUTHORITY 1 (G),1001313189," 86,338.84 ",
Home Office,Home Office  ,26/09/2012,Grants,CPG - Crime & Policing Group,KENT POLICE AUTHORITY 1 (G),1001313192," 121,389.22 ",
Home Office,Home Office  ,26/09/2012,Grants,CPG - Crime & Policing Group,LANCASHIRE POLICE AUTHORITY 1 (G),1001313194," 533,476.97 ",
Home Office,Home Office  ,26/09/2012,Grants,CPG - Crime & Policing Group,LEICESTERSHIRE POLICE AUTHORITY (G),1001313195," 93,338.50 ",
Home Office,Home Office  ,26/09/2012,Grants,CPG - Crime & Policing Group,LONDON BORO OF TOWER HAMLETS 1 (G),1001313197," 104,509.97 ",
Home Office,Home Office  ,26/09/2012,Grants,CPG - Crime & Policing Group,LONDON BOROUGH HAVERING (G),1001313198," 42,856.55 ",
Home Office,Home Office  ,26/09/2012,Grants,CPG - Crime & Policing Group,MAYORS OFFICE FOR POLICING AND CRIME (G),1001313208," 1,765,230.80 ",
Home Office,Home Office  ,26/09/2012,Grants,CPG - Crime & Policing Group,MAYORS OFFICE FOR POLICING AND CRIME (G),1001313208," 278,013.00 ",
Home Office,Home Office  ,26/09/2012,Grants,CPG - Crime & Policing Group,MEDICINES &HEALTHCARE PRODUCTS REGULATORY AGENCY (G),3000045407," 47,454.20 ",
Home Office,Home Office  ,26/09/2012,Grants,CPG - Crime & Policing Group,MERSEYSIDE POLICE AUTHORITY 1 (G),1001313209," 389,016.49 ",
Home Office,Home Office  ,26/09/2012,Grants,CPG - Crime & Policing Group,MERSEYSIDE POLICE AUTHORITY 1 (G),1001313209," 252,107.00 ",
Home Office,Home Office  ,26/09/2012,Grants,CPG - Crime & Policing Group,MOJ - MINISTRY OF JUSTICE (G),3000045409," 3,283,104.11 ",
Home Office,Home Office  ,26/09/2012,Grants,CPG - Crime & Policing Group,NPIA - NATIONAL POLICING IMPROVEMENT AGENCY (G),1001313212," 110,027.00 ",
Home Office,Home Office  ,26/09/2012,Grants,CPG - Crime & Policing Group,NEW WEST MERCIA POLICE AUTHORITY (G),1001313213," 100,113.58 ",
Home Office,Home Office  ,26/09/2012,Grants,CPG - Crime & Policing Group,NORFOLK COUNTY COUNCIL 1 (G),1001313215," 63,629.91 ",
Home Office,Home Office  ,26/09/2012,Grants,CPG - Crime & Policing Group,NORFOLK POLICE AUTHORITY 1 (G),1001313216," 74,370.21 ",
Home Office,Home Office  ,26/09/2012,Grants,CPG - Crime & Policing Group,NORTH YORKSHIRE POLICE AUTHORITY (G),1001313219," 41,504.26 ",
Home Office,Home Office  ,26/09/2012,Grants,CPG - Crime & Policing Group,NORTHUMBRIA POLICE (G),1001313222," 148,834.10 ",
Home Office,Home Office  ,26/09/2012,Grants,CPG - Crime & Policing Group,NOTTINGHAMSHIRE POLICE AUTHORITY 2 (G),1001313225," 37,120.87 ",
Home Office,Home Office  ,26/09/2012,Grants,CPG - Crime & Policing Group,POLICE SERVICE OF NORTHERN IRELAND (G),1001313227," 47,486.64 ",
Home Office,Home Office  ,26/09/2012,Grants,CPG - Crime & Policing Group,SERIOUS FRAUD OFFICE (G),3000045411," 339,234.77 ",
Home Office,Home Office  ,27/09/2012,Grants,CPG - Crime & Policing Group,SERIOUS FRAUD OFFICE (G),3000045419," 947,747.81 ",
Home Office,Home Office  ,21/09/2012,Grants,CPG - Crime & Policing Group,SOCA (G),1001311337," 32,000,000.00 ",
Home Office,Home Office  ,26/09/2012,Grants,CPG - Crime & Policing Group,SOCA (G),1001313233," 876,096.62 ",
Home Office,Home Office  ,26/09/2012,Grants,CPG - Crime & Policing Group,SOUTH WALES POLICE AUTHORITY 1 (G),1001313234," 38,709.95 ",
Home Office,Home Office  ,26/09/2012,Grants,CPG - Crime & Policing Group,SOUTH WALES POLICE AUTHORITY 1 (G),1001313234," 248,488.00 ",
Home Office,Home Office  ,26/09/2012,Grants,CPG - Crime & Policing Group,SOUTH YORKSHIRE POLICE AUTHORITY 1 (G),1001313235," 113,988.57 ",
Home Office,Home Office  ,26/09/2012,Grants,CPG - Crime & Policing Group,STAFFORDSHIRE POLICE AUTHORITY (G),1001313237," 52,902.66 ",
Home Office,Home Office  ,26/09/2012,Grants,CPG - Crime & Policing Group,SUFFOLK POLICE AUTHORITY (G),1001313239," 84,200.84 ",
Home Office,Home Office  ,26/09/2012,Grants,CPG - Crime & Policing Group,SURREY POLICE AUTHORITY 1 (G),1001313241," 60,999.73 ",
Home Office,Home Office  ,26/09/2012,Grants,CPG - Crime & Policing Group,SUSSEX POLICE AUTHORITY 1 (G),1001313242," 62,342.88 ",
Home Office,Home Office  ,26/09/2012,Grants,CPG - Crime & Policing Group,THAMES VALLEY POLICE (G),1001313243," 218,953.62 ",
Home Office,Home Office  ,26/09/2012,Grants,CPG - Crime & Policing Group,WEST MIDLANDS POLICE AUTHORITY 1 (G),1001313245," 344,053.28 ",
Home Office,Home Office  ,26/09/2012,Grants,CPG - Crime & Policing Group,WEST MIDLANDS POLICE AUTHORITY 1 (G),1001313245," 244,744.00 ",
Home Office,Home Office  ,26/09/2012,Grants,CPG - Crime & Policing Group,WEST YORKSHIRE POLICE (G),1001313246," 215,349.70 ",
Home Office,Home Office  ,26/09/2012,Grants,CPG - Crime & Policing Group,WEST YORKSHIRE POLICE (G),1001313246," 291,731.00 ",
Home Office,Home Office  ,27/09/2012,"IT, TelecommsManaged Service.AMS Development",Communications,OPEN TEXT UK LTD,1001313430," 73,440.00 ",
Home Office,Home Office  ,18/09/2012,"Editorial, Design & Graphics.Advertising-non recruit",Communications,RAINEY KELLY CAMPBELL ROALFE/Y&R,1001309215," 180,000.00 ",
Home Office,Home Office  ,13/09/2012,"IT, TelecommsManaged Service.Software as Service (SaaS)",Communications,SAVVIS UK LTD,1001307534," 31,144.66 ",
Home Office,Home Office  ,04/09/2012,"IT, TelecommsManaged Service.Software as Service (SaaS)",Communications,SPECIALIST COMPUTER CENTRES PLC,1001303292," 25,767.60 ",
Home Office,Home Office  ,04/09/2012,"IT, TelecommsManaged Service.Software as Service (SaaS)",Communications,SPECIALIST COMPUTER CENTRES PLC,1001303292," 29,448.00 ",
Home Office,Home Office  ,11/09/2012,"IT, TelecommsManaged Service.Software as Service (SaaS)",Communications,SPECIALIST COMPUTER CENTRES PLC,1001306347," 63,681.30 ",
Home Office,NFA - National Fraud Authority,14/09/2012,"Operational Delivery, external supplier",NFA - National Fraud Authority,BROADCASTING SUPPORT SERVICES,1001307933," 171,979.66 ",
Home Office,Home Office  ,24/09/2012,Professional & Admin Services.Contractedoutrecruit services,Group HR,FCO SERVICES,3000045395," 63,709.20 ",
Home Office,Home Office  ,19/09/2012,"IT, Broadcasting & Telecomms",Group HR,HM REVENUE & CUSTOMS,3000045373," 29,649.36 ",
Home Office,Home Office  ,10/09/2012,Education & Training Services.Training & Development,Group HR,HM REVENUE & CUSTOMS,3000045331," 39,900.00 ",
Home Office,Home Office  ,20/09/2012,Legal Fees and Disbursements,Group HR,TREASURY SOLICITORS OFFICE,3000045385," 42,506.39 ",
Home Office,IPS - Identity & Passport Service,04/09/2012,Passport Production.Passport Application Form,IPS - Identity & Passport Service,ADARE LTD,1001303178," 38,134.15 ",
Home Office,IPS - Identity & Passport Service,11/09/2012,Passport Production.Passport Application Form,IPS - Identity & Passport Service,ADARE LTD,1001306263," 33,324.40 ",
Home Office,IPS - Identity & Passport Service,11/09/2012,Passport Production.Passport Application Form,IPS - Identity & Passport Service,ADARE LTD,1001306263," 142,785.10 ",
Home Office,IPS - Identity & Passport Service,13/09/2012,"Rent, Service charge",IPS - Identity & Passport Service,C B RICHARD ELLIS LTD,1001307476," 777,843.00 ",
Home Office,IPS - Identity & Passport Service,25/09/2012,"IT,TelecomTelephNtworkTelephon.Voice lines and Calls",IPS - Identity & Passport Service,CABLE & WIRELESS,1001312176," 49,956.23 ",
Home Office,IPS - Identity & Passport Service,10/09/2012,"IT, TelecommsManaged Service.Support (General)",IPS - Identity & Passport Service,CABLE & WIRELESS,1001305652," 110,749.32 ",
Home Office,IPS - Identity & Passport Service,04/09/2012,"Rent, Service charge",IPS - Identity & Passport Service,COLLIERS INTERNATIONAL,1001303208," 13,750.50 ",
Home Office,IPS - Identity & Passport Service,04/09/2012,"Rent, Service charge",IPS - Identity & Passport Service,COLLIERS INTERNATIONAL,1001303208," 96,000.00 ",
Home Office,IPS - Identity & Passport Service,06/09/2012,"IT, TelecommsManaged Service.Support (General)",IPS - Identity & Passport Service,COMPUTACENTER (UK) LTD,1001304807," 60,237.60 ",
Home Office,IPS - Identity & Passport Service,19/09/2012,"IT, TelecommsManaged Service.Support (General)",IPS - Identity & Passport Service,CSC COMPUTER SCIENCES CORPORATION,6200030254," 87,310.55 ",
Home Office,IPS - Identity & Passport Service,17/09/2012,IT & Telecoms Components.Computer Equip (FA),IPS - Identity & Passport Service,CSC COMPUTER SCIENCES CORPORATION,1001308580," 85,054.80 ",
Home Office,IPS - Identity & Passport Service,17/09/2012,IT & Telecoms Components.Computer Equip (FA),IPS - Identity & Passport Service,CSC COMPUTER SCIENCES CORPORATION,1001308580," 2,616.00 ",
Home Office,IPS - Identity & Passport Service,17/09/2012,IT & Telecoms Components.Computer Equip (FA),IPS - Identity & Passport Service,CSC COMPUTER SCIENCES CORPORATION,1001308580," 57,284.40 ",
Home Office,IPS - Identity & Passport Service,17/09/2012,IT & Telecoms Components.Computer Equip (FA),IPS - Identity & Passport Service,CSC COMPUTER SCIENCES CORPORATION,1001308580, 576.00 ,
Home Office,IPS - Identity & Passport Service,25/09/2012,"IT, Tele ApplicConsult&Develop.Plan & Design Consult",IPS - Identity & Passport Service,CSC COMPUTER SCIENCES CORPORATION,1001312194," 125,079.60 ",
Home Office,IPS - Identity & Passport Service,06/09/2012,IT & Telecoms Components.Computer Equip (FA),IPS - Identity & Passport Service,CSC COMPUTER SCIENCES CORPORATION,1001304810," 67,785.56 ",
Home Office,IPS - Identity & Passport Service,04/09/2012,"IT & Telecoms Components.Computer Equip  (FA). Servers, notebook computers, personal data assistant (PDAs), personal computers, workstations, visual display units (VDUs), keyboards, printers",IPS - Identity & Passport Service,CSC COMPUTER SCIENCES CORPORATION,1001303214," 40,079.20 ",
Home Office,IPS - Identity & Passport Service,12/09/2012,"IT, TelecommsManaged Service.Support (General)",IPS - Identity & Passport Service,CSC COMPUTER SCIENCES CORPORATION,1001306931," 297,652.82 ",
Home Office,IPS - Identity & Passport Service,13/09/2012,"IT, TelecommsManaged Service.Support (General)",IPS - Identity & Passport Service,CSC COMPUTER SCIENCES CORPORATION,1001307488," 455,756.06 ",
Home Office,IPS - Identity & Passport Service,12/09/2012,"IT, TelecommsManaged Service.Support (General)",IPS - Identity & Passport Service,CSC COMPUTER SCIENCES CORPORATION,1001306931," 68,882.44 ",
Home Office,IPS - Identity & Passport Service,12/09/2012,IT Run Cost,IPS - Identity & Passport Service,CSC COMPUTER SCIENCES CORPORATION,1001306931," 11,480.63 ",
Home Office,IPS - Identity & Passport Service,12/09/2012,"IT, TelecommsManaged Service.Support (General)",IPS - Identity & Passport Service,CSC COMPUTER SCIENCES CORPORATION,1001306931," 156,819.60 ",
Home Office,IPS - Identity & Passport Service,12/09/2012,"IT, TelecommsManaged Service.Support (General)",IPS - Identity & Passport Service,CSC COMPUTER SCIENCES CORPORATION,1001306931," 40,272.00 ",
Home Office,IPS - Identity & Passport Service,12/09/2012,"IT, TelecommsManaged Service.Support (General)",IPS - Identity & Passport Service,CSC COMPUTER SCIENCES CORPORATION,1001306931," 77,378.47 ",
Home Office,IPS - Identity & Passport Service,12/09/2012,"IT, TelecommsManaged Service.Support (General)",IPS - Identity & Passport Service,CSC COMPUTER SCIENCES CORPORATION,1001306931," 12,896.82 ",
Home Office,IPS - Identity & Passport Service,13/09/2012,"IT, TelecommsManaged Service.Support (General)",IPS - Identity & Passport Service,CSC COMPUTER SCIENCES CORPORATION,1001307488," 73,874.22 ",
Home Office,IPS - Identity & Passport Service,21/09/2012,"IT, TelecommsManaged Service.Support (General)",IPS - Identity & Passport Service,CSC COMPUTER SCIENCES CORPORATION,1001311010," 30,630.40 ",
Home Office,IPS - Identity & Passport Service,21/09/2012,"IT, TelecommsManaged Service.Support (General)",IPS - Identity & Passport Service,CSC COMPUTER SCIENCES CORPORATION,1001311010," 30,121.40 ",
Home Office,IPS - Identity & Passport Service,21/09/2012,Passport Production.BPO Volumetric Charges,IPS - Identity & Passport Service,CSC COMPUTER SCIENCES CORPORATION,1001311010," 26,097.06 ",
Home Office,IPS - Identity & Passport Service,21/09/2012,Passport Production.BPO Volumetric Charges,IPS - Identity & Passport Service,CSC COMPUTER SCIENCES CORPORATION,1001311010," 25,377.06 ",
Home Office,IPS - Identity & Passport Service,21/09/2012,Passport Production.BPO Volumetric Charges,IPS - Identity & Passport Service,CSC COMPUTER SCIENCES CORPORATION,1001311010," 25,662.06 ",
Home Office,IPS - Identity & Passport Service,21/09/2012,"IT, TelecommsManaged Service.Support (General)",IPS - Identity & Passport Service,CSC COMPUTER SCIENCES CORPORATION,1001311010," 12,933.37 ",
Home Office,IPS - Identity & Passport Service,21/09/2012,"IT, TelecommsManaged Service.Support (General)",IPS - Identity & Passport Service,CSC COMPUTER SCIENCES CORPORATION,1001311010," 169,867.20 ",
Home Office,IPS - Identity & Passport Service,21/09/2012,"IT, TelecommsManaged Service.Support (General)",IPS - Identity & Passport Service,CSC COMPUTER SCIENCES CORPORATION,1001311010," 39,299.20 ",
Home Office,IPS - Identity & Passport Service,21/09/2012,"IT, TelecommsManaged Service.Support (General)",IPS - Identity & Passport Service,CSC COMPUTER SCIENCES CORPORATION,1001311010," 39,523.20 ",
Home Office,IPS - Identity & Passport Service,21/09/2012,"IT, TelecommsManaged Service.Support (General)",IPS - Identity & Passport Service,CSC COMPUTER SCIENCES CORPORATION,1001311010," 15,113.60 ",
Home Office,IPS - Identity & Passport Service,21/09/2012,"IT, TelecommsManaged Service.Support (General)",IPS - Identity & Passport Service,CSC COMPUTER SCIENCES CORPORATION,1001311010," 14,862.60 ",
Home Office,IPS - Identity & Passport Service,26/09/2012,"IT, TelecommsManaged Service.Support (General)",IPS - Identity & Passport Service,CSC COMPUTER SCIENCES CORPORATION,1001312784," 480,051.60 ",
Home Office,IPS - Identity & Passport Service,26/09/2012,"IT, TelecommsManaged Service.AMS Development",IPS - Identity & Passport Service,CSC COMPUTER SCIENCES CORPORATION,1001312784," 521,554.00 ",
Home Office,IPS - Identity & Passport Service,26/09/2012,"IT, TelecommsManaged Service.AMS Development",IPS - Identity & Passport Service,CSC COMPUTER SCIENCES CORPORATION,1001312784," 599,721.00 ",
Home Office,IPS - Identity & Passport Service,26/09/2012,"IT, TelecommsManaged Service.AMS Development",IPS - Identity & Passport Service,CSC COMPUTER SCIENCES CORPORATION,1001312784," 606,894.00 ",
Home Office,IPS - Identity & Passport Service,26/09/2012,"IT, TelecommsManaged Service.AMS Development",IPS - Identity & Passport Service,CSC COMPUTER SCIENCES CORPORATION,1001312784," 597,094.00 ",
Home Office,IPS - Identity & Passport Service,26/09/2012,"IT, TelecommsManaged Service.AMS Development",IPS - Identity & Passport Service,CSC COMPUTER SCIENCES CORPORATION,1001312784," 508,097.00 ",
Home Office,IPS - Identity & Passport Service,28/09/2012,"IT, TelecommsSoftware (COTS).Desk Software-Supply &Maintenance",IPS - Identity & Passport Service,CSC COMPUTER SCIENCES CORPORATION,1001313971," 28,951.64 ",
Home Office,IPS - Identity & Passport Service,28/09/2012,"IT, TelecommsSoftware (COTS).Sys Software Supply & Maintenance",IPS - Identity & Passport Service,CSC COMPUTER SCIENCES CORPORATION,1001313971," 85,881.28 ",
Home Office,IPS - Identity & Passport Service,28/09/2012,"IT, TelecommsSoftware (COTS).Sys Software Supply & Maintenance",IPS - Identity & Passport Service,CSC COMPUTER SCIENCES CORPORATION,1001313971," 108,005.26 ",
Home Office,IPS - Identity & Passport Service,28/09/2012,"IT, TelecommsSoftware (COTS).Sys Software Supply & Maintenance",IPS - Identity & Passport Service,CSC COMPUTER SCIENCES CORPORATION,1001313971," 231,628.10 ",
Home Office,IPS - Identity & Passport Service,28/09/2012,"IT, TelecommsSoftware (COTS).Sys Software Supply & Maintenance",IPS - Identity & Passport Service,CSC COMPUTER SCIENCES CORPORATION,1001313971," 107,474.29 ",
Home Office,IPS - Identity & Passport Service,28/09/2012,"IT, Broadcasting & Telecomms",IPS - Identity & Passport Service,CSC COMPUTER SCIENCES CORPORATION,1001313971," 85,084.97 ",
Home Office,IPS - Identity & Passport Service,28/09/2012,"IT, Broadcasting & Telecomms",IPS - Identity & Passport Service,CSC COMPUTER SCIENCES CORPORATION,1001313971," 3,664.70 ",
Home Office,IPS - Identity & Passport Service,28/09/2012,"IT, Broadcasting & Telecomms",IPS - Identity & Passport Service,CSC COMPUTER SCIENCES CORPORATION,1001313971," 52,058.60 ",
Home Office,IPS - Identity & Passport Service,28/09/2012,"IT, Broadcasting & Telecomms",IPS - Identity & Passport Service,CSC COMPUTER SCIENCES CORPORATION,1001313971," 46,843.37 ",
Home Office,IPS - Identity & Passport Service,06/09/2012,IT & Telecoms Components.Computer Equip (FA),IPS - Identity & Passport Service,CSC COMPUTER SCIENCES CORPORATION,1001304810,"-49,491.85 ",
Home Office,IPS - Identity & Passport Service,17/09/2012,IT & Telecoms Components.Computer Equip (FA),IPS - Identity & Passport Service,CSC COMPUTER SCIENCES CORPORATION,1001308580,"-43,281.70 ",
Home Office,IPS - Identity & Passport Service,17/09/2012,IT & Telecoms Components.Computer Equip (FA),IPS - Identity & Passport Service,CSC COMPUTER SCIENCES CORPORATION,1001308580,"-77,662.88 ",
Home Office,IPS - Identity & Passport Service,24/09/2012,Passport Production.Biometric Standard Printing,IPS - Identity & Passport Service,DE LA RUE INTERNATIONAL LTD,1001311528," 4,686,155.36 ",
Home Office,IPS - Identity & Passport Service,11/09/2012,"Rent, Service charge",IPS - Identity & Passport Service,DEPARTMENT FOR WORK & PENSIONS (DWP),1001306287," 71,840.19 ",
Home Office,IPS - Identity & Passport Service,18/09/2012,Secure Delivery Costs,IPS - Identity & Passport Service,DX SECURE LTD,1001309161," 205,476.03 ",
Home Office,IPS - Identity & Passport Service,18/09/2012,Secure Delivery Costs,IPS - Identity & Passport Service,DX SECURE LTD,1001309161," 832,811.37 ",
Home Office,IPS - Identity & Passport Service,18/09/2012,Secure Delivery Costs,IPS - Identity & Passport Service,DX SECURE LTD,1001309161," 160,680.97 ",
Home Office,IPS - Identity & Passport Service,18/09/2012,Secure Delivery Costs,IPS - Identity & Passport Service,DX SECURE LTD,1001309161," 159,570.49 ",
Home Office,IPS - Identity & Passport Service,18/09/2012,Secure Delivery Costs,IPS - Identity & Passport Service,DX SECURE LTD,1001309161," 156,790.97 ",
Home Office,IPS - Identity & Passport Service,18/09/2012,Secure Delivery Costs,IPS - Identity & Passport Service,DX SECURE LTD,1001309161," 163,781.69 ",
Home Office,IPS - Identity & Passport Service,18/09/2012,Secure Delivery Costs,IPS - Identity & Passport Service,DX SECURE LTD,1001309161," 154,381.53 ",
Home Office,IPS - Identity & Passport Service,18/09/2012,Secure Delivery Costs,IPS - Identity & Passport Service,DX SECURE LTD,1001309161," 172,855.34 ",
Home Office,IPS - Identity & Passport Service,13/09/2012,Secure Delivery Costs,IPS - Identity & Passport Service,DX SECURE LTD,1001307496," 56,939.20 ",
Home Office,IPS - Identity & Passport Service,28/09/2012,"Rent, Service charge",IPS - Identity & Passport Service,EDDISONS COMMERCIALPROPERTY MANAGEMENT LTD,1001313979," 391,761.60 ",
Home Office,IPS - Identity & Passport Service,24/09/2012,"Rent, Service charge",IPS - Identity & Passport Service,LAMBERT SMITH HAMPTON,1001311558," 5,852.88 ",
Home Office,IPS - Identity & Passport Service,24/09/2012,"Rent, Service charge",IPS - Identity & Passport Service,LAMBERT SMITH HAMPTON,1001311558," 21,510.00 ",
Home Office,IPS - Identity & Passport Service,24/09/2012,"Rent, Service charge",IPS - Identity & Passport Service,LAMBERT SMITH HAMPTON,1001311558," 6,029.46 ",
Home Office,IPS - Identity & Passport Service,24/09/2012,"Rent, Service charge",IPS - Identity & Passport Service,LAMBERT SMITH HAMPTON,1001311558," 20,755.50 ",
Home Office,IPS - Identity & Passport Service,24/09/2012,"Rent, Service charge",IPS - Identity & Passport Service,LAMBERT SMITH HAMPTON,1001311558," 9,102.83 ",
Home Office,IPS - Identity & Passport Service,24/09/2012,"Rent, Service charge",IPS - Identity & Passport Service,LAMBERT SMITH HAMPTON,1001311558," 32,580.90 ",
Home Office,IPS - Identity & Passport Service,27/09/2012,"IT, TelecommsHardware Desktop.Support and Maintenance",IPS - Identity & Passport Service,MANTECH SOLUTIONS AND TECHNOLO,7000007139," 68,988.76 ",
Home Office,IPS - Identity & Passport Service,25/09/2012,Passport Production.Telecom PDP RunningCost,IPS - Identity & Passport Service,MM TELEPERFORMANCE LTD T/A TELEPERFORMANCE,1001312237,"-46,561.54 ",
Home Office,IPS - Identity & Passport Service,25/09/2012,Passport Production.Telecom PDP RunningCost,IPS - Identity & Passport Service,MM TELEPERFORMANCE LTD T/A TELEPERFORMANCE,1001312237,"-64,505.57 ",
Home Office,IPS - Identity & Passport Service,25/09/2012,Passport Production.Telecom PDP RunningCost,IPS - Identity & Passport Service,MM TELEPERFORMANCE LTD T/A TELEPERFORMANCE,1001312237,"-200,296.03 ",
Home Office,IPS - Identity & Passport Service,25/09/2012,Passport Production.Telecom PDP RunningCost,IPS - Identity & Passport Service,MM TELEPERFORMANCE LTD T/A TELEPERFORMANCE,1001312237," 200,296.03 ",
Home Office,IPS - Identity & Passport Service,25/09/2012,Call management systems,IPS - Identity & Passport Service,MM TELEPERFORMANCE LTD T/A TELEPERFORMANCE,1001312237," 197,348.67 ",
Home Office,IPS - Identity & Passport Service,25/09/2012,"IT, Broadcasting & Telecomms",IPS - Identity & Passport Service,MM TELEPERFORMANCE LTD T/A TELEPERFORMANCE,1001312237," 197,131.67 ",
Home Office,IPS - Identity & Passport Service,25/09/2012,"IT, Broadcasting & Telecomms",IPS - Identity & Passport Service,MM TELEPERFORMANCE LTD T/A TELEPERFORMANCE,1001312237," 191,967.78 ",
Home Office,IPS - Identity & Passport Service,25/09/2012,Passport Production.Telecom PDP RunningCost,IPS - Identity & Passport Service,MM TELEPERFORMANCE LTD T/A TELEPERFORMANCE,1001312237," 1,135,689.88 ",
Home Office,IPS - Identity & Passport Service,13/09/2012,Passport Production.Telecom PDP RunningCost,IPS - Identity & Passport Service,MM TELEPERFORMANCE LTD T/A TELEPERFORMANCE,1001307519," 127,529.17 ",
Home Office,IPS - Identity & Passport Service,17/09/2012,Passport Production.Telecom PDP RunningCost,IPS - Identity & Passport Service,MM TELEPERFORMANCE LTD T/A TELEPERFORMANCE,1001308621," 2,094,416.01 ",
Home Office,IPS - Identity & Passport Service,13/09/2012,Passport Production.Telecom PDP RunningCost,IPS - Identity & Passport Service,MM TELEPERFORMANCE LTD T/A TELEPERFORMANCE,1001307519," 151,282.23 ",
Home Office,IPS - Identity & Passport Service,13/09/2012,Passport Production.Telecom PDP RunningCost,IPS - Identity & Passport Service,MM TELEPERFORMANCE LTD T/A TELEPERFORMANCE,1001307519," 173,590.54 ",
Home Office,IPS - Identity & Passport Service,17/09/2012,Passport Production.Telecom PDP RunningCost,IPS - Identity & Passport Service,MM TELEPERFORMANCE LTD T/A TELEPERFORMANCE,1001308621," 1,548,513.31 ",
Home Office,IPS - Identity & Passport Service,13/09/2012,Passport Production.Telecom PDP RunningCost,IPS - Identity & Passport Service,MM TELEPERFORMANCE LTD T/A TELEPERFORMANCE,1001307519," 88,531.20 ",
Home Office,IPS - Identity & Passport Service,05/09/2012,"IT, Broadcasting & Telecomms",IPS - Identity & Passport Service,NEDSTAT LTD,1001304347," 28,620.00 ",
Home Office,IPS - Identity & Passport Service,10/09/2012,"IT, TelecommsManaged Service.Support (General)",IPS - Identity & Passport Service,STORM TECHNOLOGIES LTD,1001305721," 75,571.61 ",
Home Office,IPS - Identity & Passport Service,03/09/2012,Legal Fees and Disbursements,IPS - Identity & Passport Service,TREASURY SOLICITORS OFFICE,3000045303," 27,934.37 ",
Home Office,Home Office,21/09/2012,"Science, Technical & Research.Testing",HOS - Home Office Science,OPENVIEW SECURITY SOLUTIONS LTD,1001311076," 26,636.26 ",
Home Office,Home Office,26/09/2012,"Science, Technical & Research.Testing",HOS - Home Office Science,RANDOX LABORATORIES LTD,1001312831," 31,249.99 ",
Home Office,Home Office,26/09/2012,FM Allocation Control,HOS - Home Office Science,DTZ DEBENHAM TIE LEUNG LTD,1001312789," 36,309.44 ",
Home Office,Home Office,04/09/2012,"IT, Broadcasting & Telecomms",HOS - Home Office Science,FINCORE LTD,1001303223," 86,400.00 ",
Home Office,Home Office,26/09/2012,Arval Fuel Card - INVOICE,SSD - Shared Service Directorate,ALLSTAR BUSINESS SOLUTIONS LTD,1001312745," 139,372.53 ",
Home Office,Home Office,19/09/2012,Professional & Admin Services.Facilities Man Serv - ADMN,SSD - Shared Service Directorate,AMEY COMMUNITY,6200030252,"-25,509.90 ",
Home Office,Home Office,21/09/2012,Professional & Admin Services.Facilities Man Serv - ADMN,SSD - Shared Service Directorate,AMEY COMMUNITY,1001310977,"-22,440.10 ",
Home Office,Home Office,21/09/2012,"Building, Construction Services",SSD - Shared Service Directorate,AMEY COMMUNITY,1001310977," 100,413.76 ",
Home Office,Home Office,21/09/2012,HOPG Building Maintenance Reactive,SSD - Shared Service Directorate,AMEY COMMUNITY,1001310977," 27,409.92 ",
Home Office,Home Office,21/09/2012,"Building, Construction Services",SSD - Shared Service Directorate,AMEY COMMUNITY,1001310977," 132,480.70 ",
Home Office,Home Office,21/09/2012,"Building, Construction Services",SSD - Shared Service Directorate,AMEY COMMUNITY,1001310977," 109,546.06 ",
Home Office,Home Office,21/09/2012,"Building, Construction Services",SSD - Shared Service Directorate,AMEY COMMUNITY,1001310977," 514,057.87 ",
Home Office,Home Office,21/09/2012,"Building, Construction Services",SSD - Shared Service Directorate,AMEY COMMUNITY,1001310977," 269,692.43 ",
Home Office,Home Office,21/09/2012,"Building, Construction Services",SSD - Shared Service Directorate,AMEY COMMUNITY,1001310977," 75,398.50 ",
Home Office,Home Office,28/09/2012,HOPG Building Maintenance Reactive,SSD - Shared Service Directorate,AMEY COMMUNITY,1001313936," 62,757.08 ",
Home Office,Home Office,21/09/2012,HOPG Building Maintenance Reactive,SSD - Shared Service Directorate,AMEY COMMUNITY,1001310977," 94,779.55 ",
Home Office,Home Office,21/09/2012,"Building, Construction Services",SSD - Shared Service Directorate,AMEY COMMUNITY,1001310977," 44,622.76 ",
Home Office,Home Office,21/09/2012,"Building, Construction Services",SSD - Shared Service Directorate,AMEY COMMUNITY,1001310977," 40,227.73 ",
Home Office,Home Office,21/09/2012,HOPG Building Maintenance Reactive,SSD - Shared Service Directorate,AMEY COMMUNITY,1001310977," 46,899.79 ",
Home Office,Home Office,21/09/2012,"Building, Construction Services",SSD - Shared Service Directorate,AMEY COMMUNITY,1001310977," 34,696.54 ",
Home Office,Home Office,21/09/2012,HOPG Building Maintenance Reactive,SSD - Shared Service Directorate,AMEY COMMUNITY,1001310977," 52,513.24 ",
Home Office,Home Office,19/09/2012,"Building, Construction Services",SSD - Shared Service Directorate,AMEY COMMUNITY,1001309796," 28,064.12 ",
Home Office,Home Office,26/09/2012,"Building, Construction Services",SSD - Shared Service Directorate,AMEY COMMUNITY,1001312746," 32,232.24 ",
Home Office,Home Office,19/09/2012,"Building, Construction Services",SSD - Shared Service Directorate,AMEY COMMUNITY,1001309798," 227,197.03 ",
Home Office,Home Office,26/09/2012,HOPG PFI Management Services,SSD - Shared Service Directorate,ANNES GATE PROPERTY PLC,1001312748," 4,021,043.77 ",
Home Office,Home Office,18/09/2012,"IT, TelecommsHardware Server.Support and Maintenance",SSD - Shared Service Directorate,ATOS I T SERVICES UK LTD,1001309135," 94,920.00 ",
Home Office,Home Office,12/09/2012,"IT, Broadcasting & Telecomms",SSD - Shared Service Directorate,ATOS I T SERVICES UK LTD,1001306907," 195,357.62 ",
Home Office,Home Office,11/09/2012,"IT, Broadcasting & Telecomms",SSD - Shared Service Directorate,ATOS I T SERVICES UK LTD,1001306267," 28,000.00 ",
Home Office,Home Office,11/09/2012,"IT, Broadcasting & Telecomms",SSD - Shared Service Directorate,ATOS I T SERVICES UK LTD,1001306267," 18,000.00 ",
Home Office,Home Office,28/09/2012,"IT, Broadcasting & Telecomms",SSD - Shared Service Directorate,ATOS I T SERVICES UK LTD,6200030296," 140,192.30 ",
Home Office,Home Office,12/09/2012,"Transport, Storage & Mail Services",SSD - Shared Service Directorate,CENTRAL DESPATCH,1001306923," 59,739.36 ",
Home Office,Home Office,10/09/2012,Management & Admin Serv.Temp IT N/w Specialists - ADMN,SSD - Shared Service Directorate,DETICA LTD,1001305664," 68,238.00 ",
Home Office,Home Office,10/09/2012,Management & Admin Serv.Temp IT N/w Specialists - ADMN,SSD - Shared Service Directorate,DETICA LTD,1001305664, 582.12 ,
Home Office,Home Office,04/09/2012,HOPG Estates Professional Services,SSD - Shared Service Directorate,DRIVERS JONAS DELOITTE,1001303218," 29,550.04 ",
Home Office,Home Office,14/09/2012,HOPG Estates Professional Services,SSD - Shared Service Directorate,DRIVERS JONAS DELOITTE,1001307948," 27,807.22 ",
Home Office,Home Office,17/09/2012,HOPG Contracted Out Services,SSD - Shared Service Directorate,DTZ DEBENHAM TIE LEUNG LTD,1001308587," 38,358.80 ",
Home Office,Home Office,21/09/2012,HOPG Contracted Out Services,SSD - Shared Service Directorate,DTZ DEBENHAM TIE LEUNG LTD,1001311020," 28,800.00 ",
Home Office,Home Office,17/09/2012,HOPG Contracted Out Services,SSD - Shared Service Directorate,DTZ DEBENHAM TIE LEUNG LTD,1001308587," 38,207.82 ",
Home Office,Home Office,20/09/2012,"Estates advice + rents, rates, service charges",SSD - Shared Service Directorate,DTZ DEBENHAM TIE LEUNG LTD,1001310621," 1,699,751.85 ",
Home Office,Home Office,04/09/2012,"Estates advice + rents, rates, service charges",SSD - Shared Service Directorate,DTZ DEBENHAM TIE LEUNG LTD,4000004155," 62,786.40 ",
Home Office,Home Office,06/09/2012,"Estates advice + rents, rates, service charges",SSD - Shared Service Directorate,DTZ DEBENHAM TIE LEUNG LTD,1001304816," 361,221.36 ",
Home Office,Home Office,06/09/2012,"Estates advice + rents, rates, service charges",SSD - Shared Service Directorate,DTZ DEBENHAM TIE LEUNG LTD,1001304816," 489,032.10 ",
Home Office,Home Office,13/09/2012,"Estates advice + rents, rates, service charges",SSD - Shared Service Directorate,DTZ DEBENHAM TIE LEUNG LTD,1001307494," 30,801.10 ",
Home Office,Home Office,20/09/2012,"Estates advice + rents, rates, service charges",SSD - Shared Service Directorate,DTZ DEBENHAM TIE LEUNG LTD,1001310618," 6,354,786.23 ",
Home Office,Home Office,20/09/2012,"Estates advice + rents, rates, service charges",SSD - Shared Service Directorate,DTZ DEBENHAM TIE LEUNG LTD,1001310618," 569,340.04 ",
Home Office,Home Office,20/09/2012,"Estates advice + rents, rates, service charges",SSD - Shared Service Directorate,DTZ DEBENHAM TIE LEUNG LTD,1001310619," 341,666.83 ",
Home Office,Home Office,06/09/2012,"Estates advice + rents, rates, service charges",SSD - Shared Service Directorate,DTZ DEBENHAM TIE LEUNG LTD,1001304817," 420,642.39 ",
Home Office,Home Office,13/09/2012,"Estates advice + rents, rates, service charges",SSD - Shared Service Directorate,DTZ DEBENHAM TIE LEUNG LTD,1001307495," 66,870.49 ",
Home Office,Home Office,20/09/2012,"Estates advice + rents, rates, service charges",SSD - Shared Service Directorate,DTZ DEBENHAM TIE LEUNG LTD,1001310620," 12,582,312.76 ",
Home Office,Home Office,20/09/2012,"Estates advice + rents, rates, service charges",SSD - Shared Service Directorate,DTZ DEBENHAM TIE LEUNG LTD,1001310620," 2,146,069.67 ",
Home Office,Home Office,06/09/2012,HOPG Utilities Electric.Utilities Electric,SSD - Shared Service Directorate,EDF ENERGY,1001304819," 120,452.04 ",
Home Office,Home Office,12/09/2012,HOPG Utilities Electric.Utilities Electric,SSD - Shared Service Directorate,EDF ENERGY,1001306938," 124,364.65 ",
Home Office,Home Office,19/09/2012,"IT, Broadcasting & Telecomms",SSD - Shared Service Directorate,FUJITSU SERVICES (ALCEDO) LTD,1001309848," 423,114.00 ",
Home Office,Home Office,20/09/2012,"IT, TelecommsHardware Desktop.Support and Maintenance",SSD - Shared Service Directorate,FUJITSU SERVICES (ALCEDO) LTD,1001310635," 34,190.46 ",
Home Office,Home Office,25/09/2012,Sirius - Telephony Services,SSD - Shared Service Directorate,FUJITSU SERVICES (ALCEDO) LTD,1001312211," 632,426.82 ",
Home Office,Home Office,25/09/2012,Internet Solution DevelopSirius IT2000 Contract: Sirius Other Services And Other IS/IT,SSD - Shared Service Directorate,FUJITSU SERVICES (ALCEDO) LTD,1001312211," 614,741.25 ",
Home Office,Home Office,25/09/2012,Internet Solution DevelopSirius IT2000 Contract: Sirius Other Services And Other IS/IT,SSD - Shared Service Directorate,FUJITSU SERVICES (ALCEDO) LTD,1001312211," 1,238,081.82 ",
Home Office,Home Office,25/09/2012,Internet Solution DevelopSirius IT2000 Contract: Sirius Other Services And Other IS/IT,SSD - Shared Service Directorate,FUJITSU SERVICES (ALCEDO) LTD,1001312211," 724,529.49 ",
Home Office,Home Office,25/09/2012,Internet Solution DevelopSirius IT2000 Contract: Sirius Other Services And Other IS/IT,SSD - Shared Service Directorate,FUJITSU SERVICES (ALCEDO) LTD,1001312211," 651,116.69 ",
Home Office,Home Office,25/09/2012,Internet Solution DevelopSirius IT2000 Contract: Sirius Other Services And Other IS/IT,SSD - Shared Service Directorate,FUJITSU SERVICES (ALCEDO) LTD,1001312211," 1,015,668.67 ",
Home Office,Home Office,25/09/2012,Internet Solution DevelopSirius IT2000 Contract: Sirius Other Services And Other IS/IT,SSD - Shared Service Directorate,FUJITSU SERVICES (ALCEDO) LTD,1001312211," 973,153.57 ",
Home Office,Home Office,25/09/2012,Internet Solution DevelopSirius IT2000 Contract: Sirius Other Services And Other IS/IT,SSD - Shared Service Directorate,FUJITSU SERVICES (ALCEDO) LTD,1001312211," 1,256,600.78 ",
Home Office,Home Office,25/09/2012,Internet Solution DevelopSirius IT2000 Contract: Sirius Other Services And Other IS/IT,SSD - Shared Service Directorate,FUJITSU SERVICES (ALCEDO) LTD,1001312211," 654,144.23 ",
Home Office,Home Office,25/09/2012,Internet Solution DevelopSirius IT2000 Contract: Sirius Other Services And Other IS/IT,SSD - Shared Service Directorate,FUJITSU SERVICES (ALCEDO) LTD,1001312211," 917,002.36 ",
Home Office,Home Office,25/09/2012,"IT, TelecommsHardware.Peripheral",SSD - Shared Service Directorate,FUJITSU SERVICES (ALCEDO) LTD,1001312211," 833,545.42 ",
Home Office,Home Office,25/09/2012,Internet Solution DevelopSirius IT2000 Contract: Sirius Other Services And Other IS/IT,SSD - Shared Service Directorate,FUJITSU SERVICES (ALCEDO) LTD,1001312211,"-105,000.00 ",
Home Office,Home Office,12/09/2012,"IT, TelecommsSoftware (COTS).System Software",SSD - Shared Service Directorate,FUJITSU SERVICES (ALCEDO) LTD,1001306942," 108,253.43 ",
Home Office,Home Office,04/09/2012,"IT, Broadcasting & Telecomms",SSD - Shared Service Directorate,FUJITSU SERVICES (ALCEDO) LTD,1001303226," 103,248.00 ",
Home Office,Home Office,06/09/2012,"IT, Broadcasting & Telecomms",SSD - Shared Service Directorate,FUJITSU SERVICES (ALCEDO) LTD,1001304824," 169,056.00 ",
Home Office,Home Office,06/09/2012,"IT, TelecommsHardware.Peripheral",SSD - Shared Service Directorate,FUJITSU SERVICES (ALCEDO) LTD,1001304824," 71,068.68 ",
Home Office,Home Office,10/09/2012,"IT, TelecommsHardware.Peripheral",SSD - Shared Service Directorate,FUJITSU SERVICES (ALCEDO) LTD,1001305678," 51,567.24 ",
Home Office,Home Office,25/09/2012,"IT, TelecommsHardware Desktop.Support and Maintenance",SSD - Shared Service Directorate,FUJITSU SERVICES (ALCEDO) LTD,1001312211," 89,821.47 ",
Home Office,Home Office,17/09/2012,"IT, TelecommsHardware Desktop.Support and Maintenance",SSD - Shared Service Directorate,FUJITSU SERVICES (ALCEDO) LTD,1001308598,"-34,190.46 ",
Home Office,Home Office,25/09/2012,"IT, TelecommsHardware Desktop.Support and Maintenance",SSD - Shared Service Directorate,FUJITSU SERVICES (ALCEDO) LTD,1001312211,"-89,821.47 ",
Home Office,Home Office,27/09/2012,"IT, TelecommsHardware Desktop.Support and Maintenance",SSD - Shared Service Directorate,FUJITSU SERVICES LTD,1001313396," 85,725.60 ",
Home Office,Home Office,11/09/2012,HOPG Construction  Framework .Construction Fit Out Framework,SSD - Shared Service Directorate,GALLIFORD TRY CONSTRUCTION LTD,1001306298," 145,183.38 ",
Home Office,Home Office,28/09/2012,"IT, TelecommsHardware Desktop.Support and Maintenance",SSD - Shared Service Directorate,HEWLETT PACKARD,1001313991," 77,258.75 ",
Home Office,Home Office,28/09/2012,"IT, TelecommsHardware Desktop.Support and Maintenance",SSD - Shared Service Directorate,HEWLETT PACKARD,1001313991," 93,858.16 ",
Home Office,Home Office,28/09/2012,"IT, TelecommsHardware Desktop.Support and Maintenance",SSD - Shared Service Directorate,HEWLETT PACKARD,1001313991," 37,196.77 ",
Home Office,Home Office,28/09/2012,"IT, TelecommsHardware Desktop.Support and Maintenance",SSD - Shared Service Directorate,HEWLETT PACKARD,1001313991," 3,099.96 ",
Home Office,Home Office,28/09/2012,"IT, TelecommsHardware Desktop.Support and Maintenance",SSD - Shared Service Directorate,HEWLETT PACKARD,1001313991," 5,614.38 ",
Home Office,Home Office,28/09/2012,"IT, TelecommsHardware Desktop.Support and Maintenance",SSD - Shared Service Directorate,HEWLETT PACKARD,1001313991," 54,813.44 ",
Home Office,Home Office,24/09/2012,Grants,SSD - Shared Service Directorate,HM REVENUE & CUSTOMS (G),3000045398," 237,019.82 ",
Home Office,Home Office,27/09/2012,"IT, Broadcasting & Telecomms",SSD - Shared Service Directorate,IBM DIRECT UNITED KINGDOM LTD,1001313404," 1,621,118.40 ",
Home Office,Home Office,27/09/2012,"IT, Broadcasting & Telecomms",SSD - Shared Service Directorate,IBM DIRECT UNITED KINGDOM LTD,1001313404,"-231,360.00 ",
Home Office,Home Office,19/09/2012,General building construction,SSD - Shared Service Directorate,INTERSERVE CONSTRUCTION LTD,1001309857," 139,995.60 ",
Home Office,Home Office,28/09/2012,"Building, Construction Services",SSD - Shared Service Directorate,INTERSERVE FACILITIES MANAGEMENT,4000004158,"-328,418.89 ",
Home Office,Home Office,28/09/2012,"Building, Construction Services",SSD - Shared Service Directorate,INTERSERVE FACILITIES MANAGEMENT,4000004158," 664,944.19 ",
Home Office,Home Office,28/09/2012,"Building, Construction Services",SSD - Shared Service Directorate,INTERSERVE FACILITIES MANAGEMENT,4000004158," 72,296.99 ",
Home Office,Home Office,05/09/2012,HOPG Building Maintenance Reactive,SSD - Shared Service Directorate,INTERSERVE FACILITIES MANAGEMENT,1001304335," 25,741.70 ",
Home Office,Home Office,05/09/2012,HOPG Building Maintenance Reactive,SSD - Shared Service Directorate,INTERSERVE FACILITIES MANAGEMENT,1001304335," 42,568.58 ",
Home Office,Home Office,05/09/2012,HOPG Building Maintenance Reactive,SSD - Shared Service Directorate,INTERSERVE FACILITIES MANAGEMENT,1001304335," 93,197.56 ",
Home Office,Home Office,05/09/2012,HOPG Building Maintenance Reactive,SSD - Shared Service Directorate,INTERSERVE FACILITIES MANAGEMENT,1001304335," 63,120.90 ",
Home Office,Home Office,06/09/2012,HOPG Building Maintenance Reactive,SSD - Shared Service Directorate,INTERSERVE FACILITIES MANAGEMENT,1001304839," 45,642.65 ",
Home Office,Home Office,05/09/2012,HOPG Building Maintenance Reactive,SSD - Shared Service Directorate,INTERSERVE FACILITIES MANAGEMENT,1001304335," 103,379.21 ",
Home Office,Home Office,06/09/2012,HOPG Building Maintenance Reactive,SSD - Shared Service Directorate,INTERSERVE FACILITIES MANAGEMENT,1001304839," 47,281.66 ",
Home Office,Home Office,05/09/2012,HOPG Building Maintenance Reactive,SSD - Shared Service Directorate,INTERSERVE FACILITIES MANAGEMENT,1001304335," 92,925.28 ",
Home Office,Home Office,05/09/2012,"Building, Construction Services",SSD - Shared Service Directorate,INTERSERVE FACILITIES MANAGEMENT,1001304335," 76,481.14 ",
Home Office,Home Office,13/09/2012,HOPG Building Maintenance Reactive,SSD - Shared Service Directorate,INTERSERVE FACILITIES MANAGEMENT,1001307508," 92,360.24 ",
Home Office,Home Office,14/09/2012,"Building, Construction Services",SSD - Shared Service Directorate,INTERSERVE FACILITIES MANAGEMENT,1001307967," 50,505.42 ",
Home Office,Home Office,14/09/2012,HOPG Building Maintenance Reactive,SSD - Shared Service Directorate,INTERSERVE FACILITIES MANAGEMENT,1001307967," 124,052.96 ",
Home Office,Home Office,13/09/2012,HOPG Building Maintenance Reactive,SSD - Shared Service Directorate,INTERSERVE FACILITIES MANAGEMENT,1001307508," 132,401.72 ",
Home Office,Home Office,04/09/2012,"Building, Construction Services",SSD - Shared Service Directorate,INTERSERVE FACILITIES MANAGEMENT,1001303238," 26,491.23 ",
Home Office,Home Office,10/09/2012,"Building, Construction Services",SSD - Shared Service Directorate,INTERSERVE FACILITIES MANAGEMENT,1001305688," 119,967.52 ",
Home Office,Home Office,24/09/2012,"Building, Construction Services",SSD - Shared Service Directorate,INTERSERVE FACILITIES MANAGEMENT,1001311552," 75,754.01 ",
Home Office,Home Office,04/09/2012,"Building, Construction Services",SSD - Shared Service Directorate,INTERSERVE FACILITIES MANAGEMENT,1001303239," 60,690.64 ",
Home Office,Home Office,19/09/2012,"Building, Construction Services",SSD - Shared Service Directorate,INTERSERVE FACILITIES MANAGEMENT,1001309858," 33,622.17 ",
Home Office,Home Office,27/09/2012,General building construction,SSD - Shared Service Directorate,KEY PROPERTY SOLUTIONS LTD,1001313408," 35,298.73 ",
Home Office,Home Office,05/09/2012,General building construction,SSD - Shared Service Directorate,KEY PROPERTY SOLUTIONS LTD,1001304337," 41,238.66 ",
Home Office,Home Office,04/09/2012,HOPG Construction  Framework.Special contract works capital,SSD - Shared Service Directorate,MABER CONSTRUCTION & INTERIOR LTD,1001303253," 37,295.74 ",
Home Office,Home Office,28/09/2012,"IT, Broadcasting & Telecomms",SSD - Shared Service Directorate,SAVVIS UK LTD,1001314049," 6,600.00 ",
Home Office,Home Office,28/09/2012,"IT, Broadcasting & Telecomms",SSD - Shared Service Directorate,SAVVIS UK LTD,1001314049," 49,239.66 ",
Home Office,Home Office,28/09/2012,"IT, Broadcasting & Telecomms",SSD - Shared Service Directorate,SAVVIS UK LTD,1001314049," 14,333.15 ",
Home Office,Home Office,28/09/2012,"IT, Broadcasting & Telecomms",SSD - Shared Service Directorate,SAVVIS UK LTD,1001314049," 4,831.00 ",
Home Office,Home Office,28/09/2012,"IT, Broadcasting & Telecomms",SSD - Shared Service Directorate,SAVVIS UK LTD,1001314049," 18,853.48 ",
Home Office,Home Office,28/09/2012,"IT, Broadcasting & Telecomms",SSD - Shared Service Directorate,SAVVIS UK LTD,1001314049," 10,524.58 ",
Home Office,Home Office,28/09/2012,"IT, Broadcasting & Telecomms",SSD - Shared Service Directorate,SAVVIS UK LTD,1001314049," 8,000.32 ",
Home Office,Home Office,28/09/2012,"IT, Broadcasting & Telecomms",SSD - Shared Service Directorate,SAVVIS UK LTD,1001314049," 12,716.70 ",
Home Office,Home Office,28/09/2012,"IT, Broadcasting & Telecomms",SSD - Shared Service Directorate,SAVVIS UK LTD,1001314049," 2,169.95 ",
Home Office,Home Office,11/09/2012,HOPG FM Contract Services. FM Contract Services,SSD - Shared Service Directorate,SODEXO PROPERTY SOLUTIONS LTD,1001306343," 212,343.01 ",
Home Office,Home Office,25/09/2012,"IT, TelecommsHardware Desktop.Support and Maintenance",SSD - Shared Service Directorate,SPECIALIST COMPUTER CENTRES PLC,1001312274," 94,969.80 ",
Home Office,Home Office,25/09/2012,"Transport, Storage & Mail Services",SSD - Shared Service Directorate,TNT UK LTD,1001312283," 31,413.85 ",
Home Office,Home Office,17/09/2012,General building construction,SSD - Shared Service Directorate,UK POWER NETWORKS (OPERATIONS) LTD,1001308688," 38,717.87 ",
Home Office,Home Office,20/09/2012,General building construction,SSD - Shared Service Directorate,WATES CONSTRUCTION LTD,1001310797," 93,266.57 ",
Home Office,Home Office,28/09/2012,General building construction,SSD - Shared Service Directorate,WATES INTERIORS LTD,1001314079," 29,441.40 ",
Home Office,Home Office,28/09/2012,General building construction,SSD - Shared Service Directorate,WATES INTERIORS LTD,1001314079," 16,319.04 ",
Home Office,Home Office,17/09/2012,HOPG Construction  Framework.Construction Fit Out capital,SSD - Shared Service Directorate,WATES INTERIORS LTD,1001308695," 161,598.58 ",
Home Office,Home Office,17/09/2012,General building construction,SSD - Shared Service Directorate,WATES INTERIORS LTD,1001308695," 15,012.13 ",
Home Office,Home Office,28/09/2012,General building construction,SSD - Shared Service Directorate,WATES INTERIORS LTD,1001314079," 165,286.22 ",
Home Office,Home Office,17/09/2012,General building construction,SSD - Shared Service Directorate,WATES INTERIORS LTD,1001308695," 198,668.40 ",
Home Office,UKBA - UK Border Agency,06/09/2012,Grants,UKBA - UK Border Agency,ACCRINGTON & ROSSENDALE COLLEGE (G),1001304897," 28,570.59 ",
Home Office,UKBA - UK Border Agency,04/09/2012,Uniforms & PPE.Uniforms & Protective Clothes,UKBA - UK Border Agency,ALEXANDRA PLC,1001303181," 76,167.22 ",
Home Office,UKBA - UK Border Agency,04/09/2012,"Clothes, shoes & Personal Care.Clothing ",UKBA - UK Border Agency,ALEXANDRA PLC,1001303181," 80,663.12 ",
Home Office,UKBA - UK Border Agency,14/09/2012,"Science, Technical & Research.IT Running costs",UKBA - UK Border Agency,ARQIVA LTD,1001307921," 43,714.51 ",
Home Office,UKBA - UK Border Agency,28/09/2012,Law Enforcement & safety Equip.Surveillance & Detection equipment,UKBA - UK Border Agency,ARQIVA LTD,1001313940," 113,999.98 ",
Home Office,UKBA - UK Border Agency,28/09/2012,Law Enforcement & safety Equip.Surveillance & Detection equipment,UKBA - UK Border Agency,ARQIVA LTD,1001313940," 112,688.71 ",
Home Office,UKBA - UK Border Agency,06/09/2012,"IT, Broadcasting & Telecomms",UKBA - UK Border Agency,ATOS I T SERVICES UK LTD,1001304792," 38,163.60 ",
Home Office,UKBA - UK Border Agency,19/09/2012,"IT, Broadcasting & Telecomms",UKBA - UK Border Agency,ATOS I T SERVICES UK LTD,1001309803," 31,132.80 ",
Home Office,UKBA - UK Border Agency,07/09/2012,"IT, Broadcasting & Telecomms",UKBA - UK Border Agency,ATOS I T SERVICES UK LTD,1001305208," 29,395.20 ",
Home Office,UKBA - UK Border Agency,13/09/2012,"Science, Technical & Research.IT Running costs",UKBA - UK Border Agency,ATOS I T SERVICES UK LTD,1001307450," 37,487.80 ",
Home Office,UKBA - UK Border Agency,13/09/2012,"Science, Technical & Research.IT Running costs",UKBA - UK Border Agency,ATOS I T SERVICES UK LTD,1001307450," 19,308.80 ",
Home Office,UKBA - UK Border Agency,07/09/2012,"IT, TelecommsManaged Service.DMS Development",UKBA - UK Border Agency,ATOS I T SERVICES UK LTD,1001305208," 53,159.39 ",
Home Office,UKBA - UK Border Agency,12/09/2012,"IT, Broadcasting & Telecomms",UKBA - UK Border Agency,ATOS I T SERVICES UK LTD,1001306907," 64,416.00 ",
Home Office,UKBA - UK Border Agency,12/09/2012,"IT, Broadcasting & Telecomms",UKBA - UK Border Agency,ATOS I T SERVICES UK LTD,1001306907," 33,208.48 ",
Home Office,UKBA - UK Border Agency,19/09/2012,"IT, TelecommsSoftware (COTS).GIS Data-Supp & Maintenance",UKBA - UK Border Agency,ATOS I T SERVICES UK LTD,1001309803," 182,873.58 ",
Home Office,UKBA - UK Border Agency,19/09/2012,"IT, TelecommsSoftware (COTS).GIS Data-Supp & Maintenance",UKBA - UK Border Agency,ATOS I T SERVICES UK LTD,1001309803," 208,748.40 ",
Home Office,UKBA - UK Border Agency,20/09/2012,"Messenger, Portering and Reception Services",UKBA - UK Border Agency,ATOS I T SERVICES UK LTD,1001310542," 223,033.54 ",
Home Office,UKBA - UK Border Agency,20/09/2012,"Messenger, Portering and Reception Services",UKBA - UK Border Agency,ATOS I T SERVICES UK LTD,1001310542," 57,080.24 ",
Home Office,UKBA - UK Border Agency,21/09/2012,"Science, Technical & Research.Computer services - PROG",UKBA - UK Border Agency,ATOS I T SERVICES UK LTD,1001310984," 89,090.57 ",
Home Office,UKBA - UK Border Agency,21/09/2012,"Science, Technical & Research.Computer services - PROG",UKBA - UK Border Agency,ATOS I T SERVICES UK LTD,1001310984," 549,864.59 ",
Home Office,UKBA - UK Border Agency,21/09/2012,"Science, Technical & Research.Computer services - PROG",UKBA - UK Border Agency,ATOS I T SERVICES UK LTD,1001310984," 339,082.30 ",
Home Office,UKBA - UK Border Agency,21/09/2012,"Science, Technical & Research.IT Running costs",UKBA - UK Border Agency,ATOS I T SERVICES UK LTD,1001310984," 216,288.04 ",
Home Office,UKBA - UK Border Agency,21/09/2012,"Science, Technical & Research.Computer services - PROG",UKBA - UK Border Agency,ATOS I T SERVICES UK LTD,1001310984," 545,986.94 ",
Home Office,UKBA - UK Border Agency,21/09/2012,"Science, Technical & Research.IT Running costs",UKBA - UK Border Agency,ATOS I T SERVICES UK LTD,1001310984," 528,120.72 ",
Home Office,UKBA - UK Border Agency,21/09/2012,"Science, Technical & Research.IT Running costs",UKBA - UK Border Agency,ATOS I T SERVICES UK LTD,1001310984," 204,001.63 ",
Home Office,UKBA - UK Border Agency,21/09/2012,"Science, Technical & Research.Computer services - PROG",UKBA - UK Border Agency,ATOS I T SERVICES UK LTD,1001310984," 78,822.35 ",
Home Office,UKBA - UK Border Agency,28/09/2012,"Science, Technical & Research.IT Running costs",UKBA - UK Border Agency,ATOS I T SERVICES UK LTD,6200030296," 72,835.20 ",
Home Office,UKBA - UK Border Agency,28/09/2012,"Science, Technical & Research.IT Running costs",UKBA - UK Border Agency,ATOS I T SERVICES UK LTD,6200030296," 37,200.00 ",
Home Office,UKBA - UK Border Agency,28/09/2012,"Science, Technical & Research.Computer services - PROG",UKBA - UK Border Agency,ATOS I T SERVICES UK LTD,6200030296,"-339,948.14 ",
Home Office,UKBA - UK Border Agency,12/09/2012,Grants,UKBA - UK Border Agency,BARNSLEY MBC 1 (G),1001307280," 39,601.00 ",
Home Office,UKBA - UK Border Agency,20/09/2012,Citizen Ceremonies Receipts,UKBA - UK Border Agency,BIRMINGHAM CITY COUNCIL,1001310555," 55,280.00 ",
Home Office,UKBA - UK Border Agency,12/09/2012,Grants,UKBA - UK Border Agency,BIRMINGHAM CITY COUNCIL (G),1001307282," 133,128.00 ",
Home Office,UKBA - UK Border Agency,12/09/2012,Grants,UKBA - UK Border Agency,BIRMINGHAM CITY COUNCIL (G),1001307282," 40,038.00 ",
Home Office,UKBA - UK Border Agency,12/09/2012,Grants,UKBA - UK Border Agency,BRADFORD COUNCIL(G),1001307283," 56,403.00 ",
Home Office,UKBA - UK Border Agency,24/09/2012,Grants,UKBA - UK Border Agency,BRITISH COUNCIL (G),1001311620," 126,966.30 ",
Home Office,UKBA - UK Border Agency,18/09/2012,Citizen Ceremonies Receipts,UKBA - UK Border Agency,CALDERDALE M B C,1001309145," 88,200.00 ",
Home Office,UKBA - UK Border Agency,12/09/2012,Grants,UKBA - UK Border Agency,CAMBRIDGESHIRE COUNTY COUNCIL (G),1001307285," 73,167.00 ",
Home Office,UKBA - UK Border Agency,25/09/2012,Citizen Ceremonies Receipts,UKBA - UK Border Agency,CARDIFF COUNTY COUNCIL,1001312180," 92,769.11 ",
Home Office,UKBA - UK Border Agency,25/09/2012,Citizen Ceremonies Receipts,UKBA - UK Border Agency,CARDIFF COUNTY COUNCIL,1001312180," 12,142.07 ",
Home Office,UKBA - UK Border Agency,26/09/2012,Asylum Services.Public Expense Removals,UKBA - UK Border Agency,CARLSON WAGONLIT TRAVEL,1001312774," 94,746.08 ",
Home Office,UKBA - UK Border Agency,10/09/2012,Asylum Services.Public Expense Removals,UKBA - UK Border Agency,CARLSON WAGONLIT TRAVEL,1001305657," 285,960.00 ",
Home Office,UKBA - UK Border Agency,10/09/2012,Asylum Services.Public Expense Removals,UKBA - UK Border Agency,CARLSON WAGONLIT TRAVEL,1001305657," 28,216.00 ",
Home Office,UKBA - UK Border Agency,05/09/2012,Asylum Services.Public Expense Removals,UKBA - UK Border Agency,CARLSON WAGONLIT TRAVEL,1001304308," 105,080.18 ",
Home Office,UKBA - UK Border Agency,05/09/2012,Asylum Services.Public Expense Removals,UKBA - UK Border Agency,CARLSON WAGONLIT TRAVEL,1001304308," 157,263.51 ",
Home Office,UKBA - UK Border Agency,06/09/2012,Asylum Services.Public Expense Removals,UKBA - UK Border Agency,CARLSON WAGONLIT TRAVEL,1001304803,"-95,738.33 ",
Home Office,UKBA - UK Border Agency,06/09/2012,Asylum Services.Public Expense Removals,UKBA - UK Border Agency,CARLSON WAGONLIT TRAVEL,1001304803," 105,912.32 ",
Home Office,UKBA - UK Border Agency,07/09/2012,Asylum Services.Public Expense Removals,UKBA - UK Border Agency,CARLSON WAGONLIT TRAVEL,1001305218," 129,457.83 ",
Home Office,UKBA - UK Border Agency,10/09/2012,Asylum Services.Public Expense Removals,UKBA - UK Border Agency,CARLSON WAGONLIT TRAVEL,1001305658," 39,753.83 ",
Home Office,UKBA - UK Border Agency,12/09/2012,Asylum Services.Public Expense Removals,UKBA - UK Border Agency,CARLSON WAGONLIT TRAVEL,1001306922," 56,074.88 ",
Home Office,UKBA - UK Border Agency,20/09/2012,Asylum Services.Public Expense Removals,UKBA - UK Border Agency,CARLSON WAGONLIT TRAVEL,1001310582," 86,775.48 ",
Home Office,UKBA - UK Border Agency,20/09/2012,Asylum Services.Public Expense Removals,UKBA - UK Border Agency,CARLSON WAGONLIT TRAVEL,1001310582," 146,332.96 ",
Home Office,UKBA - UK Border Agency,19/09/2012,Asylum Services.Public Expense Removals,UKBA - UK Border Agency,CARLSON WAGONLIT TRAVEL,1001309823," 43,956.65 ",
Home Office,UKBA - UK Border Agency,20/09/2012,Asylum Services.Public Expense Removals,UKBA - UK Border Agency,CARLSON WAGONLIT TRAVEL,1001310582," 45,438.14 ",
Home Office,UKBA - UK Border Agency,21/09/2012,Asylum Services.Public Expense Removals,UKBA - UK Border Agency,CARLSON WAGONLIT TRAVEL,1001311003," 131,370.79 ",
Home Office,UKBA - UK Border Agency,24/09/2012,Asylum Services.Public Expense Removals,UKBA - UK Border Agency,CARLSON WAGONLIT TRAVEL,1001311514," 49,119.87 ",
Home Office,UKBA - UK Border Agency,25/09/2012,Asylum Services.Public Expense Removals,UKBA - UK Border Agency,CARLSON WAGONLIT TRAVEL,1001312181," 58,882.23 ",
Home Office,UKBA - UK Border Agency,25/09/2012,Asylum Services.Public Expense Removals,UKBA - UK Border Agency,CARLSON WAGONLIT TRAVEL,1001312181," 53,906.09 ",
Home Office,UKBA - UK Border Agency,28/09/2012,Asylum Services.Public Expense Removals,UKBA - UK Border Agency,CARLSON WAGONLIT TRAVEL,1001313962," 85,329.53 ",
Home Office,UKBA - UK Border Agency,12/09/2012,Grants,UKBA - UK Border Agency,CENTRAL BEDFORDSHIRE COUNCIL (G),1001307286," 123,878.00 ",
Home Office,UKBA - UK Border Agency,12/09/2012,Grants,UKBA - UK Border Agency,CENTRAL BEDFORDSHIRE COUNCIL (G),1001307286," 46,468.00 ",
Home Office,UKBA - UK Border Agency,13/09/2012,"Transport, Storage & Mail Services",UKBA - UK Border Agency,CENTRO,1001307480," 39,600.00 ",
Home Office,UKBA - UK Border Agency,17/09/2012,Grants,UKBA - UK Border Agency,CITY COLLEGE NOTTINGHAM (G),1001309047," 50,964.84 ",
Home Office,UKBA - UK Border Agency,12/09/2012,Grants,UKBA - UK Border Agency,CITY OF STOKE ON TRENT (G),1001307287," 69,418.00 ",
Home Office,UKBA - UK Border Agency,12/09/2012,Grants,UKBA - UK Border Agency,CITY OF WAKEFIELD METROPOLITAN DISTRICT COUNCIL (G),1001307288," 69,120.00 ",
Home Office,UKBA - UK Border Agency,24/09/2012,Asylum Provision. Asylum Accomodation,UKBA - UK Border Agency,CLEAREL LTD,1001311517," 578,392.04 ",
Home Office,UKBA - UK Border Agency,24/09/2012,Asylum Provision. Asylum Accomodation,UKBA - UK Border Agency,CLEAREL LTD,1001311517," 290,762.93 ",
Home Office,UKBA - UK Border Agency,24/09/2012,Asylum Provision. Asylum Accomodation,UKBA - UK Border Agency,CLEAREL LTD,1001311518," 306,680.09 ",
Home Office,UKBA - UK Border Agency,24/09/2012,Asylum Provision. Asylum Accomodation,UKBA - UK Border Agency,CLEAREL LTD,1001311518," 51,516.50 ",
Home Office,UKBA - UK Border Agency,25/09/2012,Asylum Provision. Asylum Accomodation,UKBA - UK Border Agency,CLEARSPRINGS MANAGEMENT LTD,1001312186," 24,156.18 ",
Home Office,UKBA - UK Border Agency,25/09/2012,Asylum Provision. Asylum Accomodation,UKBA - UK Border Agency,CLEARSPRINGS MANAGEMENT LTD,1001312186," 9,086.34 ",
Home Office,UKBA - UK Border Agency,12/09/2012,Grants,UKBA - UK Border Agency,COVENTRY CITY COUNCIL 1 (G),1001307290," 73,875.00 ",
Home Office,UKBA - UK Border Agency,12/09/2012,Grants,UKBA - UK Border Agency,COVENTRY CITY COUNCIL 1 (G),1001307290," 29,391.00 ",
Home Office,UKBA - UK Border Agency,12/09/2012,Grants,UKBA - UK Border Agency,CROYDON COUNCIL (G),1001307291," 1,528,481.00 ",
Home Office,UKBA - UK Border Agency,19/09/2012,Grants,UKBA - UK Border Agency,CROYDON COUNCIL (G),1001309909," 785,100.00 ",
Home Office,UKBA - UK Border Agency,25/09/2012,Professional & Admin Services. Visa Processing Services,UKBA - UK Border Agency,CSC COMPUTER SCIENCES CORPORATION,1001312194," 1,268,135.23 ",
Home Office,UKBA - UK Border Agency,18/09/2012,"Vehicles, Ships, Airplanes.Vessel Maintenance",UKBA - UK Border Agency,DAMEN SHIPYARDS GORINCHEM,7000007100," 63,219.01 ",
Home Office,UKBA - UK Border Agency,06/09/2012,"Messenger, Portering and Reception Services",UKBA - UK Border Agency,DEPARTMENT FOR WORK & PENSIONS (DWP),1001304812," 66,498.61 ",
Home Office,UKBA - UK Border Agency,24/09/2012,"Messenger, Portering and Reception Services",UKBA - UK Border Agency,DEPARTMENT FOR WORK & PENSIONS (DWP),1001311530," 58,352.52 ",
Home Office,UKBA - UK Border Agency,12/09/2012,Grants,UKBA - UK Border Agency,DERBY CITY COUNCIL  (G),1001307293," 32,785.00 ",
Home Office,UKBA - UK Border Agency,13/09/2012,"Messenger, Portering and Reception Services",UKBA - UK Border Agency,DRIVER AND VEHICLE LICENSING AGENCY (DVLA),3000045350," 28,038.30 ",
Home Office,UKBA - UK Border Agency,13/09/2012,"Messenger, Portering and Reception Services",UKBA - UK Border Agency,DRIVER AND VEHICLE LICENSING AGENCY (DVLA),3000045350," 1,698,535.61 ",
Home Office,UKBA - UK Border Agency,13/09/2012,"Messenger, Portering and Reception Services",UKBA - UK Border Agency,DRIVER AND VEHICLE LICENSING AGENCY (DVLA),3000045350," 441,575.15 ",
Home Office,UKBA - UK Border Agency,20/09/2012,Public Administration Services.ContOut RC Services-other,UKBA - UK Border Agency,DRIVER AND VEHICLE LICENSING AGENCY (DVLA),3000045380,"-4,636.70 ",
Home Office,UKBA - UK Border Agency,21/09/2012,"Messenger, Portering and Reception Services",UKBA - UK Border Agency,DRIVER AND VEHICLE LICENSING AGENCY (DVLA),3000045387," 121,479.62 ",
Home Office,UKBA - UK Border Agency,20/09/2012,Public Administration Services.ContOut RC Services-other,UKBA - UK Border Agency,DRIVER AND VEHICLE LICENSING AGENCY (DVLA),3000045380,"-116,842.92 ",
Home Office,UKBA - UK Border Agency,19/09/2012,"Messenger, Portering and Reception Services",UKBA - UK Border Agency,DRIVER AND VEHICLE LICENSING AGENCY (DVLA),6300000112," 116,842.92 ",
Home Office,UKBA - UK Border Agency,20/09/2012,Public Administration Services.ContOut RC Services-other,UKBA - UK Border Agency,DRIVER AND VEHICLE LICENSING AGENCY (DVLA),3000045380," 73,157.22 ",
Home Office,UKBA - UK Border Agency,14/09/2012,"Messenger, Portering and Reception Services",UKBA - UK Border Agency,DRIVER AND VEHICLE LICENSING AGENCY (DVLA),3000045356," 34,777.60 ",
Home Office,UKBA - UK Border Agency,14/09/2012,"Messenger, Portering and Reception Services",UKBA - UK Border Agency,DRIVER AND VEHICLE LICENSING AGENCY (DVLA),3000045356," 244,965.54 ",
Home Office,UKBA - UK Border Agency,14/09/2012,"Messenger, Portering and Reception Services",UKBA - UK Border Agency,DRIVER AND VEHICLE LICENSING AGENCY (DVLA),3000045356," 150,678.53 ",
Home Office,UKBA - UK Border Agency,20/09/2012,Public Administration Services.ContOut RC Services-other,UKBA - UK Border Agency,DRIVER AND VEHICLE LICENSING AGENCY (DVLA),3000045380," 73,209.00 ",
Home Office,UKBA - UK Border Agency,20/09/2012,Public Administration Services.ContOut RC Services-other,UKBA - UK Border Agency,DRIVER AND VEHICLE LICENSING AGENCY (DVLA),3000045380," 51,654.99 ",
Home Office,UKBA - UK Border Agency,28/09/2012,Public Administration Services.ContOut RC Services-other,UKBA - UK Border Agency,DRYDENS LAWYERS T/A DRYDENSFAIRFAX SOLICITORS,1001313977," 44,435.85 ",
Home Office,UKBA - UK Border Agency,12/09/2012,Grants,UKBA - UK Border Agency,DURHAM COUNTY COUNCIL 1 (G),1001307296," 30,212.00 ",
Home Office,UKBA - UK Border Agency,20/09/2012,Citizen Ceremonies Receipts,UKBA - UK Border Agency,EALING REGISTER OFFICE,1001310626," 37,520.00 ",
Home Office,UKBA - UK Border Agency,11/09/2012,"Messenger, Portering and Reception Services",UKBA - UK Border Agency,EAMUS CORK SOLUTIONS,7000007083," 181,986.13 ",
Home Office,UKBA - UK Border Agency,24/09/2012,Grants,UKBA - UK Border Agency,EAST LONDON ADVANCED TECHNOLOGY TRAINING (ELATT) (G),1001311631," 51,737.79 ",
Home Office,UKBA - UK Border Agency,24/09/2012,Grants,UKBA - UK Border Agency,EAST LONDON ADVANCED TECHNOLOGY TRAINING (ELATT) (G),1001311631," 52,500.00 ",
Home Office,UKBA - UK Border Agency,03/09/2012,Grants,UKBA - UK Border Agency,EAST OF ENGLAND LOCAL GOVERNMENT ASSOCIATION (G),1001303133," 49,999.88 ",
Home Office,UKBA - UK Border Agency,14/09/2012,Grants,UKBA - UK Border Agency,EDUWISE LTD (G),1001308357," 112,788.16 ",
Home Office,UKBA - UK Border Agency,20/09/2012,Citizen Ceremonies Receipts,UKBA - UK Border Agency,ENFIELD REGISTER OFFICE,1001310631," 38,400.00 ",
Home Office,UKBA - UK Border Agency,05/09/2012,Contingent Labour.Agency Staff,UKBA - UK Border Agency,ERNST AND YOUNG LLP,1001304324," 31,293.60 ",
Home Office,UKBA - UK Border Agency,12/09/2012,Grants,UKBA - UK Border Agency,ESSEX COUNTY COUNCIL 1 (G),1001307298," 269,951.00 ",
Home Office,UKBA - UK Border Agency,12/09/2012,Grants,UKBA - UK Border Agency,ESSEX COUNTY COUNCIL 1 (G),1001307298," 97,053.00 ",
Home Office,UKBA - UK Border Agency,19/09/2012,Business Process Outsourcing.Capita Development Spend,UKBA - UK Border Agency,FCO SERVICES,3000045371," 2,386,800.00 ",
Home Office,UKBA - UK Border Agency,20/09/2012,"IT, Broadcasting & Telecomms",UKBA - UK Border Agency,FCO SERVICES,3000045381," 11,880,000.00 ",
Home Office,UKBA - UK Border Agency,10/09/2012,"Science, Technical & Research.Computer services - PROG",UKBA - UK Border Agency,FINCORE LTD,1001305674," 41,808.00 ",
Home Office,UKBA - UK Border Agency,20/09/2012,IT & Telecoms Components.Standard Software (FA),UKBA - UK Border Agency,FORUM SYSTEMS,7000007112," 14,400.00 ",
Home Office,UKBA - UK Border Agency,20/09/2012,IT & Telecoms Components.Standard Software (FA),UKBA - UK Border Agency,FORUM SYSTEMS,7000007112," 8,280.00 ",
Home Office,UKBA - UK Border Agency,20/09/2012,"IT, Broadcasting & Telecomms",UKBA - UK Border Agency,FORUM SYSTEMS,7000007112," 4,080.00 ",
Home Office,UKBA - UK Border Agency,17/09/2012,Law Enforcement & safety Equip.Surveillance & Detection equipment,UKBA - UK Border Agency,FR AVIATION LTD,1001308597," 391,259.08 ",
Home Office,UKBA - UK Border Agency,05/09/2012,"Transport, Storage & Mail Services",UKBA - UK Border Agency,FRANCOTYP-POSTALIA LIMITED,1001304328," 30,000.00 ",
Home Office,UKBA - UK Border Agency,04/09/2012,"IT,TelecommsHardwarePeripheral.Support and Maintenance",UKBA - UK Border Agency,FUJITSU SERVICES (ALCEDO) LTD,1001303226," 80,260.27 ",
Home Office,UKBA - UK Border Agency,06/09/2012,"Science, Technical & Research.Computer services - PROG",UKBA - UK Border Agency,FUJITSU SERVICES (ALCEDO) LTD,1001304824," 32,722.94 ",
Home Office,UKBA - UK Border Agency,06/09/2012,"IT, Broadcasting & Telecomms",UKBA - UK Border Agency,FUJITSU SERVICES (ALCEDO) LTD,1001304824," 132,571.33 ",
Home Office,UKBA - UK Border Agency,06/09/2012,"Science, Technical & Research.Computer services - PROG",UKBA - UK Border Agency,FUJITSU SERVICES (ALCEDO) LTD,1001304824," 170,534.70 ",
Home Office,UKBA - UK Border Agency,25/09/2012,IT & Telecoms Components.Computer Equip (FA),UKBA - UK Border Agency,FUJITSU SERVICES (ALCEDO) LTD,1001312211," 85,729.26 ",
Home Office,UKBA - UK Border Agency,17/09/2012,IT & Telecoms Components.Computer Equip (FA),UKBA - UK Border Agency,FUJITSU SERVICES (ALCEDO) LTD,1001308598," 27,619.25 ",
Home Office,UKBA - UK Border Agency,17/09/2012,"Science, Technical & Research.Computer services - PROG",UKBA - UK Border Agency,FUJITSU SERVICES (ALCEDO) LTD,1001308598," 18,406.61 ",
Home Office,UKBA - UK Border Agency,12/09/2012,Politics & Civic Affairs.Refugee repatriation.serv,UKBA - UK Border Agency,G4S CARE AND JUSTICE SERVICES(MIDLANDS & EAST OF ENGLAND),6200030248," 1,067,759.16 ",
Home Office,UKBA - UK Border Agency,12/09/2012,Politics & Civic Affairs.Refugee repatriation.serv,UKBA - UK Border Agency,G4S CARE AND JUSTICE SERVICES(MIDLANDS & EAST OF ENGLAND),6200030248,"-1,067,759.16 ",
Home Office,UKBA - UK Border Agency,28/09/2012,Politics & Civic Affairs.Refugee repatriation.serv,UKBA - UK Border Agency,G4S CARE AND JUSTICE SERVICES(NORTH EAST YORKSHIRE & HUMBER),6200030596," 1,070,631.96 ",
Home Office,UKBA - UK Border Agency,28/09/2012,Politics & Civic Affairs.Refugee repatriation.serv,UKBA - UK Border Agency,G4S CARE AND JUSTICE SERVICES(NORTH EAST YORKSHIRE & HUMBER),6200030596,"-1,070,631.96 ",
Home Office,UKBA - UK Border Agency,06/09/2012,"Law Enforcement & safety Equip.Haulage, Storage & Disposal",UKBA - UK Border Agency,G4S CASH SERVICES (UK) LIMITED,1001304826," 28,090.48 ",
Home Office,UKBA - UK Border Agency,27/09/2012,"Transport, Storage & Mail Services",UKBA - UK Border Agency,GATWICK AIRPORT LTD,1001313398," 32,140.66 ",
Home Office,UKBA - UK Border Agency,27/09/2012,"Transport, Storage & Mail Services",UKBA - UK Border Agency,GATWICK AIRPORT LTD,1001313398, 112.80 ,
Home Office,UKBA - UK Border Agency,27/09/2012,"Transport, Storage & Mail Services",UKBA - UK Border Agency,GATWICK AIRPORT LTD,1001313398, 789.60 ,
Home Office,UKBA - UK Border Agency,27/09/2012,"Transport, Storage & Mail Services",UKBA - UK Border Agency,GATWICK AIRPORT LTD,1001313398, 676.80 ,
Home Office,UKBA - UK Border Agency,27/09/2012,"Transport, Storage & Mail Services",UKBA - UK Border Agency,GATWICK AIRPORT LTD,1001313398, 282.00 ,
Home Office,UKBA - UK Border Agency,27/09/2012,"Transport, Storage & Mail Services",UKBA - UK Border Agency,GATWICK AIRPORT LTD,1001313398, 620.40 ,
Home Office,UKBA - UK Border Agency,19/09/2012,Grants,UKBA - UK Border Agency,GLASGOW CITY COUNCIL 1 (G),1001309912," 62,845.00 ",
Home Office,UKBA - UK Border Agency,20/09/2012,Citizen Ceremonies Receipts,UKBA - UK Border Agency,GREENWICH REGISTER OFFICE,1001310640," 25,600.00 ",
Home Office,UKBA - UK Border Agency,24/09/2012,Grants,UKBA - UK Border Agency,HALIFAX OPPORTUNITIES TRUST (G),1001311637," 62,799.96 ",
Home Office,UKBA - UK Border Agency,19/09/2012,Grants,UKBA - UK Border Agency,HAMMERSMITH & FULHAM COMMUNITY (G),1001309913," 28,950.00 ",
Home Office,UKBA - UK Border Agency,19/09/2012,Grants,UKBA - UK Border Agency,HAMPSHIRE COUNTY COUNCIL 1 (G),1001309914," 101,909.00 ",
Home Office,UKBA - UK Border Agency,04/09/2012,Asylum Provision. Asylum Accomodation,UKBA - UK Border Agency,HAPPY HOMES UK LTD,1001303231," 32,793.84 ",
Home Office,UKBA - UK Border Agency,04/09/2012,Asylum Provision. Asylum Accomodation,UKBA - UK Border Agency,HAPPY HOMES UK LTD,1001303231," 288,141.76 ",
Home Office,UKBA - UK Border Agency,04/09/2012,Asylum Provision. Asylum Accomodation,UKBA - UK Border Agency,HAPPY HOMES UK LTD,1001303231," 122,376.28 ",
Home Office,UKBA - UK Border Agency,25/09/2012,Asylum Provision. Asylum Accomodation,UKBA - UK Border Agency,HAPPY HOMES UK LTD,1001312219," 33,148.20 ",
Home Office,UKBA - UK Border Agency,25/09/2012,Asylum Provision. Asylum Accomodation,UKBA - UK Border Agency,HAPPY HOMES UK LTD,1001312219," 285,387.36 ",
Home Office,UKBA - UK Border Agency,25/09/2012,Asylum Provision. Asylum Accomodation,UKBA - UK Border Agency,HAPPY HOMES UK LTD,1001312219," 130,907.98 ",
Home Office,UKBA - UK Border Agency,10/09/2012,Healthcare Services.Occupational Health Services,UKBA - UK Border Agency,HEALTH MANAGEMENT LTD,1001305686," 67,380.30 ",
Home Office,UKBA - UK Border Agency,12/09/2012,Grants,UKBA - UK Border Agency,HERTFORDSHIRE COUNTY COUNCIL 1 (G),1001307299," 379,924.00 ",
Home Office,UKBA - UK Border Agency,13/09/2012,Law Enforcement & safety Equip.Surveillance & Detection equipment,UKBA - UK Border Agency,HM REVENUE & CUSTOMS,3000045351," 195,556.00 ",
Home Office,UKBA - UK Border Agency,04/09/2012,Hotels Personnel- Admin.Overseas Hotel Accom,UKBA - UK Border Agency,HOLIDAY INN EXPRESS LUTON AIRPORT,1001303233," 15,960.00 ",
Home Office,UKBA - UK Border Agency,04/09/2012,Hotels Personnel- Admin.Overseas Hotel Accom,UKBA - UK Border Agency,HOLIDAY INN EXPRESS LUTON AIRPORT,1001303233," 9,120.00 ",
Home Office,UKBA - UK Border Agency,04/09/2012,Hotels Personnel- Admin.Overseas Hotel Accom,UKBA - UK Border Agency,HOLIDAY INN EXPRESS LUTON AIRPORT,1001303233," 11,400.00 ",
Home Office,UKBA - UK Border Agency,04/09/2012,Hotels Personnel- Admin.Overseas Hotel Accom,UKBA - UK Border Agency,HOLIDAY INN EXPRESS LUTON AIRPORT,1001303233," 7,980.00 ",
Home Office,UKBA - UK Border Agency,04/09/2012,Hotels Personnel- Admin.Overseas Hotel Accom,UKBA - UK Border Agency,HOLIDAY INN EXPRESS LUTON AIRPORT,1001303233," 11,970.00 ",
Home Office,UKBA - UK Border Agency,07/09/2012,IT & Telecoms Components.Standard Software (FA),UKBA - UK Border Agency,IBM DIRECT UNITED KINGDOM LTD,1001305242," 133,822.20 ",
Home Office,UKBA - UK Border Agency,07/09/2012,IT & Telecoms Components.Standard Software (FA),UKBA - UK Border Agency,IBM DIRECT UNITED KINGDOM LTD,1001305242," 50,555.20 ",
Home Office,UKBA - UK Border Agency,07/09/2012,IT & Telecoms Components.Standard Software (FA),UKBA - UK Border Agency,IBM DIRECT UNITED KINGDOM LTD,1001305242," 216,490.20 ",
Home Office,UKBA - UK Border Agency,07/09/2012,IT & Telecoms Components.Standard Software (FA),UKBA - UK Border Agency,IBM DIRECT UNITED KINGDOM LTD,1001305242," 53,319.20 ",
Home Office,UKBA - UK Border Agency,06/09/2012,IT & Telecoms Components.Computer Equip (FA),UKBA - UK Border Agency,IBM DIRECT UNITED KINGDOM LTD,1001304837," 260,871.30 ",
Home Office,UKBA - UK Border Agency,06/09/2012,IT & Telecoms Components.Computer Equip (FA),UKBA - UK Border Agency,IBM DIRECT UNITED KINGDOM LTD,1001304837," 1,075,381.34 ",
Home Office,UKBA - UK Border Agency,06/09/2012,IT & Telecoms Components.Computer Equip (FA),UKBA - UK Border Agency,IBM DIRECT UNITED KINGDOM LTD,1001304837," 166,681.52 ",
Home Office,UKBA - UK Border Agency,26/09/2012,"IT, Broadcasting & Telecomms",UKBA - UK Border Agency,IBM DIRECT UNITED KINGDOM LTD,1001312801," 72,937.70 ",
Home Office,UKBA - UK Border Agency,26/09/2012,IT & Telecoms Components.Computer Equip (FA),UKBA - UK Border Agency,IBM DIRECT UNITED KINGDOM LTD,1001312801," 1,593,167.04 ",
Home Office,UKBA - UK Border Agency,26/09/2012,IT & Telecoms Components.Computer Equip (FA),UKBA - UK Border Agency,IBM DIRECT UNITED KINGDOM LTD,1001312801," 595,135.86 ",
Home Office,UKBA - UK Border Agency,26/09/2012,IT & Telecoms Components.Computer Equip (FA),UKBA - UK Border Agency,IBM DIRECT UNITED KINGDOM LTD,1001312801," 345,859.68 ",
Home Office,UKBA - UK Border Agency,26/09/2012,IT & Telecoms Components.Computer Equip (FA),UKBA - UK Border Agency,IBM DIRECT UNITED KINGDOM LTD,1001312801," 439,123.48 ",
Home Office,UKBA - UK Border Agency,26/09/2012,IT & Telecoms Components.Standard Software (FA),UKBA - UK Border Agency,IBM DIRECT UNITED KINGDOM LTD,1001312801," 3,335,453.99 ",
Home Office,UKBA - UK Border Agency,26/09/2012,Published Products.Printed Publications,UKBA - UK Border Agency,INTERGOVERNMENT CONSULTATIONS,7000007135," 72,732.00 ",
Home Office,UKBA - UK Border Agency,10/09/2012,Voluntary Assisted Returns,UKBA - UK Border Agency,IOM INTERNATIONAL ORGANIZATION FOR MIGRATION,1001305689," 396,176.27 ",
Home Office,UKBA - UK Border Agency,04/09/2012,"IT, Broadcasting & Telecomms",UKBA - UK Border Agency,IRON MOUNTAIN (UK) LTD,1001303241," 61,680.00 ",
Home Office,UKBA - UK Border Agency,24/09/2012,"Transport, Storage & Mail Services",UKBA - UK Border Agency,IRON MOUNTAIN (UK) LTD,1001311553," 283,814.87 ",
Home Office,UKBA - UK Border Agency,24/09/2012,"Transport, Storage & Mail Services",UKBA - UK Border Agency,IRON MOUNTAIN (UK) LTD,1001311553," 194,493.92 ",
Home Office,UKBA - UK Border Agency,24/09/2012,Asylum Provision. Asylum Accomodation,UKBA - UK Border Agency,JOMAST PROPERTY AND FINANCE CO LTD,1001311556," 379,264.13 ",
Home Office,UKBA - UK Border Agency,24/09/2012,Asylum Provision. Asylum Accomodation,UKBA - UK Border Agency,JOMAST PROPERTY AND FINANCE CO LTD,1001311556," 52,584.61 ",
Home Office,UKBA - UK Border Agency,21/09/2012,"IT, TelecommsManaged Service.DMS Development",UKBA - UK Border Agency,KANA SOFTWARE IRELAND LTD,1001311053," 35,560.00 ",
Home Office,UKBA - UK Border Agency,19/09/2012,Grants,UKBA - UK Border Agency,KENT COUNTY COUNCIL 1 (G),1001309915," 607,280.00 ",
Home Office,UKBA - UK Border Agency,12/09/2012,Grants,UKBA - UK Border Agency,KINGSTON UPON HULL CITY COUNCIL 2 (G),1001307300," 69,261.00 ",
Home Office,UKBA - UK Border Agency,26/09/2012,"Law Enforcement & safety Equip.Surveillance & detection (FA).CCTV, heat and motion detectors, alarms (FA)",UKBA - UK Border Agency,L3 COMMUNICATIONS (UK) LTD,1001312806, 720.00 ,
Home Office,UKBA - UK Border Agency,26/09/2012,"Law Enforcement & safety Equip.Surveillance & detection (FA).CCTV, heat and motion detectors, alarms (FA)",UKBA - UK Border Agency,L3 COMMUNICATIONS (UK) LTD,1001312806," 1,075.80 ",
Home Office,UKBA - UK Border Agency,26/09/2012,"Law Enforcement & safety Equip.Surveillance & detection (FA).CCTV, heat and motion detectors, alarms (FA)",UKBA - UK Border Agency,L3 COMMUNICATIONS (UK) LTD,1001312806, 840.00 ,
Home Office,UKBA - UK Border Agency,26/09/2012,"Law Enforcement & safety Equip.Surveillance & detection (FA).CCTV, heat and motion detectors, alarms (FA)",UKBA - UK Border Agency,L3 COMMUNICATIONS (UK) LTD,1001312806," 27,364.20 ",
Home Office,UKBA - UK Border Agency,12/09/2012,Grants,UKBA - UK Border Agency,LB OF BRENT CHILDRENS DIRECTORATE (G),1001307302," 47,740.00 ",
Home Office,UKBA - UK Border Agency,06/09/2012,Grants,UKBA - UK Border Agency,LEARNING UNLIMITED LTD (G),1001304906," 100,000.00 ",
Home Office,UKBA - UK Border Agency,06/09/2012,Asylum Provision. Asylum Accomodation,UKBA - UK Border Agency,LEEDS CITY COUNCIL,1001304849," 446,384.77 ",
Home Office,UKBA - UK Border Agency,06/09/2012,Asylum Provision. Asylum Accomodation,UKBA - UK Border Agency,LEEDS CITY COUNCIL,1001304849," 145,521.99 ",
Home Office,UKBA - UK Border Agency,06/09/2012,Asylum Provision. Asylum Accomodation,UKBA - UK Border Agency,LEEDS CITY COUNCIL,1001304849," 115,898.08 ",
Home Office,UKBA - UK Border Agency,12/09/2012,Grants,UKBA - UK Border Agency,LEEDS CITY COUNCIL 1 (G),1001307303," 155,280.00 ",
Home Office,UKBA - UK Border Agency,12/09/2012,Grants,UKBA - UK Border Agency,LEEDS CITY COUNCIL 1 (G),1001307303," 46,144.00 ",
Home Office,UKBA - UK Border Agency,12/09/2012,Grants,UKBA - UK Border Agency,LEEDS CITY COUNCIL 1 (G),1001307303," 68,850.00 ",
Home Office,UKBA - UK Border Agency,20/09/2012,Citizen Ceremonies Receipts,UKBA - UK Border Agency,LEEDS CITY REGISTER OFFICE,1001310663," 25,920.00 ",
Home Office,UKBA - UK Border Agency,12/09/2012,Grants,UKBA - UK Border Agency,LEICESTERSHIRE COUNTY COUNCIL 1 (G),1001307305," 86,048.00 ",
Home Office,UKBA - UK Border Agency,19/09/2012,Grants,UKBA - UK Border Agency,LEICESTERSHIRE COUNTY COUNCIL 1 (G),1001309916," 39,095.00 ",
Home Office,UKBA - UK Border Agency,20/09/2012,Citizen Ceremonies Receipts,UKBA - UK Border Agency,LEWISHAM (LA),1001310666," 25,120.00 ",
Home Office,UKBA - UK Border Agency,12/09/2012,Grants,UKBA - UK Border Agency,LINCOLNSHIRE COUNTY COUNCIL 1 (G),1001307306," 131,520.00 ",
Home Office,UKBA - UK Border Agency,12/09/2012,Grants,UKBA - UK Border Agency,LINCOLNSHIRE COUNTY COUNCIL 1 (G),1001307306," 42,594.00 ",
Home Office,UKBA - UK Border Agency,12/09/2012,Grants,UKBA - UK Border Agency,LONDON BOROUGH OF BARNET 1 (G),1001307307," 54,382.00 ",
Home Office,UKBA - UK Border Agency,20/09/2012,Citizen Ceremonies Receipts,UKBA - UK Border Agency,LONDON BOROUGH OF BRENT,1001310670," 33,360.00 ",
Home Office,UKBA - UK Border Agency,12/09/2012,Grants,UKBA - UK Border Agency,LONDON BOROUGH OF ENFIELD 1 (G),1001307309," 50,137.00 ",
Home Office,UKBA - UK Border Agency,19/09/2012,Grants,UKBA - UK Border Agency,LONDON BOROUGH OF GREENWICH 1 (G),1001309917," 61,557.00 ",
Home Office,UKBA - UK Border Agency,12/09/2012,Grants,UKBA - UK Border Agency,LONDON BOROUGH OF HARINGEY 1 (G),1001307310," 89,037.00 ",
Home Office,UKBA - UK Border Agency,19/09/2012,Grants,UKBA - UK Border Agency,LONDON BOROUGH OF HARINGEY 1 (G),1001309918," 36,750.00 ",
Home Office,UKBA - UK Border Agency,12/09/2012,Grants,UKBA - UK Border Agency,LONDON BOROUGH OF HARROW 1 (G),1001307311," 88,657.00 ",
Home Office,UKBA - UK Border Agency,12/09/2012,Grants,UKBA - UK Border Agency,LONDON BOROUGH OF HILLINGDON 1 (G),1001307312," 394,168.00 ",
Home Office,UKBA - UK Border Agency,19/09/2012,Grants,UKBA - UK Border Agency,LONDON BOROUGH OF HILLINGDON 1 (G),1001309919," 244,350.00 ",
Home Office,UKBA - UK Border Agency,20/09/2012,Citizen Ceremonies Receipts,UKBA - UK Border Agency,LONDON BOROUGH OF HOUNSLOW,1001310674," 33,680.00 ",
Home Office,UKBA - UK Border Agency,19/09/2012,Grants,UKBA - UK Border Agency,LONDON BOROUGH OF ISLINGTON (G),1001309920," 138,423.00 ",
Home Office,UKBA - UK Border Agency,19/09/2012,Grants,UKBA - UK Border Agency,LONDON BOROUGH OF ISLINGTON (G),1001309920," 113,250.00 ",
Home Office,UKBA - UK Border Agency,12/09/2012,Grants,UKBA - UK Border Agency,LONDON BOROUGH OF KENSINGTON & CHELSEA (G),1001307313," 104,654.00 ",
Home Office,UKBA - UK Border Agency,12/09/2012,Grants,UKBA - UK Border Agency,LONDON BOROUGH OF LAMBETH 1 (G),1001307314," 140,736.00 ",
Home Office,UKBA - UK Border Agency,19/09/2012,Grants,UKBA - UK Border Agency,LONDON BOROUGH OF LAMBETH 1 (G),1001309922," 49,650.00 ",
Home Office,UKBA - UK Border Agency,12/09/2012,Grants,UKBA - UK Border Agency,LONDON BOROUGH OF MERTON 2 (G),1001307315," 42,032.00 ",
Home Office,UKBA - UK Border Agency,12/09/2012,Grants,UKBA - UK Border Agency,LONDON BOROUGH OF NEWHAM (G),1001307316," 47,702.00 ",
Home Office,UKBA - UK Border Agency,12/09/2012,Grants,UKBA - UK Border Agency,LONDON BOROUGH OF REDBRIDGE 1 (G),1001307317," 66,623.00 ",
Home Office,UKBA - UK Border Agency,20/09/2012,Citizen Ceremonies Receipts,UKBA - UK Border Agency,LONDON BOROUGH OF SOUTHWARK,1001310676," 43,840.00 ",
Home Office,UKBA - UK Border Agency,12/09/2012,Grants,UKBA - UK Border Agency,LONDON BOROUGH OF SOUTHWARK 1 (G),1001307318," 40,727.00 ",
Home Office,UKBA - UK Border Agency,12/09/2012,Grants,UKBA - UK Border Agency,LONDON BOROUGH TOWER HAMLETS (G),1001307320," 37,647.00 ",
Home Office,UKBA - UK Border Agency,12/09/2012,Grants,UKBA - UK Border Agency,LUTON BOROUGH COUNCIL (G),1001307321," 51,529.00 ",
Home Office,UKBA - UK Border Agency,27/09/2012,Asylum Provision. Asylum Accomodation,UKBA - UK Border Agency,MANCHESTER CITY COUNCIL,1001313412," 482,281.86 ",
Home Office,UKBA - UK Border Agency,27/09/2012,Asylum Provision. Asylum Accomodation,UKBA - UK Border Agency,MANCHESTER CITY COUNCIL,1001313412," 14,749.44 ",
Home Office,UKBA - UK Border Agency,04/09/2012,Public Order .Jail or prison services.Detention costs,UKBA - UK Border Agency,MAYORS OFFICE FOR POLICING AND CRIME (MOPC),1001303256," 43,150.00 ",
Home Office,UKBA - UK Border Agency,06/09/2012,Contingent Labour.Specialist IT,UKBA - UK Border Agency,METHODS CONSULTING LTD,1001304858," 21,120.00 ",
Home Office,UKBA - UK Border Agency,06/09/2012,Contingent Labour.Specialist IT,UKBA - UK Border Agency,METHODS CONSULTING LTD,1001304858," 3,960.00 ",
Home Office,UKBA - UK Border Agency,04/09/2012,Asylum Provision. Asylum Accomodation,UKBA - UK Border Agency,METROPOLITAN SUPPORT TRUST LTD,1001303265," 170,385.05 ",
Home Office,UKBA - UK Border Agency,04/09/2012,Asylum Provision. Asylum Accomodation,UKBA - UK Border Agency,METROPOLITAN SUPPORT TRUST LTD,1001303265," 50,557.57 ",
Home Office,UKBA - UK Border Agency,25/09/2012,Asylum Provision. Asylum Accomodation,UKBA - UK Border Agency,METROPOLITAN SUPPORT TRUST LTD,1001312235," 156,639.88 ",
Home Office,UKBA - UK Border Agency,25/09/2012,Asylum Provision. Asylum Accomodation,UKBA - UK Border Agency,METROPOLITAN SUPPORT TRUST LTD,1001312235," 49,194.67 ",
Home Office,UKBA - UK Border Agency,14/09/2012,Financial & Insurance Services.Audit Services.Audit,UKBA - UK Border Agency,NAO - NATIONAL AUDIT OFFICE,3000045359," 55,832.40 ",
Home Office,UKBA - UK Border Agency,12/09/2012,Grants,UKBA - UK Border Agency,NEWCASTLE CITY COUNCIL (G),1001307322," 68,694.00 ",
Home Office,UKBA - UK Border Agency,20/09/2012,Citizen Ceremonies Receipts,UKBA - UK Border Agency,NEWHAM REGISTER OFFICE,1001310706," 33,840.00 ",
Home Office,UKBA - UK Border Agency,12/09/2012,Grants,UKBA - UK Border Agency,NORFOLK COUNTY COUNCIL 1 (G),1001307323," 74,240.00 ",
Home Office,UKBA - UK Border Agency,03/09/2012,Grants,UKBA - UK Border Agency,NORTH WEST GATEWAY RESETTLEMENT PARTNERSHIP (G),1001303151," 865,219.91 ",
Home Office,UKBA - UK Border Agency,12/09/2012,Grants,UKBA - UK Border Agency,NORTHAMPTONSHIRE COUNTY COUNCIL (G),1001307325," 336,426.00 ",
Home Office,UKBA - UK Border Agency,12/09/2012,Grants,UKBA - UK Border Agency,NORTHAMPTONSHIRE COUNTY COUNCIL (G),1001307325," 334,348.00 ",
Home Office,UKBA - UK Border Agency,12/09/2012,Grants,UKBA - UK Border Agency,NOTTINGHAM CITY COUNCIL (G),1001307327," 106,129.00 ",
Home Office,UKBA - UK Border Agency,12/09/2012,Grants,UKBA - UK Border Agency,NOTTINGHAM CITY COUNCIL (G),1001307327," 38,442.00 ",
Home Office,UKBA - UK Border Agency,12/09/2012,Grants,UKBA - UK Border Agency,NOTTINGHAMSHIRE COUNTY COUNCIL 2 (G),1001307328," 119,249.00 ",
Home Office,UKBA - UK Border Agency,12/09/2012,Grants,UKBA - UK Border Agency,NOTTINGHAMSHIRE COUNTY COUNCIL 2 (G),1001307328," 46,212.00 ",
Home Office,UKBA - UK Border Agency,11/09/2012,"Law Enforcement & safety Equip.Haulage, Storage & Disposal",UKBA - UK Border Agency,NOVUS ENVIRONMENTAL,1001306318," 28,653.55 ",
Home Office,UKBA - UK Border Agency,13/09/2012,"Messenger, Portering and Reception Services",UKBA - UK Border Agency,NPIA (National Policing Improvement Agency),1001307522," 540,000.00 ",
Home Office,UKBA - UK Border Agency,13/09/2012,"Messenger, Portering and Reception Services",UKBA - UK Border Agency,NPIA (National Policing Improvement Agency),1001307522," 6,000.00 ",
Home Office,UKBA - UK Border Agency,06/09/2012,Laboratory & Scientific Equip.Scientific Equip Running Costs,UKBA - UK Border Agency,NUCTECH COMPANY LTD,7000007074," 106,266.00 ",
Home Office,UKBA - UK Border Agency,18/09/2012,Security Guard Services Other costs,UKBA - UK Border Agency,OCS GROUP UK LTD,1001309202," 182,753.62 ",
Home Office,UKBA - UK Border Agency,19/09/2012,Grants,UKBA - UK Border Agency,OISC (G),1001309928," 331,045.00 ",
Home Office,UKBA - UK Border Agency,17/09/2012,Fees - Legal Represent,UKBA - UK Border Agency,OSAG - OFFICE OF THE ADVOCATE GENERAL,3000045365," 30,920.00 ",
Home Office,UKBA - UK Border Agency,17/09/2012,Fees - Legal Represent,UKBA - UK Border Agency,OSAG - OFFICE OF THE ADVOCATE GENERAL,3000045365," 38,773.84 ",
Home Office,UKBA - UK Border Agency,13/09/2012,Fees - Legal Represent,UKBA - UK Border Agency,OSAG - OFFICE OF THE ADVOCATE GENERAL,3000045353," 57,932.59 ",
Home Office,UKBA - UK Border Agency,11/09/2012,Fees - Legal Advice,UKBA - UK Border Agency,OSAG - OFFICE OF THE ADVOCATE GENERAL,3000045341," 57,995.42 ",
Home Office,UKBA - UK Border Agency,26/09/2012,Management & Admin Serv.Overseas Posting Costs-PROG,UKBA - UK Border Agency,PARIS APARTMENT SERVICES,7000007138," 104,480.81 ",
Home Office,UKBA - UK Border Agency,17/09/2012,"Vehicles, Ships, Airplanes.Vessel Maintenance",UKBA - UK Border Agency,PELICAN ENGINEERING SALES CO LTD,1001308635," 34,003.40 ",
Home Office,UKBA - UK Border Agency,12/09/2012,Grants,UKBA - UK Border Agency,PETERBOROUGH CITY COUNCIL (G),1001307330," 37,576.00 ",
Home Office,UKBA - UK Border Agency,24/09/2012,Asylum Provision. Asylum Accomodation,UKBA - UK Border Agency,PRIORITY PROPERTIES NORTH WEST,1001311575," 66,613.82 ",
Home Office,UKBA - UK Border Agency,24/09/2012,Asylum Provision. Asylum Accomodation,UKBA - UK Border Agency,PRIORITY PROPERTIES NORTH WEST,1001311575," 23,202.81 ",
Home Office,UKBA - UK Border Agency,25/09/2012,Asylum Provision. Asylum Accomodation,UKBA - UK Border Agency,PRIORITY PROPERTIES NORTH WEST,1001312251," 127,823.36 ",
Home Office,UKBA - UK Border Agency,25/09/2012,Asylum Provision. Asylum Accomodation,UKBA - UK Border Agency,PRIORITY PROPERTIES NORTH WEST,1001312251," 34,567.88 ",
Home Office,UKBA - UK Border Agency,25/09/2012,Asylum Provision. Asylum Accomodation,UKBA - UK Border Agency,PRIORITY PROPERTIES NORTH WEST,1001312251," 66,586.75 ",
Home Office,UKBA - UK Border Agency,25/09/2012,Asylum Provision. Asylum Accomodation,UKBA - UK Border Agency,PRIORITY PROPERTIES NORTH WEST,1001312251," 15,411.14 ",
Home Office,UKBA - UK Border Agency,25/09/2012,"Generators & Equip (FA).Plant & machinery (FA).Power generation plant, generators, electric motors, industrial batteries, electrical cable, controlling and monitoring equipment.",UKBA - UK Border Agency,QINETIQ LTD,1001312254," 125,215.20 ",
Home Office,UKBA - UK Border Agency,11/09/2012,Asylum Provision.Asylum Services,UKBA - UK Border Agency,REFUGEE COUNCIL,1001306327," 29,277.64 ",
Home Office,UKBA - UK Border Agency,19/09/2012,Cont Out Serv - Other,UKBA - UK Border Agency,"REPATRIATION & DEPARTURE SERVICE, MINISTRY OF JUSTICE",7000007108," 83,098.84 ",
Home Office,UKBA - UK Border Agency,12/09/2012,Grants,UKBA - UK Border Agency,SANDWELL METROPOLITAN BOROUGH COUNCIL (G),1001307335," 29,444.00 ",
Home Office,UKBA - UK Border Agency,07/09/2012,"Furniture (Fixed Asset).Furniture (Fixed Asset).Desks, chairs, tables, cabinets, cupboards, screens.",UKBA - UK Border Agency,SENATOR INTERNATIONAL LTD,1001305290," 28,604.23 ",
Home Office,UKBA - UK Border Agency,14/09/2012,Asylum Provision. Asylum Accomodation,UKBA - UK Border Agency,SERCO  LTD,1001308002," 136,737.56 ",
Home Office,UKBA - UK Border Agency,14/09/2012,Asylum Provision. Asylum Accomodation,UKBA - UK Border Agency,SERCO  LTD,1001308002," 16,136.83 ",
Home Office,UKBA - UK Border Agency,28/09/2012,Asylum Provision. Asylum Accomodation,UKBA - UK Border Agency,SERCO  LTD,1001314051," 457,065.28 ",
Home Office,UKBA - UK Border Agency,28/09/2012,Asylum Provision. Asylum Accomodation,UKBA - UK Border Agency,SERCO  LTD,1001314051," 58,900.97 ",
Home Office,UKBA - UK Border Agency,12/09/2012,Grants,UKBA - UK Border Agency,SHEFFIELD CITY COUNCIL 1 (G),1001307336," 58,629.00 ",
Home Office,UKBA - UK Border Agency,04/09/2012,Education & Training Services.Training & Development,UKBA - UK Border Agency,SKILLS FOR JUSTICE,1001303291," 29,354.50 ",
Home Office,UKBA - UK Border Agency,17/09/2012,Laboratory & Scientific Equip.Scientific Equip Running Costs,UKBA - UK Border Agency,SMITHS DETECTION INTERNATIONAL UK,1001308652," 30,335.72 ",
Home Office,UKBA - UK Border Agency,05/09/2012,Asylum Provision.Asylum Services,UKBA - UK Border Agency,SODEXO PASS LTD,1001304374," 865,582.77 ",
Home Office,UKBA - UK Border Agency,05/09/2012,Asylum Provision.Asylum Services,UKBA - UK Border Agency,SODEXO PASS LTD,1001304374," 124,868.47 ",
Home Office,UKBA - UK Border Agency,10/09/2012,Asylum Provision.Asylum Services,UKBA - UK Border Agency,SODEXO PASS LTD,1001305719," 246,853.45 ",
Home Office,UKBA - UK Border Agency,10/09/2012,Asylum Provision.Asylum Services,UKBA - UK Border Agency,SODEXO PASS LTD,1001305719," 30,625.93 ",
Home Office,UKBA - UK Border Agency,10/09/2012,Asylum Provision.Asylum Services,UKBA - UK Border Agency,SODEXO PASS LTD,1001305719," 845,529.30 ",
Home Office,UKBA - UK Border Agency,10/09/2012,Asylum Provision.Asylum Services,UKBA - UK Border Agency,SODEXO PASS LTD,1001305719," 121,792.78 ",
Home Office,UKBA - UK Border Agency,18/09/2012,Asylum Provision.Asylum Services,UKBA - UK Border Agency,SODEXO PASS LTD,1001309224," 872,209.39 ",
Home Office,UKBA - UK Border Agency,18/09/2012,Asylum Provision.Asylum Services,UKBA - UK Border Agency,SODEXO PASS LTD,1001309224," 123,509.95 ",
Home Office,UKBA - UK Border Agency,26/09/2012,Asylum Provision.Asylum Services,UKBA - UK Border Agency,SODEXO PASS LTD,1001312847," 866,868.86 ",
Home Office,UKBA - UK Border Agency,26/09/2012,Asylum Provision.Asylum Services,UKBA - UK Border Agency,SODEXO PASS LTD,1001312847," 120,659.27 ",
Home Office,UKBA - UK Border Agency,12/09/2012,Grants,UKBA - UK Border Agency,SOLIHULL MBC (G),1001307338," 509,402.00 ",
Home Office,UKBA - UK Border Agency,12/09/2012,Grants,UKBA - UK Border Agency,SOLIHULL MBC (G),1001307338," 175,474.00 ",
Home Office,UKBA - UK Border Agency,19/09/2012,Grants,UKBA - UK Border Agency,SOUTHAMPTON CITY COUNCIL 1 (G),1001309933," 34,361.00 ",
Home Office,UKBA - UK Border Agency,19/09/2012,IT & Telecoms Components.Computer Equip (FA),UKBA - UK Border Agency,SPECIALIST COMPUTER CENTRES PLC,1001309890," 75,802.42 ",
Home Office,UKBA - UK Border Agency,07/09/2012,"IT & Telecoms Components.Computer Equip  (FA). Servers, notebook computers, personal data assistant (PDAs), personal computers, workstations, visual display units (VDUs), keyboards, printers",UKBA - UK Border Agency,SPECIALIST COMPUTER CENTRES PLC,1001305296," 42,945.00 ",
Home Office,UKBA - UK Border Agency,10/09/2012,IT & Telecoms Components.Computer Equip (FA),UKBA - UK Border Agency,SPECIALIST COMPUTER CENTRES PLC,1001305720," 205,340.90 ",
Home Office,UKBA - UK Border Agency,17/09/2012,IT & Telecoms Components.Computer Equip (FA),UKBA - UK Border Agency,SPECIALIST COMPUTER CENTRES PLC,1001308655," 25,591.54 ",
Home Office,UKBA - UK Border Agency,21/09/2012,IT & Telecoms Components.Computer Equip (FA),UKBA - UK Border Agency,SPECIALIST COMPUTER CENTRES PLC,1001311095," 42,781.02 ",
Home Office,UKBA - UK Border Agency,12/09/2012,Grants,UKBA - UK Border Agency,STAFFORDSHIRE COUNTY COUNCIL 1 (G),1001307339," 267,358.00 ",
Home Office,UKBA - UK Border Agency,12/09/2012,Grants,UKBA - UK Border Agency,STAFFORDSHIRE COUNTY COUNCIL 1 (G),1001307339," 84,306.00 ",
Home Office,UKBA - UK Border Agency,12/09/2012,Grants,UKBA - UK Border Agency,SUFFOLK COUNTY COUNCIL (G),1001307341," 144,045.00 ",
Home Office,UKBA - UK Border Agency,12/09/2012,Grants,UKBA - UK Border Agency,SUFFOLK COUNTY COUNCIL (G),1001307341," 45,042.00 ",
Home Office,UKBA - UK Border Agency,19/09/2012,Grants,UKBA - UK Border Agency,SUFFOLK COUNTY COUNCIL (G),1001309934," 49,097.00 ",
Home Office,UKBA - UK Border Agency,13/09/2012,"Law Enforcement & safety Equip.Haulage, Storage & Disposal",UKBA - UK Border Agency,THAMESDOWN RECYCLING,1001307542," 66,849.50 ",
Home Office,UKBA - UK Border Agency,10/09/2012,Travel & Food & Lodging.Juxtaposed Overseas Travel,UKBA - UK Border Agency,THE CHANNEL TUNNEL GROUP LTD,1001305723," 51,678.00 ",
Home Office,UKBA - UK Border Agency,07/09/2012,Travel & Food & Lodging.UK- Hotel Accommodation,UKBA - UK Border Agency,THISTLE HOTEL LONDON HEATHROW,1001305304," 156,728.00 ",
Home Office,UKBA - UK Border Agency,07/09/2012,Travel & Food & Lodging.UK- Hotel Accommodation,UKBA - UK Border Agency,THISTLE HOTEL LONDON HEATHROW,1001305304," 8,905.00 ",
Home Office,UKBA - UK Border Agency,12/09/2012,Grants,UKBA - UK Border Agency,THURROCK COUNCIL 1 (G),1001307344," 180,630.00 ",
Home Office,UKBA - UK Border Agency,12/09/2012,Grants,UKBA - UK Border Agency,THURROCK COUNCIL 1 (G),1001307344," 60,755.00 ",
Home Office,UKBA - UK Border Agency,04/09/2012,"Law Enforcement & safety Equip.Haulage, Storage & Disposal",UKBA - UK Border Agency,TNT UK LTD,1001303305," 273,507.20 ",
Home Office,UKBA - UK Border Agency,27/09/2012,"Law Enforcement & safety Equip.Haulage, Storage & Disposal",UKBA - UK Border Agency,TNT UK LTD,1001313457," 257,408.94 ",
Home Office,UKBA - UK Border Agency,19/09/2012,Grants,UKBA - UK Border Agency,TRAFFORD METROPOLITAN BOROUGH COUNCIL (G),1001309935," 45,653.00 ",
Home Office,UKBA - UK Border Agency,19/09/2012,Legal Fees and Disbursements,UKBA - UK Border Agency,TREASURY SOLICITORS OFFICE,3000045377," 422,280.17 ",
Home Office,UKBA - UK Border Agency,19/09/2012,Legal Fees and Disbursements,UKBA - UK Border Agency,TREASURY SOLICITORS OFFICE,3000045377," 18,414.22 ",
Home Office,UKBA - UK Border Agency,19/09/2012,Legal Fees and Disbursements,UKBA - UK Border Agency,TREASURY SOLICITORS OFFICE,3000045377," 5,873.30 ",
Home Office,UKBA - UK Border Agency,19/09/2012,Legal Fees and Disbursements,UKBA - UK Border Agency,TREASURY SOLICITORS OFFICE,3000045377," 137,458.43 ",
Home Office,UKBA - UK Border Agency,19/09/2012,Legal Fees and Disbursements,UKBA - UK Border Agency,TREASURY SOLICITORS OFFICE,3000045377," 49,936.13 ",
Home Office,UKBA - UK Border Agency,19/09/2012,Legal Fees and Disbursements,UKBA - UK Border Agency,TREASURY SOLICITORS OFFICE,3000045377," 77,100.46 ",
Home Office,UKBA - UK Border Agency,03/09/2012,Compensation & Legal Costs,UKBA - UK Border Agency,TREASURY SOLICITORS OFFICE,3000045304," 318,621.22 ",
Home Office,UKBA - UK Border Agency,03/09/2012,Compensation & Legal Costs,UKBA - UK Border Agency,TREASURY SOLICITORS OFFICE,3000045304," 350,132.31 ",
Home Office,UKBA - UK Border Agency,06/09/2012,Compensation & Legal Costs,UKBA - UK Border Agency,TREASURY SOLICITORS OFFICE,3000045320," 231,289.81 ",
Home Office,UKBA - UK Border Agency,18/09/2012,Compensation & Legal Costs,UKBA - UK Border Agency,TREASURY SOLICITORS OFFICE,3000045368," 77,475.00 ",
Home Office,UKBA - UK Border Agency,17/09/2012,Compensation & Legal Costs,UKBA - UK Border Agency,TREASURY SOLICITORS OFFICE,3000045366," 128,490.86 ",
Home Office,UKBA - UK Border Agency,21/09/2012,Compensation & Legal Costs,UKBA - UK Border Agency,TREASURY SOLICITORS OFFICE,3000045392," 269,719.63 ",
Home Office,UKBA - UK Border Agency,24/09/2012,Asylum Provision. Asylum Accomodation,UKBA - UK Border Agency,UNITED PROPERTY MANAGEMENT,1001311610," 125,335.89 ",
Home Office,UKBA - UK Border Agency,24/09/2012,Asylum Provision. Asylum Accomodation,UKBA - UK Border Agency,UNITED PROPERTY MANAGEMENT,1001311610," 122,167.99 ",
Home Office,UKBA - UK Border Agency,24/09/2012,Asylum Provision. Asylum Accomodation,UKBA - UK Border Agency,UNITED PROPERTY MANAGEMENT,1001311610," 19,431.32 ",
Home Office,UKBA - UK Border Agency,24/09/2012,Asylum Provision. Asylum Accomodation,UKBA - UK Border Agency,UNITED PROPERTY MANAGEMENT,1001311610," 70,135.58 ",
Home Office,UKBA - UK Border Agency,24/09/2012,Asylum Provision. Asylum Accomodation,UKBA - UK Border Agency,UNITED PROPERTY MANAGEMENT,1001311610," 10,790.06 ",
Home Office,UKBA - UK Border Agency,24/09/2012,Asylum Provision. Asylum Accomodation,UKBA - UK Border Agency,UNITED PROPERTY MANAGEMENT,1001311610," 15,695.02 ",
Home Office,UKBA - UK Border Agency,25/09/2012,Professional & Admin Services. Visa Processing Services,UKBA - UK Border Agency,VF WORLDWIDE HOLDINGS LTD,7000007127," 1,893,927.90 ",
Home Office,UKBA - UK Border Agency,28/09/2012,Animal Material & Supplies.Detect Dogs-Kennel & Misc,UKBA - UK Border Agency,WAGTAIL UK LTD,1001314078," 92,295.12 ",
Home Office,UKBA - UK Border Agency,12/09/2012,Grants,UKBA - UK Border Agency,WARWICKSHIRE COUNTY COUNCIL 1 (G),1001307346," 419,379.00 ",
Home Office,UKBA - UK Border Agency,12/09/2012,Grants,UKBA - UK Border Agency,WARWICKSHIRE COUNTY COUNCIL 1 (G),1001307346," 129,661.00 ",
Home Office,UKBA - UK Border Agency,19/09/2012,Grants,UKBA - UK Border Agency,WEST SUSSEX COUNTY COUNCIL 1 (G),1001309936," 183,225.00 ",
Home Office,UKBA - UK Border Agency,12/09/2012,Grants,UKBA - UK Border Agency,WORCESTERSHIRE COUNTY COUNCIL 1 (G),1001307350," 186,501.00 ",
Home Office,UKBA - UK Border Agency,12/09/2012,Grants,UKBA - UK Border Agency,WORCESTERSHIRE COUNTY COUNCIL 1 (G),1001307350," 60,202.00 ",
Home Office,UKBA - UK Border Agency,05/09/2012,Banking & Monetary Serv.Banking & Monetary Services,UKBA - UK Border Agency,WORLDPAY UK LTD,1001304390," 38,736.09 ",
Home Office,UKBA - UK Border Agency,17/09/2012,Banking & Monetary Serv.Banking & Monetary Services,UKBA - UK Border Agency,WORLDPAY UK LTD,1001308702," 32,273.44 ",
Home Office,UKBA - UK Border Agency,25/09/2012,Asylum Provision. Asylum Accomodation,UKBA - UK Border Agency,YMCA GLASGOW,1001312296," 572,844.18 ",
Home Office,UKBA - UK Border Agency,25/09/2012,Asylum Provision. Asylum Accomodation,UKBA - UK Border Agency,YMCA GLASGOW,1001312296," 55,815.76 ",
Home Office,UKBA - UK Border Agency,25/09/2012,Asylum Provision. Asylum Accomodation,UKBA - UK Border Agency,YMCA GLASGOW,1001312296," 120,840.01 ",
Home Office,IPCC - Independent Police Complaints Commision,12/09/2012,Rent,IPCC - Independent Police Complaints Commision,OMD SERVICES LIMITED,RCT0041030," 599,452.32 ",
Home Office,IPCC - Independent Police Complaints Commision,12/09/2012,Service Charge,IPCC - Independent Police Complaints Commision,OMD SERVICES LIMITED,RCT0041030," 121,728.54 ",
Home Office,IPCC - Independent Police Complaints Commision,13/09/2012,Rent,IPCC - Independent Police Complaints Commision,EASTERN BUSINESS PARK,RCT0041076," 32,767.20 ",
Home Office,IPCC - Independent Police Complaints Commision,19/09/2012,Audit,IPCC - Independent Police Complaints Commision,NAO - NATIONAL AUDIT OFFICE,RCT0041087," 42,000.00 ",
Home Office,IPCC - Independent Police Complaints Commision,21/09/2012,IT,IPCC - Independent Police Complaints Commision,STERIA,RCT0041146," 330,592.00 ",
Home Office,SIA - Security Industry Authority,13/09/2012,Licensing costs,Licensing ,BT Syntegra ,CSYN01," 1,112,036.37 ",
Home Office,SIA - Security Industry Authority,13/09/2012,Licensing costs,Licensing ,CRB,CCRB01," 327,288.00 ",
Home Office,SIA - Security Industry Authority,27/09/2012,Legal Fees and Disbursements,Licensing ,Kingsley Napley,CKIN02," 66,127.20 ",
Home Office,SIA - Security Industry Authority,27/09/2012,Accomodation,Office Svs ,IPCC,CIPC01," 443,330.00 ",
Home Office,NPIA - National Policing Improvement Agency,21/09/2012,Photocopier charges,Information & Communications Technology & Science Directorate,Xerox (UK) Ltd,1700006524,"-25,630.49 ",
Home Office,NPIA - National Policing Improvement Agency,18/09/2012,IT software,Information & Communications Technology & Science Directorate,Northgate Information Solutions UK,5100067411," 129,417.26 ",
Home Office,NPIA - National Policing Improvement Agency,18/09/2012,IT Managed Services,Information & Communications Technology & Science Directorate,Northgate Information Solutions UK,5100067411, 650.74 ,
Home Office,NPIA - National Policing Improvement Agency,11/09/2012,IT software,Information & Communications Technology & Science Directorate,UNISYS Ltd,5100067613," 336,811.85 ",
Home Office,NPIA - National Policing Improvement Agency,06/09/2012,IT software,Information & Communications Technology & Science Directorate,Specialist Computer Centres PLC,5100067780," 40,000.00 ",
Home Office,NPIA - National Policing Improvement Agency,11/09/2012,Telephone charges,Information & Communications Technology & Science Directorate,BT Billing Enquiries,5100068084," 50,942.87 ",
Home Office,NPIA - National Policing Improvement Agency,11/09/2012,Telephone charges,Information & Communications Technology & Science Directorate,BT Billing Enquiries,5100068084," 1,019.99 ",
Home Office,NPIA - National Policing Improvement Agency,11/09/2012,Telephone charges,Information & Communications Technology & Science Directorate,BT Billing Enquiries,5100068084, 857.43 ,
Home Office,NPIA - National Policing Improvement Agency,11/09/2012,Telephone charges,Information & Communications Technology & Science Directorate,BT Billing Enquiries,5100068084, 17.15 ,
Home Office,NPIA - National Policing Improvement Agency,11/09/2012,Telephone charges,Information & Communications Technology & Science Directorate,BT Billing Enquiries,5100068084," 8,396.29 ",
Home Office,NPIA - National Policing Improvement Agency,11/09/2012,Telephone charges,Information & Communications Technology & Science Directorate,BT Billing Enquiries,5100068084, 167.94 ,
Home Office,NPIA - National Policing Improvement Agency,11/09/2012,Telephone charges,Information & Communications Technology & Science Directorate,BT Billing Enquiries,5100068084," 5,546.57 ",
Home Office,NPIA - National Policing Improvement Agency,11/09/2012,Telephone charges,Information & Communications Technology & Science Directorate,BT Billing Enquiries,5100068084, 110.95 ,
Home Office,NPIA - National Policing Improvement Agency,06/09/2012,IT Managed Services,Information & Communications Technology & Science Directorate,Logica CMG UK Ltd,5100068157," 591,957.00 ",
Home Office,NPIA - National Policing Improvement Agency,06/09/2012,IT Managed Services,Information & Communications Technology & Science Directorate,Logica CMG UK Ltd,5100068157," 3,976.00 ",
Home Office,NPIA - National Policing Improvement Agency,06/09/2012,IT Managed Services,Information & Communications Technology & Science Directorate,Logica CMG UK Ltd,5100068157, 421.00 ,
Home Office,NPIA - National Policing Improvement Agency,06/09/2012,IT software,Information & Communications Technology & Science Directorate,Specialist Computer Centres PLC,5100068165," 2,632.85 ",
Home Office,NPIA - National Policing Improvement Agency,06/09/2012,IT software,Information & Communications Technology & Science Directorate,Specialist Computer Centres PLC,5100068165, 52.66 ,
Home Office,NPIA - National Policing Improvement Agency,06/09/2012,IT software,Information & Communications Technology & Science Directorate,Specialist Computer Centres PLC,5100068165," 7,701.07 ",
Home Office,NPIA - National Policing Improvement Agency,06/09/2012,IT software,Information & Communications Technology & Science Directorate,Specialist Computer Centres PLC,5100068165, 154.02 ,
Home Office,NPIA - National Policing Improvement Agency,06/09/2012,IT software,Information & Communications Technology & Science Directorate,Specialist Computer Centres PLC,5100068165," 11,596.32 ",
Home Office,NPIA - National Policing Improvement Agency,06/09/2012,IT software,Information & Communications Technology & Science Directorate,Specialist Computer Centres PLC,5100068165, 231.93 ,
Home Office,NPIA - National Policing Improvement Agency,06/09/2012,IT software,Information & Communications Technology & Science Directorate,Specialist Computer Centres PLC,5100068165," 1,116.94 ",
Home Office,NPIA - National Policing Improvement Agency,06/09/2012,IT software,Information & Communications Technology & Science Directorate,Specialist Computer Centres PLC,5100068165, 22.34 ,
Home Office,NPIA - National Policing Improvement Agency,06/09/2012,IT software,Information & Communications Technology & Science Directorate,Specialist Computer Centres PLC,5100068165," 2,788.40 ",
Home Office,NPIA - National Policing Improvement Agency,06/09/2012,IT software,Information & Communications Technology & Science Directorate,Specialist Computer Centres PLC,5100068165, 55.77 ,
Home Office,NPIA - National Policing Improvement Agency,06/09/2012,IT software,Information & Communications Technology & Science Directorate,Specialist Computer Centres PLC,5100068165," 42,086.25 ",
Home Office,NPIA - National Policing Improvement Agency,06/09/2012,IT software,Information & Communications Technology & Science Directorate,Specialist Computer Centres PLC,5100068165, 841.72 ,
Home Office,NPIA - National Policing Improvement Agency,06/09/2012,IT software,Information & Communications Technology & Science Directorate,Specialist Computer Centres PLC,5100068165," 1,917.78 ",
Home Office,NPIA - National Policing Improvement Agency,06/09/2012,IT software,Information & Communications Technology & Science Directorate,Specialist Computer Centres PLC,5100068165, 38.36 ,
Home Office,NPIA - National Policing Improvement Agency,06/09/2012,IT software,Information & Communications Technology & Science Directorate,Specialist Computer Centres PLC,5100068165," 12,186.70 ",
Home Office,NPIA - National Policing Improvement Agency,06/09/2012,IT software,Information & Communications Technology & Science Directorate,Specialist Computer Centres PLC,5100068165, 243.73 ,
Home Office,NPIA - National Policing Improvement Agency,06/09/2012,IT software,Information & Communications Technology & Science Directorate,Specialist Computer Centres PLC,5100068165," 5,864.00 ",
Home Office,NPIA - National Policing Improvement Agency,06/09/2012,IT software,Information & Communications Technology & Science Directorate,Specialist Computer Centres PLC,5100068165, 117.28 ,
Home Office,NPIA - National Policing Improvement Agency,06/09/2012,IT software,Information & Communications Technology & Science Directorate,Specialist Computer Centres PLC,5100068165," 1,195.74 ",
Home Office,NPIA - National Policing Improvement Agency,06/09/2012,IT software,Information & Communications Technology & Science Directorate,Specialist Computer Centres PLC,5100068165, 23.91 ,
Home Office,NPIA - National Policing Improvement Agency,06/09/2012,IT software,Information & Communications Technology & Science Directorate,Specialist Computer Centres PLC,5100068165," 10,968.03 ",
Home Office,NPIA - National Policing Improvement Agency,06/09/2012,IT software,Information & Communications Technology & Science Directorate,Specialist Computer Centres PLC,5100068165, 219.36 ,
Home Office,NPIA - National Policing Improvement Agency,06/09/2012,IT software,Information & Communications Technology & Science Directorate,Specialist Computer Centres PLC,5100068165," 2,964.92 ",
Home Office,NPIA - National Policing Improvement Agency,06/09/2012,IT software,Information & Communications Technology & Science Directorate,Specialist Computer Centres PLC,5100068165, 59.30 ,
Home Office,NPIA - National Policing Improvement Agency,06/09/2012,IT software,Information & Communications Technology & Science Directorate,Specialist Computer Centres PLC,5100068165," 1,746.24 ",
Home Office,NPIA - National Policing Improvement Agency,06/09/2012,IT software,Information & Communications Technology & Science Directorate,Specialist Computer Centres PLC,5100068165, 34.92 ,
Home Office,NPIA - National Policing Improvement Agency,11/09/2012,IT Managed Services,Information & Communications Technology & Science Directorate,Logica CMG UK Ltd,5100068225," 30,000.00 ",
Home Office,NPIA - National Policing Improvement Agency,11/09/2012,IT Managed Services,Information & Communications Technology & Science Directorate,Logica CMG UK Ltd,5100068226," 327,579.00 ",
Home Office,NPIA - National Policing Improvement Agency,11/09/2012,IT Managed Services,Information & Communications Technology & Science Directorate,Logica CMG UK Ltd,5100068240," 591,957.00 ",
Home Office,NPIA - National Policing Improvement Agency,11/09/2012,IT Managed Services,Information & Communications Technology & Science Directorate,Logica CMG UK Ltd,5100068240," 3,976.00 ",
Home Office,NPIA - National Policing Improvement Agency,11/09/2012,IT Managed Services,Information & Communications Technology & Science Directorate,Logica CMG UK Ltd,5100068240, 421.00 ,
Home Office,NPIA - National Policing Improvement Agency,11/09/2012,IT software,Information & Communications Technology & Science Directorate,UNISYS Ltd,5100068265,"-336,811.85 ",
Home Office,NPIA - National Policing Improvement Agency,11/09/2012,IT software,Information & Communications Technology & Science Directorate,UNISYS Ltd,5100068266," 336,811.80 ",
Home Office,NPIA - National Policing Improvement Agency,11/09/2012,IT software,Information & Communications Technology & Science Directorate,UNISYS Ltd,5100068266, 0.05 ,
Home Office,NPIA - National Policing Improvement Agency,14/09/2012,IT Managed Services,Information & Communications Technology & Science Directorate,Logica CMG UK Ltd,5100068272," 183,751.00 ",
Home Office,NPIA - National Policing Improvement Agency,25/09/2012,Telephone charges,Information & Communications Technology & Science Directorate,Cable & Wireless Communications,5100068588," 52,725.00 ",
Home Office,NPIA - National Policing Improvement Agency,25/09/2012,IT Information Support,Information & Communications Technology & Science Directorate,Home Office Accounting Officer,5100068608," 25,025.00 ",
Home Office,NPIA - National Policing Improvement Agency,25/09/2012,IT Information Support,Information & Communications Technology & Science Directorate,Home Office Accounting Officer,5100068608,-12.00 ,
Home Office,NPIA - National Policing Improvement Agency,25/09/2012,IT Managed Services,Information & Communications Technology & Science Directorate,Logica CMG UK Ltd,5100068678," 315,268.24 ",
Home Office,NPIA - National Policing Improvement Agency,25/09/2012,IT Managed Services,Information & Communications Technology & Science Directorate,Logica CMG UK Ltd,5100068678,-5.59 ,
Home Office,NPIA - National Policing Improvement Agency,25/09/2012,IT Managed Services,Information & Communications Technology & Science Directorate,Airwave Solutions Ltd,5100068680," 212,205.00 ",
Home Office,NPIA - National Policing Improvement Agency,25/09/2012,IT Managed Services,Information & Communications Technology & Science Directorate,Airwave Solutions Ltd,5100068680,"-1,278.00 ",
Home Office,NPIA - National Policing Improvement Agency,04/09/2012,Airwave Core Service Charge,Operations Directorate,Airwave Solutions Ltd,5100067821," 236,905.58 ",
Home Office,NPIA - National Policing Improvement Agency,04/09/2012,Airwave Core Service Charge,Operations Directorate,Airwave Solutions Ltd,5100067821, 29.30 ,
Home Office,NPIA - National Policing Improvement Agency,04/09/2012,Airwave Core Service Charge,Operations Directorate,Airwave Solutions Ltd,5100067822," 15,493,526.67 ",
Home Office,NPIA - National Policing Improvement Agency,04/09/2012,Airwave Core Service Charge,Operations Directorate,Airwave Solutions Ltd,5100067822,"-2,156.40 ",
Home Office,NPIA - National Policing Improvement Agency,14/09/2012,IT Information Support,Operations Directorate,Steria Ltd,5100067889," 59,068.31 ",
Home Office,NPIA - National Policing Improvement Agency,14/09/2012,IT Information Support,Operations Directorate,Steria Ltd,5100067889, 2.87 ,
Home Office,NPIA - National Policing Improvement Agency,10/09/2012,IT Information Support,Operations Directorate,Steria Ltd,5100067890," 27,231.75 ",
Home Office,NPIA - National Policing Improvement Agency,10/09/2012,IT Information Support,Operations Directorate,Steria Ltd,5100067890," 1,350.13 ",
Home Office,NPIA - National Policing Improvement Agency,10/09/2012,IT Information Support,Operations Directorate,Steria Ltd,5100067890, 19.63 ,
Home Office,NPIA - National Policing Improvement Agency,25/09/2012,IT Managed Services,Operations Directorate,Cable & Wireless Communications,5100067939," 187,500.50 ",
Home Office,NPIA - National Policing Improvement Agency,25/09/2012,IT Managed Services,Operations Directorate,Cable & Wireless Communications,5100067939,-0.04 ,
Home Office,NPIA - National Policing Improvement Agency,25/09/2012,IT Managed Services,Operations Directorate,Cable & Wireless Communications,5100067939," 1,505.00 ",
Home Office,NPIA - National Policing Improvement Agency,25/09/2012,IT Managed Services,Operations Directorate,Cable & Wireless Communications,5100067939,-5.00 ,
Home Office,NPIA - National Policing Improvement Agency,04/09/2012,IT software,Operations Directorate,Fujitsu (FTS) Limited,5100068044," 765,774.94 ",
Home Office,NPIA - National Policing Improvement Agency,04/09/2012,IT software,Operations Directorate,Fujitsu (FTS) Limited,5100068044," 153,154.98 ",
Home Office,NPIA - National Policing Improvement Agency,04/09/2012,IT software,Operations Directorate,Fujitsu (FTS) Limited,5100068044," 713,832.24 ",
Home Office,NPIA - National Policing Improvement Agency,04/09/2012,IT software,Operations Directorate,Fujitsu (FTS) Limited,5100068044," 142,766.45 ",
Home Office,NPIA - National Policing Improvement Agency,04/09/2012,IT software,Operations Directorate,Fujitsu (FTS) Limited,5100068044," 496,927.65 ",
Home Office,NPIA - National Policing Improvement Agency,04/09/2012,IT software,Operations Directorate,Fujitsu (FTS) Limited,5100068044," 99,385.53 ",
Home Office,NPIA - National Policing Improvement Agency,04/09/2012,IT software,Operations Directorate,Fujitsu (FTS) Limited,5100068044," 492,645.03 ",
Home Office,NPIA - National Policing Improvement Agency,04/09/2012,IT software,Operations Directorate,Fujitsu (FTS) Limited,5100068044," 98,529.01 ",
Home Office,NPIA - National Policing Improvement Agency,04/09/2012,IT Hardware,Operations Directorate,Fujitsu (FTS) Limited,5100068044," 522,471.07 ",
Home Office,NPIA - National Policing Improvement Agency,04/09/2012,IT Hardware,Operations Directorate,Fujitsu (FTS) Limited,5100068044," 104,494.21 ",
Home Office,NPIA - National Policing Improvement Agency,04/09/2012,IT Hardware,Operations Directorate,Fujitsu (FTS) Limited,5100068044," 417,483.82 ",
Home Office,NPIA - National Policing Improvement Agency,04/09/2012,IT Hardware,Operations Directorate,Fujitsu (FTS) Limited,5100068044," 83,496.76 ",
Home Office,NPIA - National Policing Improvement Agency,04/09/2012,IT Hardware,Operations Directorate,Fujitsu (FTS) Limited,5100068044," 3,756.43 ",
Home Office,NPIA - National Policing Improvement Agency,04/09/2012,IT Hardware,Operations Directorate,Fujitsu (FTS) Limited,5100068044, 751.29 ,
Home Office,NPIA - National Policing Improvement Agency,04/09/2012,IT Hardware,Operations Directorate,Fujitsu (FTS) Limited,5100068044," 269,935.07 ",
Home Office,NPIA - National Policing Improvement Agency,04/09/2012,IT Hardware,Operations Directorate,Fujitsu (FTS) Limited,5100068044," 53,987.01 ",
Home Office,NPIA - National Policing Improvement Agency,04/09/2012,IT software,Operations Directorate,Fujitsu (FTS) Limited,5100068044," 34,611.50 ",
Home Office,NPIA - National Policing Improvement Agency,04/09/2012,IT software,Operations Directorate,Fujitsu (FTS) Limited,5100068044," 6,922.30 ",
Home Office,NPIA - National Policing Improvement Agency,04/09/2012,IT software,Operations Directorate,Fujitsu (FTS) Limited,5100068044," 36,586.68 ",
Home Office,NPIA - National Policing Improvement Agency,04/09/2012,IT software,Operations Directorate,Fujitsu (FTS) Limited,5100068044," 7,317.34 ",
Home Office,NPIA - National Policing Improvement Agency,04/09/2012,IT software,Operations Directorate,Fujitsu (FTS) Limited,5100068044," 14,611.56 ",
Home Office,NPIA - National Policing Improvement Agency,04/09/2012,IT software,Operations Directorate,Fujitsu (FTS) Limited,5100068044," 2,922.31 ",
Home Office,NPIA - National Policing Improvement Agency,04/09/2012,IT software,Operations Directorate,Fujitsu (FTS) Limited,5100068044," 224,422.97 ",
Home Office,NPIA - National Policing Improvement Agency,04/09/2012,IT software,Operations Directorate,Fujitsu (FTS) Limited,5100068044," 44,884.59 ",
Home Office,NPIA - National Policing Improvement Agency,04/09/2012,IT Hardware,Operations Directorate,Fujitsu (FTS) Limited,5100068044," 12,413.44 ",
Home Office,NPIA - National Policing Improvement Agency,04/09/2012,IT Hardware,Operations Directorate,Fujitsu (FTS) Limited,5100068044," 2,482.68 ",
Home Office,NPIA - National Policing Improvement Agency,04/09/2012,IT Hardware,Operations Directorate,Fujitsu (FTS) Limited,5100068044," 12,413.44 ",
Home Office,NPIA - National Policing Improvement Agency,04/09/2012,IT Hardware,Operations Directorate,Fujitsu (FTS) Limited,5100068044," 2,482.68 ",
Home Office,NPIA - National Policing Improvement Agency,04/09/2012,IT Hardware,Operations Directorate,Fujitsu (FTS) Limited,5100068044," 13,957.44 ",
Home Office,NPIA - National Policing Improvement Agency,04/09/2012,IT Hardware,Operations Directorate,Fujitsu (FTS) Limited,5100068044," 2,791.49 ",
Home Office,NPIA - National Policing Improvement Agency,04/09/2012,IT Hardware,Operations Directorate,Fujitsu (FTS) Limited,5100068044," 8,293.62 ",
Home Office,NPIA - National Policing Improvement Agency,04/09/2012,IT Hardware,Operations Directorate,Fujitsu (FTS) Limited,5100068044," 1,658.72 ",
Home Office,NPIA - National Policing Improvement Agency,04/09/2012,IT Hardware,Operations Directorate,Fujitsu (FTS) Limited,5100068044," 153,783.00 ",
Home Office,NPIA - National Policing Improvement Agency,04/09/2012,IT Hardware,Operations Directorate,Fujitsu (FTS) Limited,5100068044," 30,756.59 ",
Home Office,NPIA - National Policing Improvement Agency,11/09/2012,Telephone charges,Operations Directorate,BT Billing Enquiries,5100068084," 5,546.56 ",
Home Office,NPIA - National Policing Improvement Agency,11/09/2012,Telephone charges,Operations Directorate,BT Billing Enquiries,5100068084," 1,109.44 ",
Home Office,NPIA - National Policing Improvement Agency,10/09/2012,IT Information Support,Operations Directorate,Steria Ltd,5100068260,"-27,231.75 ",
Home Office,NPIA - National Policing Improvement Agency,10/09/2012,IT Information Support,Operations Directorate,Steria Ltd,5100068260,"-1,350.13 ",
Home Office,NPIA - National Policing Improvement Agency,10/09/2012,IT Information Support,Operations Directorate,Steria Ltd,5100068260,-19.63 ,
Home Office,NPIA - National Policing Improvement Agency,11/09/2012,IT Information Support,Operations Directorate,Steria Ltd,5100068263," 27,231.75 ",
Home Office,NPIA - National Policing Improvement Agency,11/09/2012,IT Information Support,Operations Directorate,Steria Ltd,5100068263," 1,350.13 ",
Home Office,NPIA - National Policing Improvement Agency,11/09/2012,IT Information Support,Operations Directorate,Steria Ltd,5100068263, 19.63 ,
Home Office,NPIA - National Policing Improvement Agency,20/09/2012,Management consultancy,Operations Directorate,Roke Manor Research Ltd,5100068468," 53,101.00 ",
Home Office,NPIA - National Policing Improvement Agency,20/09/2012,Airwave in London Underground Service Charge,Operations Directorate,Airwave Solutions Ltd,5100068495," 386,533.56 ",
Home Office,NPIA - National Policing Improvement Agency,20/09/2012,Airwave in London Underground Service Charge,Operations Directorate,Airwave Solutions Ltd,5100068495,-344.38 ,
Home Office,NPIA - National Policing Improvement Agency,20/09/2012,Airwave Cluster Hot Standby Service Charge,Operations Directorate,Airwave Solutions Ltd,5100068496," 672,852.00 ",
Home Office,NPIA - National Policing Improvement Agency,20/09/2012,Airwave Cluster Hot Standby Service Charge,Operations Directorate,Airwave Solutions Ltd,5100068496,-500.13 ,
Home Office,NPIA - National Policing Improvement Agency,20/09/2012,Airwave Core Service Charge,Operations Directorate,Airwave Solutions Ltd,5100068497," 25,657.32 ",
Home Office,NPIA - National Policing Improvement Agency,20/09/2012,Airwave Core Service Charge,Operations Directorate,Airwave Solutions Ltd,5100068497,-22.85 ,
Home Office,NPIA - National Policing Improvement Agency,20/09/2012,Airwave Ground Based Network Resilience Service Charge,Operations Directorate,Airwave Solutions Ltd,5100068498," 617,543.51 ",
Home Office,NPIA - National Policing Improvement Agency,20/09/2012,Airwave Ground Based Network Resilience Service Charge,Operations Directorate,Airwave Solutions Ltd,5100068498,"-1,091.06 ",
Home Office,NPIA - National Policing Improvement Agency,20/09/2012,Airwave in London Underground Service Charge,Operations Directorate,Airwave Solutions Ltd,5100068499," 62,255.72 ",
Home Office,NPIA - National Policing Improvement Agency,20/09/2012,Airwave in London Underground Service Charge,Operations Directorate,Airwave Solutions Ltd,5100068499,-100.00 ,
Home Office,NPIA - National Policing Improvement Agency,20/09/2012,Firewall Service Charge,Operations Directorate,Airwave Solutions Ltd,5100068499," 26,480.39 ",
Home Office,NPIA - National Policing Improvement Agency,20/09/2012,Firewall Service Charge,Operations Directorate,Airwave Solutions Ltd,5100068499,-30.02 ,
Home Office,NPIA - National Policing Improvement Agency,20/09/2012,Airwave Core Service Charge,Operations Directorate,Airwave Solutions Ltd,5100068499," 8,721.74 ",
Home Office,NPIA - National Policing Improvement Agency,20/09/2012,Airwave Core Service Charge,Operations Directorate,Airwave Solutions Ltd,5100068499,-1.04 ,
Home Office,NPIA - National Policing Improvement Agency,20/09/2012,Stamford Service Charge,Operations Directorate,Airwave Solutions Ltd,5100068499," 81,875.43 ",
Home Office,NPIA - National Policing Improvement Agency,20/09/2012,Stamford Service Charge,Operations Directorate,Airwave Solutions Ltd,5100068499,-1.30 ,
Home Office,NPIA - National Policing Improvement Agency,20/09/2012,IT maintenance,Operations Directorate,Specialist Computer Centres PLC,5100068512," 68,711.58 ",
Home Office,NPIA - National Policing Improvement Agency,20/09/2012,IT maintenance,Operations Directorate,Specialist Computer Centres PLC,5100068512," 13,742.32 ",
Home Office,NPIA - National Policing Improvement Agency,20/09/2012,IT software,Operations Directorate,Specialist Computer Centres PLC,5100068522," 41,761.64 ",
Home Office,NPIA - National Policing Improvement Agency,20/09/2012,IT software,Operations Directorate,Specialist Computer Centres PLC,5100068522," 8,352.33 ",
Home Office,NPIA - National Policing Improvement Agency,20/09/2012,Airwave Cluster Hot Standby Service Charge,Operations Directorate,Airwave Solutions Ltd,5100068526," 93,129.71 ",
Home Office,NPIA - National Policing Improvement Agency,20/09/2012,Airwave Cluster Hot Standby Service Charge,Operations Directorate,Airwave Solutions Ltd,5100068526,-82.94 ,
Home Office,NPIA - National Policing Improvement Agency,20/09/2012,IT software,Operations Directorate,Specialist Computer Centres PLC,5100068545," 48,000.25 ",
Home Office,NPIA - National Policing Improvement Agency,20/09/2012,IT software,Operations Directorate,Specialist Computer Centres PLC,5100068545," 9,600.05 ",
Home Office,NPIA - National Policing Improvement Agency,25/09/2012,IT Managed Services,Operations Directorate,Airwave Solutions Ltd,5100068591, 485.60 ,
Home Office,NPIA - National Policing Improvement Agency,25/09/2012,IT Managed Services,Operations Directorate,Airwave Solutions Ltd,5100068591," 1,222,569.00 ",
Home Office,NPIA - National Policing Improvement Agency,25/09/2012,IT Managed Services,Operations Directorate,Airwave Solutions Ltd,5100068670," 30,904.73 ",
Home Office,NPIA - National Policing Improvement Agency,25/09/2012,IT Managed Services,Operations Directorate,Airwave Solutions Ltd,5100068670,-30.73 ,
Home Office,NPIA - National Policing Improvement Agency,25/09/2012,IT Managed Services,Operations Directorate,Airwave Solutions Ltd,5100068680," 10,190.47 ",
Home Office,NPIA - National Policing Improvement Agency,25/09/2012,IT Managed Services,Operations Directorate,Airwave Solutions Ltd,5100068680,-46.47 ,
Home Office,NPIA - National Policing Improvement Agency,14/09/2012,Training materials - customer,People & Development,David Horn Communications,5100067151," 14,223.60 ",
Home Office,NPIA - National Policing Improvement Agency,14/09/2012,Training materials - customer,People & Development,David Horn Communications,5100067151," 12,168.00 ",
Home Office,NPIA - National Policing Improvement Agency,14/09/2012,Training materials - customer,People & Development,David Horn Communications,5100067151," 4,318.80 ",
Home Office,NPIA - National Policing Improvement Agency,14/09/2012,Training materials - customer,People & Development,Providence SA Limited,5100068022," 1,374.00 ",
Home Office,NPIA - National Policing Improvement Agency,14/09/2012,Training materials - customer,People & Development,Providence SA Limited,5100068022," 1,188.00 ",
Home Office,NPIA - National Policing Improvement Agency,14/09/2012,Training materials - customer,People & Development,Providence SA Limited,5100068022," 13,662.00 ",
Home Office,NPIA - National Policing Improvement Agency,14/09/2012,Training materials - customer,People & Development,Providence SA Limited,5100068022," 1,560.00 ",
Home Office,NPIA - National Policing Improvement Agency,14/09/2012,Training materials - customer,People & Development,Providence SA Limited,5100068022," 2,502.00 ",
Home Office,NPIA - National Policing Improvement Agency,14/09/2012,Training materials - customer,People & Development,Providence SA Limited,5100068022," 1,260.00 ",
Home Office,NPIA - National Policing Improvement Agency,14/09/2012,Training materials - customer,People & Development,Providence SA Limited,5100068022," 3,840.00 ",
Home Office,NPIA - National Policing Improvement Agency,14/09/2012,Training materials - customer,People & Development,Providence SA Limited,5100068022," 2,142.00 ",
Home Office,NPIA - National Policing Improvement Agency,14/09/2012,Training materials - customer,People & Development,Providence SA Limited,5100068022," 2,868.00 ",
Home Office,NPIA - National Policing Improvement Agency,14/09/2012,Training materials - customer,People & Development,Providence SA Limited,5100068022," 17,184.00 ",
Home Office,NPIA - National Policing Improvement Agency,14/09/2012,Training materials - customer,People & Development,Providence SA Limited,5100068022," 4,380.00 ",
Home Office,NPIA - National Policing Improvement Agency,14/09/2012,Training materials - customer,People & Development,Providence SA Limited,5100068022," 7,194.00 ",
Home Office,NPIA - National Policing Improvement Agency,14/09/2012,Training materials - customer,People & Development,Providence SA Limited,5100068022," 1,722.00 ",
Home Office,NPIA - National Policing Improvement Agency,14/09/2012,Training materials - customer,People & Development,Providence SA Limited,5100068022," 5,088.00 ",
Home Office,NPIA - National Policing Improvement Agency,14/09/2012,Training materials - customer,People & Development,Providence SA Limited,5100068022," 1,194.00 ",
Home Office,NPIA - National Policing Improvement Agency,18/09/2012,Training courses - customer,People & Development,THE PACIFICO PARTNERSHIP LLP,5100068075," 30,600.00 ",
Home Office,NPIA - National Policing Improvement Agency,14/09/2012,Motor vehicles - cost,People & Development,Thames Valley Police Authority,5100068419," 26,005.56 ",
Home Office,NPIA - National Policing Improvement Agency,14/09/2012,Motor vehicles - cost,People & Development,Thames Valley Police Authority,5100068419," 4,557.08 ",
Home Office,NPIA - National Policing Improvement Agency,20/09/2012,IT Hardware,People & Development,Specialist Computer Centres PLC,5100068517," 21,328.63 ",
Home Office,NPIA - National Policing Improvement Agency,20/09/2012,IT Hardware,People & Development,Specialist Computer Centres PLC,5100068517," 4,265.73 ",
Home Office,NPIA - National Policing Improvement Agency,25/09/2012,IT Managed Services,People & Development,Specialist Computer Centres PLC,5100068635," 51,534.00 ",
Home Office,NPIA - National Policing Improvement Agency,25/09/2012,IT Managed Services,People & Development,Specialist Computer Centres PLC,5100068635," 10,306.80 ",
Home Office,NPIA - National Policing Improvement Agency,06/09/2012,Electricity,Resources Directorate,EDF Energy Exeter,1900066564," 4,455.24 ",
Home Office,NPIA - National Policing Improvement Agency,06/09/2012,Electricity,Resources Directorate,EDF Energy Exeter,1900066564," 3,157.90 ",
Home Office,NPIA - National Policing Improvement Agency,06/09/2012,Electricity,Resources Directorate,EDF Energy Exeter,1900066564," 19,976.94 ",
Home Office,NPIA - National Policing Improvement Agency,06/09/2012,Electricity,Resources Directorate,EDF Energy Exeter,1900066564," 56,178.63 ",
Home Office,NPIA - National Policing Improvement Agency,11/09/2012,Electricity,Resources Directorate,EDF Energy,1900066758," 21,749.96 ",
Home Office,NPIA - National Policing Improvement Agency,04/09/2012,Legal Fees and Disbursements,Resources Directorate,Winckworth Sherwood,1900066838," 30,991.17 ",
Home Office,NPIA - National Policing Improvement Agency,03/09/2012,Electricity,Resources Directorate,EDF Energy Exeter,1900066862," 20,072.82 ",
Home Office,NPIA - National Policing Improvement Agency,03/09/2012,Electricity,Resources Directorate,EDF Energy Exeter,1900066862," 3,158.19 ",
Home Office,NPIA - National Policing Improvement Agency,03/09/2012,Electricity,Resources Directorate,EDF Energy Exeter,1900066862," 4,917.88 ",
Home Office,NPIA - National Policing Improvement Agency,03/09/2012,Electricity,Resources Directorate,EDF Energy Exeter,1900066862," 58,538.18 ",
Home Office,NPIA - National Policing Improvement Agency,20/09/2012,Legal Fees and Disbursements,Resources Directorate,Winckworth Sherwood,1900067182," 66,045.00 ",
Home Office,NPIA - National Policing Improvement Agency,11/09/2012,FM Costs,Resources Directorate,Wyboston Lakes Ltd,5100068138," 35,520.17 ",
Home Office,NPIA - National Policing Improvement Agency,14/09/2012,Stationery,Resources Directorate,Bravo Solutions,5100068270," 26,732.16 ",
Home Office,NPIA - National Policing Improvement Agency,20/09/2012,Land and Buildings maintenance,Resources Directorate,Mansell Construction Servs Limited,5100068555," 152,034.00 ",
Home Office,NPIA - National Policing Improvement Agency,20/09/2012,Land and Buildings maintenance,Resources Directorate,Mansell Construction Servs Limited,5100068555," 30,406.80 ",
Home Office,NPIA - National Policing Improvement Agency,20/09/2012,Land and Buildings maintenance,Resources Directorate,Mansell Construction Servs Limited,5100068556," 39,429.00 ",
Home Office,NPIA - National Policing Improvement Agency,20/09/2012,Land and Buildings maintenance,Resources Directorate,Mansell Construction Servs Limited,5100068556," 7,885.80 ",
Home Office,ISA - Independent Safeguarding Authority,05/09/2012,Professional Fees,Finance & Corporate Resources,NPIA - National Policing Improvement Agency,5018,"76,960.75",
Home Office,ISA - Independent Safeguarding Authority,12/09/2012,Professional Fees,Finance & Corporate Resources,NPIA - National Policing Improvement Agency,5035,"87,769.75",
Home Office,ISA - Independent Safeguarding Authority,12/09/2012,Rent,Finance & Corporate Resources,City & Northern,5029,"140,188.20",
Home Office,ISA - Independent Safeguarding Authority,25/09/2012,Legal Costs,Finance & Corporate Resources,Treasury Solicitors,5076,"34,104.00",
Home Office,CRB - Criminal Records Bureau,21/09/2012,Police Authorities,CRB - Criminal Records Bureau,AVON & SOMERSET POLICE AUTHORITY,1001310985,"41,994.01",
Home Office,CRB - Criminal Records Bureau,17/09/2012,Police Authorities,CRB - Criminal Records Bureau,BEDFORDSHIRE POLICE AUTHORITY,1001308552,"38,074.96",
Home Office,CRB - Criminal Records Bureau,17/09/2012,Police Authorities,CRB - Criminal Records Bureau,CAMBRIDGESHIRE POLICE AUTHORITY,1001308563,"35,362.02",
Home Office,CRB - Criminal Records Bureau,24/09/2012,Police Authorities,CRB - Criminal Records Bureau,CAMBRIDGESHIRE POLICE AUTHORITY,1001311510,"35,457.96",
Home Office,CRB - Criminal Records Bureau,27/09/2012,Business Process Outsourcing,CRB - Criminal Records Bureau,CAPITA BUSINESS SERVICES LTD,1001313373,"-68,450.40",
Home Office,CRB - Criminal Records Bureau,07/09/2012,Consultancy.Asset Clearing - P&M,CRB - Criminal Records Bureau,CAPITA BUSINESS SERVICES LTD,1001305217,"188,268.00",
Home Office,CRB - Criminal Records Bureau,10/09/2012,Business Process Outsourcing,CRB - Criminal Records Bureau,CAPITA BUSINESS SERVICES LTD,1001305656,"84,012.00",
Home Office,CRB - Criminal Records Bureau,07/09/2012,Business Process Outsourcing,CRB - Criminal Records Bureau,CAPITA BUSINESS SERVICES LTD,1001305217,"291,996.00",
Home Office,CRB - Criminal Records Bureau,07/09/2012,Business Process Outsourcing,CRB - Criminal Records Bureau,CAPITA BUSINESS SERVICES LTD,1001305217,"130,126.80",
Home Office,CRB - Criminal Records Bureau,07/09/2012,Business Process Outsourcing,CRB - Criminal Records Bureau,CAPITA BUSINESS SERVICES LTD,1001305217,"28,843.20",
Home Office,CRB - Criminal Records Bureau,07/09/2012,Business Process Outsourcing,CRB - Criminal Records Bureau,CAPITA BUSINESS SERVICES LTD,1001305217,"59,175.60",
Home Office,CRB - Criminal Records Bureau,07/09/2012,Business Process Outsourcing,CRB - Criminal Records Bureau,CAPITA BUSINESS SERVICES LTD,1001305217,"32,163.60",
Home Office,CRB - Criminal Records Bureau,07/09/2012,Business Process Outsourcing,CRB - Criminal Records Bureau,CAPITA BUSINESS SERVICES LTD,1001305217,"27,162.00",
Home Office,CRB - Criminal Records Bureau,27/09/2012,Business Process Outsourcing,CRB - Criminal Records Bureau,CAPITA BUSINESS SERVICES LTD,1001313373,"2,807,382.00",
Home Office,CRB - Criminal Records Bureau,07/09/2012,Business Process Outsourcing,CRB - Criminal Records Bureau,CAPITA BUSINESS SERVICES LTD,1001305217,"2,807,382.00",
Home Office,CRB - Criminal Records Bureau,07/09/2012,Business Process Outsourcing,CRB - Criminal Records Bureau,CAPITA BUSINESS SERVICES LTD,1001305217,"2,807,382.00",
Home Office,CRB - Criminal Records Bureau,13/09/2012,Business Process Outsourcing,CRB - Criminal Records Bureau,CAPITA BUSINESS SERVICES LTD,1001307478,"269,069.36",
Home Office,CRB - Criminal Records Bureau,21/09/2012,Business Process Outsourcing,CRB - Criminal Records Bureau,CAPITA BUSINESS SERVICES LTD,1001310999,"94,108.75",
Home Office,CRB - Criminal Records Bureau,21/09/2012,Business Process Outsourcing,CRB - Criminal Records Bureau,CAPITA BUSINESS SERVICES LTD,1001310999,"1,830,048.78",
Home Office,CRB - Criminal Records Bureau,17/09/2012,Police Authorities,CRB - Criminal Records Bureau,CHESHIRE POLICE AUTHORITY,1001308572,"39,953.30",
Home Office,CRB - Criminal Records Bureau,17/09/2012,Police Authorities,CRB - Criminal Records Bureau,DERBYSHIRE POLICE AUTHORITY,1001308583,"88,418.72",
Home Office,CRB - Criminal Records Bureau,17/09/2012,Police Authorities,CRB - Criminal Records Bureau,DEVON & CORNWALL POLICE AUTHORITY,1001308584,"30,354.20",
Home Office,CRB - Criminal Records Bureau,21/09/2012,Police Authorities,CRB - Criminal Records Bureau,DEVON & CORNWALL POLICE AUTHORITY,1001311015,"30,667.44",
Home Office,CRB - Criminal Records Bureau,21/09/2012,Police Authorities,CRB - Criminal Records Bureau,ESSEX POLICE AUTHORITY,1001311029,"64,801.50",
Home Office,CRB - Criminal Records Bureau,17/09/2012,Police Authorities,CRB - Criminal Records Bureau,GREATER MANCHESTER POLICE,1001308601,"159,713.00",
Home Office,CRB - Criminal Records Bureau,21/09/2012,Police Authorities,CRB - Criminal Records Bureau,GREATER MANCHESTER POLICE,1001311035,"88,814.34",
Home Office,CRB - Criminal Records Bureau,21/09/2012,Police Authorities,CRB - Criminal Records Bureau,HAMPSHIRE CONSTABULARY,1001311040,"36,451.21",
Home Office,CRB - Criminal Records Bureau,17/09/2012,Police Authorities,CRB - Criminal Records Bureau,HERTFORDSHIRE CONSTABULARY,1001308605,"32,942.95",
Home Office,CRB - Criminal Records Bureau,17/09/2012,Police Authorities,CRB - Criminal Records Bureau,LANCASHIRE POLICE AUTHORITY,1001308610,"42,017.27",
Home Office,CRB - Criminal Records Bureau,21/09/2012,Police Authorities,CRB - Criminal Records Bureau,MAYORS OFFICE FOR POLICING AND CRIME (MOPC),1001311062,"500,088.97",
Home Office,CRB - Criminal Records Bureau,17/09/2012,Police Authorities,CRB - Criminal Records Bureau,NORTH YORKSHIRE POLICE AUTHORITY,1001308628,"26,860.07",
Home Office,CRB - Criminal Records Bureau,21/09/2012,Police Authorities,CRB - Criminal Records Bureau,NORTH YORKSHIRE POLICE AUTHORITY,1001311073,"27,853.67",
Home Office,CRB - Criminal Records Bureau,17/09/2012,Police Authorities,CRB - Criminal Records Bureau,NORTHUMBRIA POLICE AUTHORITY,1001308630,"30,349.15",
Home Office,CRB - Criminal Records Bureau,17/09/2012,Police Authorities,CRB - Criminal Records Bureau,NOTTINGHAMSHIRE POLICE AUTHORITY 1,1001308631,"59,103.86",
Home Office,CRB - Criminal Records Bureau,21/09/2012,Police Agencies,CRB - Criminal Records Bureau,NPIA - National Policing Improvement Agency,1001311074,"71,819.15",
Home Office,CRB - Criminal Records Bureau,21/09/2012,Police Agencies,CRB - Criminal Records Bureau,NPIA - National Policing Improvement Agency,1001311074,"66,252.55",
Home Office,CRB - Criminal Records Bureau,26/09/2012,Police Agencies,CRB - Criminal Records Bureau,NPIA - National Policing Improvement Agency,1001312818,"34,500.00",
Home Office,CRB - Criminal Records Bureau,17/09/2012,Police Authorities,CRB - Criminal Records Bureau,SURREY POLICE AUTHORITY,1001308676,"93,164.24",
Home Office,CRB - Criminal Records Bureau,17/09/2012,Police Authorities,CRB - Criminal Records Bureau,SUSSEX POLICE AUTHORITY,1001308677,"45,213.43",
Home Office,CRB - Criminal Records Bureau,17/09/2012,Police Authorities,CRB - Criminal Records Bureau,THAMES VALLEY POLICE AUTHORITY,1001308680,"139,060.68",
Home Office,CRB - Criminal Records Bureau,17/09/2012,Police Authorities,CRB - Criminal Records Bureau,WILTSHIRE CONSTABULARY POLICE,1001308701,"61,994.52",
Home Office,SOCA - Serious Organised Crime Agency,29/08/2012,Office and General Expenses,Intelligence,TREASURY SOLICITORS,123465,"41,084.17",
Home Office,SOCA - Serious Organised Crime Agency,29/08/2012,IT Expenses,Corporate Services,LOGICA UK LTD,123470,"172,987.15",
Home Office,SOCA - Serious Organised Crime Agency,29/08/2012,IT Expenses,Corporate Services,LOGICA UK LTD,123473,"258,080.06",
Home Office,SOCA - Serious Organised Crime Agency,29/08/2012,IT Expenses,Corporate Services,VODAFONE,123589,"113,235.04",
Home Office,SOCA - Serious Organised Crime Agency,29/08/2012,IT Expenses,Corporate Services,BT,123590,"30,393.56",
Home Office,SOCA - Serious Organised Crime Agency,29/08/2012,IT Expenses,Corporate Services,LOGICA UK LTD,123636,"84,790.56",
Home Office,SOCA - Serious Organised Crime Agency,30/08/2012,Professional Services and Fees,Corporate Services,FCO SERVICES,123716,"101,940.00",
Home Office,SOCA - Serious Organised Crime Agency,04/09/2012,Premises,Corporate Services,OCS GROUP,124165,"181,701.85",
Home Office,SOCA - Serious Organised Crime Agency,04/09/2012,Premises,Corporate Services,OCS GROUP,124167,"52,057.01",
Home Office,SOCA - Serious Organised Crime Agency,04/09/2012,Operational and Communications Costs,Corporate Services,SERCO,124177,"99,282.00",
Home Office,SOCA - Serious Organised Crime Agency,05/09/2012,Premises,Corporate Services,BRITISH GAS,124267,"64,462.31",
Home Office,SOCA - Serious Organised Crime Agency,05/09/2012,IT Expenses,Corporate Services,FOREIGN & COMMONWEALTH OFFICE,124291,"78,698.78",
Home Office,SOCA - Serious Organised Crime Agency,05/09/2012,IT Expenses,Enforcement,HOME OFFICE PAY & SUPER'N SERV,124301,"194,065.53",
Home Office,SOCA - Serious Organised Crime Agency,06/09/2012,IT Expenses,Investment Board,LOGICA UK LTD,124338,"66,276.00",
Home Office,SOCA - Serious Organised Crime Agency,06/09/2012,Property Plant & Equipment,Investment Board,LOGICA UK LTD,124338,"7,545.60",
Home Office,SOCA - Serious Organised Crime Agency,06/09/2012,IT Expenses,Non-SOCA Business,LOGICA UK LTD,124338,"13,677.60",
Home Office,SOCA - Serious Organised Crime Agency,06/09/2012,IT Expenses,Corporate Services,LOGICA UK LTD,124338,"2,968.80",
Home Office,SOCA - Serious Organised Crime Agency,07/09/2012,Indirect Employee Costs,Intelligence,CRIMESTOPPERS,124469,"50,000.00",
Home Office,SOCA - Serious Organised Crime Agency,12/09/2012,Professional Services and Fees,Corporate Services,ATOS ORIGINS,124725,"28,325.59",
Home Office,SOCA - Serious Organised Crime Agency,12/09/2012,Contingent Labour,Investment Board,LA INT'L COMPUTER CONSULTANTS,124768,"27,545.64",
Home Office,SOCA - Serious Organised Crime Agency,12/09/2012,Premises,Corporate Services,EDF ENERGY DUST FIELD SERVICES,124878,"27,346.19",
Home Office,SOCA - Serious Organised Crime Agency,19/09/2012,Professional Services and Fees,Corporate Services,WINCKWORTH SHERWOOD CLIENT A/C,125426,"26,208.00",
Home Office,SOCA - Serious Organised Crime Agency,19/09/2012,Operational and Communications Costs,Non-SOCA Business,BT,125492,"26,169.60",
Home Office,SOCA - Serious Organised Crime Agency,19/09/2012,Premises,Corporate Services,INTERSERVE FM LTD,125651,"171,709.04",
Home Office,SOCA - Serious Organised Crime Agency,21/09/2012,Contingent Labour,Corporate Services,ADECCO UK LTD,125785,"71,307.56",

